Workbook

Sheet Introducción
D2: PROXIES DE IMPLEMENTACIÓN DE LA TAXONOMÍA VERDE DE COLOMBIA CON ENFOQUE EN EL SECTOR AGRÍCULTURA PARA PEQUEÑOS Y MEDIANOS PRODUCTORES
B3: Esta herramienta constituye un ejercicio práctico de los planteamientos teóricos basados en ciencia que componen las buenas prácticas e inversiones para la transición hacia la agricultura ecológica, contempladas dentro de la Taxonomía Verde de Colombia (TVC). Este ejercicio responde al proceso de priorización de proxies desarrollado para el sector Agricultura, siendo este el primer ejercicio de aplicación de esta priorización y el segundo ejercicio de desarrollo de la herramientas proxies para complementar el toolkit de la TVC. A continuación se describe brevemente su contenido:
B4: NOMENCLATURA DE PÁGINA | D4: NOMBRE DE LA PESTAÑA | E4: CONTENIDO DE LA PESTAÑA
D5: Prácticas elegibles y Dimensiones Ambientales (DA) | E5: Esta pestaña incluye la información de las tablas 3.5 a la 3.9 de la TVC, las cuales se relacionan con las buenas prácticas para la agricultura ecológica generales y para los cultivos priorizados por la taxonomía (café, arroz, cultivos frutales y cacao). Adicionalmente, se incluyen las columnas relacionadas al alcance de las buenas prácticas con relación al tipo de productor y a la(s) dimensión(es) ambientales con las que se relacionan. Dicho análisis fue parte del desarrollo metodológico de priorización presentado en la Nota Conceptual para focalización de desarrollos para la implementación de la TVC por el sector Agricultura, con enfoque en los pequeños y medianos productores. | J5: Intelligent IoT-multiagent precision irrigation approach for improving water use efficiency in irrigation systems at farm and district scales,
D6: Referencias | E6: Esta pestaña contiene el enlace a todas las fuentes y referencias bibliográficas utilizadas para el planteamiento metodológico y desarrollo de las herramientas proxy presentadas dentro de este desarrollo.
D7: HC_Valoración Orgánicos | E7: Esta pestaña corresponde a la herramienta de cálculo (HC) para estimar el potencial de valorización de residuos orgánicos provenientes de la actividad agropecuaria. Está diseñada para apoyar proyectos enfocados en tecnologías de tratamiento biológico, como la digestión anaeróbica y el compostaje. El usuario deberá ingresar información específica del proyecto para la estimación del potencial de biogás y la reducción de Gases de Efecto Invernadero (GEI), considerando las siguientes secciones: i. Selección del tipo de proyecto: El usuario debe escoger el tipo de proyecto de valorización que desea evaluar. ii. Ingreso de datos del proyecto: El usuario deberá ingresar manualmente los datos clave del proyecto, los cuales alimentarán los cálculos de biogás y reducción de GEI. iii. Visualización de resultados: Los resultados de las estimaciones, como el potencial de valorización y la reducción de GEI, se mostrarán al finalizar el cálculo. Adicional, dependiendo el tipo de residuo seleccionado por el usuario, al obtener los resultados del tratamiento biológico de residuos se habilita una pestaña adicional que brinda recomendaciones de diseño según sea el caso (para la implementación de biodigestores o de pilas de compostaje).
D8: Tecnologías biodigestores | E8: Listado de tipos de biodigestores que incluyen información de las fichas técnicas de las tecnologías para facilitar al usuario la elección de la tecnología que supla sus necesidades. Adicional, presenta un listado de algunos proveedores de la tecnología a nivel nacional y documentos relacionados para la implementación del equipo.
D9: Estrés Hídrico (IUA) | E9: Esta pestaña presenta la introducción a la herramienta para identificar el estado del uso del agua por municipio para año seco y año medio mediante los datos del Índice de Uso de Agua (IUA) presentados en el Estudio Nacional del Agua (ENA) 2022. Aquí se presenta al usuario la información básica para comprender las categorías de clasificación del IUA y los parámetros para comprender las diferencias entre año medio y año seco. Al final de la pestaña se tiene el botón que redirecciona a la herramienta.
D10: IUA_Recomendaciones Inversión | E10: Esta pestaña corresponde a la herramienta de identificación del estado del uso de agua, relacionando la oferta y demanda hídrica, mediante los datos del IUA para año medio y seco del ENA 2022. Consiste en 3 pasos donde el usuario debe seleccionar el departamento y municipio de interés para obtener la categoría en la que fue clasificada la localización de interés. Adicional, se presenta al usuario las recomendaciones de inversiones viables en la localización de interés con base en la categoría de mayor cuantificación para año seco de la(s) subzonas hidrográfica(s). Las categorías de clasificación para año seco que presentaron clasificación de alto, muy alto y crítico adicionan la recomendación de priorizar inversiones que hagan uso de agua lluvia, incluyendo un botón de acceso directo a la herramienta de diseño de sistema de captación de aguas lluvia "HC_SCALL".
D11: HC_SCALL | E11: La herramienta de Cálculo (HC) para diseño de sistemas de agua lluvia en zonas rurales con enfoque en pequeños y medianos productores para uso doméstico (agua cruda o con pretratamiento físico) o uso agrícola (para riego) a través de la estimación de la captación a través de dos medios: i. El volumen de almacenamiento de un tanque de almacenamiento de agua lluvia por captación a través de estructura en techo. ii. El volumen de almacenamiento de una laguna de almacenamiento de agua lluvia. Adicionalmente, se brinda un estimado del volumen de agua de lluvia a recolectar anualmente, el volumen del tanque de primer lavado en el caso de captación por estructura en techo y brinda recomendaciones para el diseño para los tipos de captación (estructura en techo o laguna de almacenamiento de agua lluvia) según haya sido la selección del usuario. Nota: un resultado negativo referente al volumen del SCALL indica que no es viable emplear el sistema de captación seleccionado, dado que las condiciones de la cubierta no favorecen la recolección de agua lluvia o la demanda de agua es superior a la oferta hídrica. En este sentido, es recomendable que el usuario realice un cambio en el material de la cubierta favoreciendo materiales cuyo coeficiente de escorrentía sea cercano a uno o considere otros sistemas de captación como los sugeridos en la pestaña "Tecnologías UEA".
D12: Tecnologías UEA | E12: Listado de alternativas de sistemas urbanos y rurales de drenaje para incentivar el uso eficiente del recurso hídrico mediante la optimización de las agua lluvia. Estos listados incluyen información de la Guía de lineamientos para potenciar el uso del agua lluvia desarrollada por el MADS en 2022. Adicional, se relaciona en que departamentos de los 16 priorizados como vulnerables al desabastecimiento hídrico dentro del ENA 2022 (Magdalena, Cesar, La Guajira, Risaralda, Bolívar, Sucre, Córdoba, Guaviare, Tolima, Atlántico, Norte de Santander, Santander, Valle del Cauca, Quindío, Boyacá, y el departamento de San Andrés, Providencia y Santa Catalina) es factible la implementación de cada alternativa y se listan algunos posibles proveedores de tecnologías en los casos que aplica.
B14: ACCESO A LAS HERRAMIENTAS PROXY DESARROLLADAS | J14: 2022
B15: De clic en el botón de la herramienta a la que desea acceder a continuación:
B17: Desarrollado por: | I17: Arroz | J17: http://www.scielo.org.co/pdf/nova/v14n26/v14n26a07.pdf
B23: Acuse de responsabilidad: La información contenida en esta comunicación no constituye asesoramiento de inversión de ningún tipo y Climate Bonds Iniciative ni Ambire Global (el consorcio) son asesores de inversión. Cualquier referencia a una organización financiera o a un instrumento de deuda o producto de inversión se hace únicamente con fines informativos. Los enlaces a sitios web externos son sólo para fines informativos. El consorcio no acepta ninguna responsabilidad por el contenido de sitios web externos. El consorcio no respalda, recomienda o asesora sobre los méritos financieros o de otro tipo de cualquier instrumento de deuda o producto de inversión y ninguna información contenida en esta comunicación debe ser tomada como tal, ni debe confiarse en cualquier información contenida en esta comunicación para tomar cualquier decisión de inversión. La certificación según el Estándar de Climate Bonds sólo refleja los atributos climáticos del uso de los ingresos de un instrumento de deuda designado. No refleja la solvencia del instrumento de deuda designado, ni su conformidad con las leyes nacionales o internacionales. La decisión de invertir en algo es exclusivamente suya. El consorcio no acepta responsabilidad de ningún tipo, por cualquier inversión que un individuo u organización realice, ni por cualquier inversión realizada por terceros en nombre de un individuo u organización, basada total o parcialmente en cualquier información contenida en esta o cualquier otra comunicación pública de Climate Bonds Initiative.
B25: Última actualización: 19-02-2025

Sheet Prácticas elegibles y DA
D2: PRÁCTICAS ELEGIBLES DENTRO DEL SECTOR USO DEL SUELO (AFOLU) DE LA TAXONOMÍA VERDE DE COLOMBIA APLICABLES A LA HERRAMIENTA PROXIES PARA EL SECTOR AGRICULTURA
B3: INVERSIONES Y PRÁCTICAS PARA LA TRANSICIÓN A LA AGRÍCULTURA ECOLÓGICA
B4: SECTOR | C4: ACTIVIDAD | D4: PRÁCTICAS ELEGIBLES
B5: AFOLU: Uso del suelo | C5: Inversiones y prácticas para la transición hacia la agricultura ecológica.
E6: Tabla 3.5 de la TVC INVERSIONES Y PRÁCTICAS PARA LA TRANSICIÓN A LA AGRÍCULTURA ECOLÓGICA | G6: Análisis con enfasís en alcance de la práctica y tipo de productor
E7: Título | F7: Insumos elegibles | G7: Alcance del tipo de productor | H7: Dimensiones Ambientales (DA)
E8: Prácticas básicas
E9: Rotación de cultivos (en cultivos transitorios o de ciclo corto) | F9: Semillas, plántulas, equipamiento y mano de obra que permita la rotación de cultivos. | G9: Pequeños, medianos y grandes productores | H9: Uso del suelo
E10: Gestión de fertilizantes | F10: Equipamiento y materiales de aplicación de fertilizantes, que permitan una dosificación oportuna (cuando el cultivo lo requiera en base al análisis de suelos) y eficiente. Fertirrigación (técnica que permite la aplicación simultanea de agua y fertilizantes a través del sistema de riego). | G10: Pequeños, medianos y grandes productores | H10: Calidad el aire, Recurso hídrico, Residuos, Uso del suelo
E11: Control de plagas y enfermedades | F11: Insumos para el control biológico y físico de plagas y enfermedades; p. ej., semillas de plantas repelentes, trampas o redes. | G11: Pequeños, medianos y grandes productores | H11: Residuos, Uso del suelo
E12: Conservación del suelo | F12: Semillas, abonos, equipamiento ligero para obras de protección del suelo. | G12: Pequeños, medianos y grandes productores | H12: Uso del suelo
E13: Gestión de recursos hídricos | F13: Seguir el plan de mejora de la finca según documento de Planificación Predial o similar. | G13: Pequeños, medianos y grandes productores | H13: Recurso hídrico, Residuos, Uso del suelo
E14: Prácticas intermedias
E15: Gestión de residuos y tratamiento del agua contaminada con desechos orgánicos | F15: Equipo, herramientas, insumos y mano de obra. | G15: Pequeños, medianos y grandes productores | H15: Recurso hídrico, Residuos
E16: Abonos orgánicos o verdes (uso de coberturas vegetales) | F16: Equipo material, herramientas e insumos (p. ej., composteras, plántulas, mano de obra, lombricompuestos). | G16: Pequeños, medianos y grandes productores | H16: Residuos, Uso del suelo
E17: Prácticas avanzadas o transformativas
E18: Paso de cultivos transitorios o pasturas a sistemas agroforestales (p. ej., a cacao, frutales o forestería) y agrosilvopastoriles | F18: Semillas, plántulas, material, incluyendo el necesario para el desarrollo de viveros, y otros insumos (equipamiento y mano de obra). | G18: Pequeños, medianos y grandes productores | H18: Recurso hídrico, Uso del suelo
E19: Introducción de policultivos o cultivos asociados en cultivos permanentes | F19: Semillas, plántulas, material, también para el desarrollo de viveros, y otros insumos (equipamiento y mano de obra). | G19: Pequeños, medianos y grandes productores | H19: Biotecnología, Uso del suelo
E20: Mejoramiento del material genético en semillas y material reproductivo. Biotecnología en cadenas productivas agrícolas | F20: Insumos de estos materiales y asistencia técnica. | G20: Grandes productores | H20: Biotecnología, Uso del suelo
E21: Adopciones tecnológicas complementarias
E22: Biodigestores | F22: Biodigestores, equipamiento e instalación. | G22: Pequeños, medianos y grandes productores | H22: Residuos, Uso del suelo
E23: Ahorro energético y energías limpias | F23: Compra e instalación de sistemas fotovoltaicos. Servicios de mantenimiento de los equipos para mejorar la eficiencia. | G23: Pequeños, medianos y grandes productores | H23: Eficiencia energética
E25: Tabla 3.6 de la TVC RECONVERSIÓN DE CULTIVOS DE CAFÉ | G25: Análisis con enfasís en alcance de la práctica y tipo de productor
E26: Título | F26: Insumos elegibles | G26: Alcance del tipo de productor | H26: Dimensiones Ambientales (DA)
E27: Prácticas básicas
E28: Conservación del suelo | F28: Matraca, sembradoras de tracción mecánica o animal y palo plantador. | G28: Pequeños, medianos y grandes productores | H28: Uso del suelo
E29: Gestión de fertilizantes | F29: Fertiirrigación (técnica que permite la aplicación simultanea de agua y fertilizantes a través del sistema de riego Equipamiento y materiales de aplicación de fertilizantes, que permitan una dosificación oportuna y eficiente (Hardware y sofware). | G29: Pequeños, medianos y grandes productores | H29: Uso del suelo
E30: Control de plagas y enfermedades | F30: Material vegetal, plántulas nativas y semillas registradas en el ICA. | G30: Pequeños, medianos y grandes productores | H30: Uso del suelo
E31: Prácticas intermedias
E32: Gestión de residuos y tratamiento del agua contaminada con desechos orgánicos | F32: Sistemas aprovechamiento sustratos -abono orgánico, sistemas para canalización aguas mieles a para Fertiirrigación. Canalización para biodigestores, plantas descontaminantes (Osmosis Inversa), tecnologías de tratamiento de aguas residuales producidas por el beneficio húmedo del café. | G32: Pequeños, medianos y grandes productores | H32: Uso del suelo, Recurso hídrico, Residuos
E33: Abonos orgánicos o verdes (uso de coberturas vegetales) | F33: Camas de compostaje, lombriz californiana, tanques y equipos para preparación. | G33: Pequeños, medianos y grandes productores | H33: Uso del suelo
E34: Prácticas avanzadas o transformativas
E35: Introducción de policultivos o cultivos asociados en cultivos permanentes | F35: Plántulas y semillas de especies maderables nativas. | G35: Pequeños, medianos y grandes productores | H35: Uso del suelo
E36: Mejoramiento del material genético en semillas y material reproductivo. Biotecnología en cadenas productivas agrícolas | F36: Semillas de variedades mejoradas, resilientes a la variabilidad climática y a plagas. Que sean semillas certificadas por el ICA y por la Federación de Cafeteros. | G36: Pequeños, medianos y grandes productores | H36: Biotecnología, Uso del suelo
E37: Biodigestores | F37: Equipos para biodigestor, geomembranas, tanques, canaletas, generadores eléctricos de metano. | G37: Medianos y grandes productores | H37: Uso del suelo, Residuos
E38: Ahorro energético y energías limpias | F38: Generador de energía de metano, equipos complementarios e instalaciones, paneles solares, baterías e instalaciones, equipos eólicos, hidro generación eléctrica, equipos complementarios e instalaciones de bajo consumo energético. | G38: Medianos y grandes productores | H38: Eficiencia energética
E40: Tabla 3.7 de la TVC RECONVERSIÓN DE CULTIVOS DE ARROZ | G40: Análisis con enfasís en alcance de la práctica y tipo de productor
E41: Título | F41: Insumos elegibles | G41: Alcance del tipo de productor | H41: Dimensiones Ambientales (DA)
E42: Prácticas básicas
E43: Conservación del suelo | F43: Herramientas para siembra y cosecha manual o animal. | G43: Pequeños, medianos y grandes productores | H43: Uso del suelo
E44: Gestión del recurso hídrico | F44: Membranas cobertura canales, medidores caudales, equipos de sistematización control y calidad del agua. | G44: Pequeños, medianos y grandes productores | H44: Recurso hídrico
E45: Prácticas intermedias
E46: Control de plagas y enfermedades | F46: Material vegetal, semillas, plántulas nativas, semillas ICA | G46: Pequeños, medianos y grandes productores | H46: Uso del suelo
E47: Mejoramiento del material genético en semillas y material reproductivo. | F47: Material vegetal certificado por el ICA y Fedearroz. | G47: Pequeños, medianos y grandes productores | H47: Biotecnología, Uso del suelo
E48: Protección de cuerpos de agua, reducción estrés hídrico | F48: Repositorios, pocetas necesarias para el cultivo del arroz secano y para la adecuación de terrenos. | G48: Pequeños, medianos y grandes productores | H48: Recurso hídrico
E49: Prácticas avanzadas o transformativas
E50: Abonos orgánicos o verdes | F50: Equipos para la adecuación de los suelos con abono orgánico: camas de lumbricultura, fertirriegos. | G50: Pequeños, medianos y grandes productores | H50: Uso del suelo, Residuos
E51: Control Biológico | F51: Materiales para procesos biológicos requeridos en el control natural (vectores, peces, patos, etc.). P. ej., 150 patos por hectárea. | G51: Pequeños, medianos y grandes productores | H51: Uso del suelo
E52: Biodigestores | F52: Equipos para biodigestor, geomembranas, tanques, canaletas, generadores eléctricos de metano. | G52: Pequeños, medianos y grandes productores | H52: Residuos, Uso del suelo
E53: Ahorro energético y energías limpias | F53: Generador de energía de metano, equipos complementarios e instalaciones, paneles solares, baterías e instalaciones, equipos eólicos, hidro generación eléctrica, equipos complementarios e instalaciones de bajo consumo energético. | G53: Medianos y grandes productores | H53: Eficiencia energética
E55: Tabla 3.8 de la TVC RECONVERSIÓN DE CULTIVOS DE CULTIVOS FRUTALES | G55: Análisis con enfasís en alcance de la práctica y tipo de productor
E56: Título | F56: Insumos elegibles | G56: Alcance del tipo de productor | H56: Dimensiones Ambientales (DA)
E57: Prácticas básicas
E58: Conservación del suelo | F58: Matraca, sembradoras de tracción mecánica o animal y palo plantador. | G58: Pequeños, medianos y grandes productores | H58: Uso del suelo
E59: Gestión del recurso hídrico | F59: Sistemas de riego eficiente: aspersión, goteo, software irrigación controlada | G59: Pequeños, medianos y grandes productores | H59: Recurso hídrico, Residuos, Uso del suelo
E60: Control de plagas y enfermedades | F60: Material vegetal, semillas, plántulas nativas, semillas ICA. | G60: Pequeños, medianos y grandes productores | H60: Uso del suelo
E61: Prácticas intermedias
E62: Mejoramiento del material genético en semillas y material reproductivo. Biotecnología en cadenas productivas agrícolas | F62: Semillas de variedades mejoradas, resilientes a la variabilidad climática y a plagas. Semillas certificadas por el ICA. | G62: Grandes productores | H62: Biotecnología, Uso del suelo
E63: Introducción de policultivos o cultivos asociados en cultivos permanentes | F63: Frutales: Material vegetal, plántulas y semillas ICA. Maderables: Plántulas, semillas de especies maderables nativas. Los insumos necesarios para implementar un sistema en rectángulo: 3 metros entre hileras y 2 metros entre plantas. | G63: Medianos y grandes productores | H63: Biotecnología, Uso del suelo
E64: Prácticas avanzadas o transformativas
E65: Abonos orgánicos o verdes | F65: Camas de compostaje, lombriz californiana, tanques, equipos para preparación. | G65: Pequeños, medianos y grandes productores | H65: Uso del suelo, Residuos
E66: Protección de cuerpos de agua, reducción estrés hídrico | F66: Material necesario para la adecuación del terreno e insumos para pocetas, tanques y sistema hídrico aguas. | G66: Pequeños, medianos y grandes productores | H66: Recurso hídrico
E67: Biodigestores | F67: Equipos e insumos como biodigestor, tanques, geomembranas, canaletas, etc. Generadores eléctricos de biogás. | G67: Pequeños, medianos y grandes productores | H67: Residuos, Eficiencia energética
E68: Ahorro energético y energías limpias | F68: Generador de energía de metano, equipos complementarios e instalaciones, paneles solares ,baterías e instalaciones, equipos eólicos, hidro generación eléctrica, equipos complementarios e instalaciones de bajo consumo energético. | G68: Medianos y grandes productores | H68: Eficiencia energética
E70: Tabla 3.9 de la TVC RECONVERSIÓN DE CULTIVOS DE CACAO | G70: Análisis con enfasís en alcance de la práctica y tipo de productor
E71: Título | F71: Insumos elegibles | G71: Alcance del tipo de productor | H71: Dimensiones Ambientales (DA)
E72: Prácticas básicas
E73: Conservación del suelo | F73: Matraca, sembradoras de tracción mecánica o animal y palo plantador. | G73: Pequeños, medianos y grandes productores | H73: Uso del suelo
E74: Gestión de fertilizantes | F74: fertiirrigación (técnica que permite la aplicación simultanea de agua y fertilizantes a través del sistema de riego Equipamiento y materiales de aplicación de fertilizantes, que permitan una dosificación oportuna y eficiente (Hardware y Software). | G74: Pequeños, medianos y grandes productores | H74: Uso del suelo, Residuos
E75: Control de plagas y enfermedades | F75: Material vegetal como semillas y plántulas nativas. Semillas deben estar registradas en el ICA. | G75: Pequeños, medianos y grandes productores | H75: Uso del suelo
E76: Prácticas intermedias
E77: Gestión de residuos y tratamiento del agua contaminada con desechos orgánicos | F77: Sistemas aprovechamiento sustratos -abono orgánico, sistemas para canalización aguas residuales para Fertiirrigación. Canalización para biodigestores, plantas descontaminantes (Osmosis Inversa), Sistema de tratamiento de aguas residuales. | G77: Pequeños, medianos y grandes productores | H77: Residuos, Uso del suelo, Recurso hídrico
E78: Introducción de policultivos o cultivos asociados en cultivos permanentes | F78: Plántulas y semillas de especies maderables nativas. Material vegetal, plántulas y semillas ICA. | G78: Pequeños, medianos y grandes productores | H78: Biotecnología, Uso del suelo
E79: Prácticas avanzadas o transformativas
E80: Abonos Orgánicos | F80: Camas de compostaje, lombriz californiana, tanques y equipos para preparación. | G80: Pequeños, medianos y grandes productores | H80: Uso del suelo
E81: Protección de cuerpos de agua, reducción estrés hídrico | F81: Materiales para la adecuación del terreno para pocetas, tanques y sistema hídrico. | G81: Pequeños, medianos y grandes productores | H81: Recurso hídrico
E82: Biodigestores | F82: Equipos para biodigestor, geomembranas, tanques, canaletas, etc., también generadores eléctricos de biogás. | G82: Pequeños, medianos y grandes productores | H82: Uso del suelo, Residuos, Eficiencia energética
E83: Ahorro energético y energías limpias | F83: Generador de energía de metano, equipos complementarios e instalaciones, paneles solares ,baterías e instalaciones, equipos eólicos, hidro generación eléctrica, equipos complementarios e instalaciones de bajo consumo energético. | G83: Medianos y grandes productores | H83: Eficiencia energética
K85: Volume 192,
B86: Desarrollado por: | J86: Arroz | K86: http://www.scielo.org.co/pdf/nova/v14n26/v14n26a07.pdf
B92: Acuse de responsabilidad: La información contenida en esta comunicación no constituye asesoramiento de inversión de ningún tipo y Climate Bonds Iniciative ni Ambire Global (el consorcio) son asesores de inversión. Cualquier referencia a una organización financiera o a un instrumento de deuda o producto de inversión se hace únicamente con fines informativos. Los enlaces a sitios web externos son sólo para fines informativos. El consorcio no acepta ninguna responsabilidad por el contenido de sitios web externos. El consorcio no respalda, recomienda o asesora sobre los méritos financieros o de otro tipo de cualquier instrumento de deuda o producto de inversión y ninguna información contenida en esta comunicación debe ser tomada como tal, ni debe confiarse en cualquier información contenida en esta comunicación para tomar cualquier decisión de inversión. La certificación según el Estándar de Climate Bonds sólo refleja los atributos climáticos del uso de los ingresos de un instrumento de deuda designado. No refleja la solvencia del instrumento de deuda designado, ni su conformidad con las leyes nacionales o internacionales. La decisión de invertir en algo es exclusivamente suya. El consorcio no acepta responsabilidad de ningún tipo, por cualquier inversión que un individuo u organización realice, ni por cualquier inversión realizada por terceros en nombre de un individuo u organización, basada total o parcialmente en cualquier información contenida en esta o cualquier otra comunicación pública de Climate Bonds Initiative.

Sheet Referencias
C2: FUENTES RELEVANTES PARA EL DESARROLLO DE LOS SEGUNDOS PROXIES DE IMPLEMENTACIÓN DE LA TVC CON ENFOQUE EN EL SECTOR AGRÍCULTURA PARA PEQUEÑOS Y MEDIANOS PRODUCTORES
B3: Gobierno de Colombia, 2024. Segundo desarrollo de proxies para la implementación de la TVC - sector Agricultura | C3: Manual del usuario anexo a la presente herramienta para contextualización de la navegabilidad y uso de la segunda herramienta de proxies presentada en formato Excel.
B4: Gobierno de Colombia, 2024. Proxies de Implementación de la TVC para los sectores Agua, Transporte y AFOLU | C4: Herramienta Excel desarrollada para las actividades A4 (Inversiones para el uso eficiente del agua ), T4 (Transporte interurbano de carga y pasajeros), T5 (Transporte particular) y para las buenas prácticas para la agrícultura ecológica y la ganadería/forestería sostenible (tablas 3.4, 3.5 y 3.10) de la TVC.
B5: Gobierno de Colombia, 2024. Primera versión del desarrollo de proxies para la implementación de la Taxonomía Verde de Colombia | C5: Manual del usuario anexo a la presente herramienta para contextualización de la navegabilidad y uso de la primera herramienta de proxies presentada en formato Excel.
B6: CBI-Ambire Global, 2024. Nota Conceptual | C6: Documento técnico de uso institucional dirigido a la Mesa de Taxonomía Verde y partes interesadas donde se evaluó el estado de las necesidades de desarrollo de herramientas para la priorización de medidas para la implementación de la TVC en el sector Agricultura, con enfoque en los pequeños y medianos productores.
B7: GIZ, 2023. Manual de agricultura sostenible con énfasis en biodiversidad y cambio climático. Ficha categoría B - Reservorios de agua. | C7: Las fichas Categoría B son medidas de sostenibilidad bioclimáticas con un grado de complejidad técnica Media, que podrían ser complementarias o bien necesarias en la implementación de otras actividades, incluidas en: Manual de agricultura sostenible con énfasis en biodiversidad y cambio climático.
B8: Gobierno de Colombia, 2023. Guía general de implementación de la Taxonomía Verde de Colombia | C8: Insumo complementario que hace parte del Toolkit de la TVC e incluye instrumentos de aplicación e implementación de la Taxonomía.
B9: IDEAM, 2023. Estudio Nacional del Agua-ENA 2022 | C9: Es un informe clave elaborado por el Instituto de Hidrología, Meteorología y Estudios Ambientales (IDEAM). Este documento ofrece un análisis exhaustivo sobre la disponibilidad, calidad y uso del recurso hídrico en el país, con el objetivo de apoyar la toma de decisiones para una gestión sostenible del agua.
B10: Gobierno de Colombia, 2022. Taxonomía Verde de Colombia | C10: Insumo principal para el cual se realizó el desarrollo de los proxies para implementación de cuatro de sus actividades en tres sectores económicos priorizados.
B11: IDEAM.2022. Geomorfologia de Colombia. | C11: Documento técnico sobre la variabilidad geomorfológica del territorio nacional y brinda información sobre variabilidad climática.
B12: MADS, 2022. Guía de los lineamientos para potenciar el uso de agua lluvia | C12: Documento técnico con lineamientos de orientación dirigidos a las autoridades ambientales para su ejercicio de administración del recurso hídrico y a los usuarios en general con el objetivo de orientarlos sobre als posibilidades de uso o de gestión de las aguas lluvias.
B13: FAO, PNUD, Gobierno de Chile, 2021. Manual de Biogás. Santiago de Chile. | C13: Manual teórico sobre el biogás. Este manual contiene información relevante respecto al a las tecnologías del biogás, los principales biodigestores en el medio rural, así como el uso de biogás.
B14: MinAmbiente, 2021. Linea base del Plan Estratégico Macrocuenca Caribe. | C14: Formula el Plan Estratégico (en adelante PE) para la Macrocuenca Caribe.
B15: MinAmbiente, 2021. Linea base del Plan Estratégico Macrocuenca Magdalena Cauca. | C15: Formula el PEpara la Macrocuenca Magdalena Cauca.
B16: Mosquera, 2020. Diseño de un sistema de recolección de aguas lluvia para abastecer el riego de cultivos vegetales en una finca en villa de leyva, Boyacá, Colombia. | C16: El desarrollo investigativo presenta un modelo del diseño del sistema de recolección de aguas lluvia seleccionado para la finca. El modelo contempla mapas de la finca, materiales y equipos más relevantes, y un plano del diseño del sistema de recolección de aguas lluvia seleccionado.
B17: IPCC, 2019. Reajuste de los lineamientos para formulación de Inventarios de emisiones de gases de efecto invernadero del IPCC | C17: El Reajuste de las Directrices del IPCC de 2019 no tiene por objeto revisar las Directrices del IPCC de 2006, sino actualizar, complementar y/o profundizar sus orientaciones en los casos en que se hayan detectado brechas o datos científicos obsoletos. No sustituirá a las Directrices del IPCC de 2006. Debe utilizarse junto con las Directrices del IPCC de 2006. Para la presente herramienta se usaron los Capítulos 10 y 11 del volumen 4 del reporte.
B18: FAO, 2019. Guía teórico-práctica sobre el biogás y los biodigestores. Colección Documentos Técnicos N° 12. Buenos Aires. | C18: Guía teórico-práctica sobre el biogás y los biodigestores. En este manual se contienen recomendaciones, así como ejemplos de teconologías de biodigestores.
B19: CAWST, 2017. Manual técnico para filtro lento de arena intermitente | C19: Guía para posibles implementadores del filtro lento de arena intermitente (FLAI, también conocido como filtro de biorena escolar). Este manual resume los principios y las buenas prácticas para adaptar, instalar, poner en servicio y mantener el sistema de filtrado.
B20: MinAmbiente (2017). Estructuración de lineamientos estratégicos Macrocuenca Orinoco | C20: Documento técnico relacionado a los acuerdos, definiciones y linea base para la formulación del Plan Estratégico de la Macrocuenca Orinoco Pemo.
B21: MinAmbiente, 2015. Catálogo de Subzonas Hidrográficas de las Macrocuencas Magdalena Cauca y Caribe. | C21: Documento técnico desarrollado para los talleres de "Análisis Estratégico" en la formulación de los Planes Estratégicos de las Macrocuencas Magdalena Cauca y Caribe. Brinda información cartográfica sobre los municipios de influencia de cada una de las subcuencas abarcadas dentro de estas macrocuencas.
B22: MinAmbiente, 2015. Documentos de Planificación. Análisis de documentos Fase I y II Macrocuenca Amazonas. | C22: Documento técnico desarrollado para a modo de lecciones aprendidas sobre el Plan Estratégico de la Macrocuenca Magdalena-Cauca y Caribe.
B23: FAO, 2014. Compendio sobre la recolección del agua de lluvia para la agricultura en la subregión del Caribe. | C23: Herramienta práctica para formar y desarrollar la capacidad humana en la subregión del Caribe en la práctica de la recolección del agua de lluvia. La aplicación de técnicas de recolección del agua de lluvia producirá mejoras mensurables en los medios de subsistencia y la seguridad alimentaria de los hogares, generadas por el acceso a recursos hídricos de calidad para el riego.
B24: FAO, 2013. Manual de compostaje del agricultor - experiencias en América Latina | C24: Es una guía de aprendizaje sobre la producción de compost a nivel familiar y de pequeña agricultura, preparada por la Oficina Regional de la FAO para América Latina y El Caribe, en colaboración con el Grupo de Investigaciones en Suelo, Agua, Planta y Microorganismos de la Universidad Técnica Federico Santa María.
B25: IIAP, 2013. Informe Final - Plan Estratégico de la Macrocuenca del Pacífico. | C25: Documento técnico que recopila y sistematiza la información ambiental, socioeconómica y cultural existente sobre la macrocuenca y con base en ella identificar los principales conflictos relacionados con el recurso hídrico y los actores clave para la gestión del agua en el área hidrográfica, y la Fase II – Diagnóstico: cuyo propósito fue elaborar los análisis de la evolución y tendencia del recurso hídrico en la macrocuenca, estimar los servicios ambientales que brinda el agua en la macrocuenca, así como, las variables clave para la transformación del recurso hídrico en esta Región Pacífica.
B26: MinVivienda, 2012. Reglamento técnico del Sector de Agua Potable y Saneamiento Básico - RAS (titulo F) | C26: El titulo F (Sistemas de Aseo Urbano) establece los criterios básicos, los requisitos mínimos y las buenas prácticas técnicas de ingeniería que deben reunir los diferentes procesos involucrados en la conceptualización, el diseño, la implementación y construcción, la supervisión técnica, la puesta en marcha, la operación, el mantenimiento, el cierre, la clausura y la postclausura y las actividades de salvamento de infraestructura de los diferentes componentes y subcomponentes del sistema de aseo urbano que se desarrollen en el país, con el fin de garantizar la seguridad, durabilidad, funcionalidad, calidad, efectividad, sostenibilidad, redundancia e integralidad dentro del nivel de complejidad determinado para el proyecto.
B27: SENARA, PFPAS, & MAG. (2010). Manual de especificaciones técnicasbásicas para la elaboración de estructuras de captación de agua lluvia en el sector agropecuario de Costa Rica y recomendaciones para su utilización. | C27: Dicho manual está orientado a pequeños y medianos productores agropecuarios e, incluye, el diseño de las estructuras que se considera pueden ser utilizables en las distintas regiones del estudio.
B28: OPS, 2004. Guía de diseño para captación del agua de lluvia | C28: Guía simplificada para el diseño de sistemas de captación de agua pluvial en techos para consumo humano y/o agrícola.
B29: Gobierno de Colombia, 2000. RAS 2000, Titulo F. | C29: El RAS 2000, en su Título F, hace referencia al Reglamento Técnico para el Diseño y Construcción de Sistemas de Acueducto y Alcantarillado en Colombia. Este documento es emitido por el Ministerio de Vivienda, Ciudad y Territorio de Colombia y establece las normas y directrices para el diseño, construcción, operación y mantenimiento de los sistemas de acueducto y alcantarillado en el país. El Título F del RAS 2000 se centra particularmente en las especificaciones y normas técnicas relacionadas con los sistemas de alcantarillado.
B31: Desarrollado por: | H31: Arroz | I31: http://www.scielo.org.co/pdf/nova/v14n26/v14n26a07.pdf
B37: Acuse de responsabilidad: La información contenida en esta comunicación no constituye asesoramiento de inversión de ningún tipo y Climate Bonds Iniciative ni Ambire Global (el consorcio) son asesores de inversión. Cualquier referencia a una organización financiera o a un instrumento de deuda o producto de inversión se hace únicamente con fines informativos. Los enlaces a sitios web externos son sólo para fines informativos. El consorcio no acepta ninguna responsabilidad por el contenido de sitios web externos. El consorcio no respalda, recomienda o asesora sobre los méritos financieros o de otro tipo de cualquier instrumento de deuda o producto de inversión y ninguna información contenida en esta comunicación debe ser tomada como tal, ni debe confiarse en cualquier información contenida en esta comunicación para tomar cualquier decisión de inversión. La certificación según el Estándar de Climate Bonds sólo refleja los atributos climáticos del uso de los ingresos de un instrumento de deuda designado. No refleja la solvencia del instrumento de deuda designado, ni su conformidad con las leyes nacionales o internacionales. La decisión de invertir en algo es exclusivamente suya. El consorcio no acepta responsabilidad de ningún tipo, por cualquier inversión que un individuo u organización realice, ni por cualquier inversión realizada por terceros en nombre de un individuo u organización, basada total o parcialmente en cualquier información contenida en esta o cualquier otra comunicación pública de Climate Bonds Initiative.

Sheet HC_Valorización Orgánicos
D2: HERRAMIENTA DE CÁLCULO PARA EL POTENCIAL ENERGÉTICO Y DISEÑO DE BIODIGESTORES Y/O CELDAS DE COMPOSTAJE PARA RESIDUOS SÓLIDOS PRODUCTO DE LA ACTIVIDAD AGROPECUARIA Y DOMÉSTICA DE PEQUEÑOS Y MEDIANOS PRODUCTORES
C4: Instrucciones de diligenciamiento Bienvenido a la herramienta de cálculo para estimar el potencial de valorización de residuos orgánicos producto de la actividad agropecuaria. Las celdas en color AZUL corresponden a celdas con listas despleglables donde el usuario debe seleccionar una opción según el tipo de proyecto de su interés. El usuario debe ingresar manualmente los datos del proyecto en cada celda que se encuentre resaltada en color AMARILLO. Estos datos serán usados para la estimación del potencial de biogás de los residuos valorizados así como la estimación de la reducción de los Gases Efecto Invernadero (GEI) por el tratamiento biológico de los residuos a través de las tecnologías de digestión anaeróbica o compostaje. Los resultados de los cálculos serán visibles en las celdas resaltadas en color VERDE. Este análisis recopiló información climática sobre municipios en Colombia y abarca 1039 municipios de los 1101 municipios existentes en el país (94.4%). NOTA: Recuerde habilitar la ejecución de macros para el funcionamiento de la herramienta de cálculo de emisiones, sin estas la calculadora NO funcionará. | G4: Botones para el funcionamiento de la herramienta
C6: 0. Ingreso de información general
C7: Paso 0. Información general | D7: Seleccione el departamento donde se desarrollará el proyecto | E7: Dpto_SanAndrés
D8: Seleccione el municipio donde se desarrollará el proyecto | E8: San Andrés
D9: ¿Qué tipo de residuos orgánico tiene en su finca? | E9: Estiercol pecuario
C11: 1. Ingreso de información - Sector agropecuario
C13: DATOS SECTOR PECUARIO
C15: Instrucciones: Seleccione los tipos de ganado con los que cuenta en su finca y el correspondiente tamaño (varía dependiendo si es bovino, porcino o avícola). Una vez ingresados estos datos favor ingrese el número de cabezas tanto por tipo de ganado como por tamaño seleccionado. Listado de tipos de ganado y tamaños: - Ganado bovino: ternera (menor 1 año), ganado pequeño (entre 1 a 2 años), ganado mediano (entre 2 a 3 años) y ganado grande (mayor a 3 años). - Ganado porcino: ganado pequeño (lechón 1-60 días), ganado mediano (levante 61-120 días) y ganado grande (ceba 121-180 días, hembras reemplazo 120-240 días, hembras aaaaaaaaaaaaaaaaaaa a cría más 240 días, machos reproductores más 180 días). - Avícola: aves pequeñas (levante), aves medianas (engorde) y aves grandes (postura y reproductoras).
A17: 1 | C17: Información general del sector | D17: ¿Cuál es el tipo de sector pecuario presente en su finca? | E17: Sector porcicola
D18: ¿Qué tamaño(s) de ganado bovino tiene? | E18: Seleccione un tamaño
D19: ¿Qué tamaño(s) de ganado porcino tiene? | E19: Mediano
D20: ¿Qué tamaño(s) de ganado avícola tiene? | E20: Seleccione un tamaño
A21: 2 | C21: Información ganado bovino | D21: ¿Cúantos bovinos de tamaño ternera tiene en su finca?
A22: 3 | D22: ¿Cúantos bovinos de tamaño pequeño tiene en su finca?
A23: 4 | D23: ¿Cúantos bovinos de tamaño mediano tiene en su finca?
A24: 5 | D24: ¿Cúantos bovinos de tamaño grande tiene en su finca?
A25: 6 | C25: Información ganado porcino | D25: ¿Cúantos porcinos de tamaño pequeño tiene en su finca?
A26: 7 | D26: ¿Cúantos porcinos de tamaño mediano tiene en su finca? | E26: 15
A27: 8 | D27: ¿Cúantos porcinos de tamaño grande tiene en su finca?
A28: 9 | C28: Información avícola | D28: ¿Cúantas aves de tamaño pequeño tiene en su finca?
A29: 10 | D29: ¿Cúantas aves de tamaño mediano tiene en su finca?
A30: 11 | D30: ¿Cúantas aves de tamaño grande tiene en su finca?
C32: DATOS SECTOR AGRÍCOLA
C34: Instrucciones: En esta sección del sector agrícola el usuario deberá seleccionar el tipo de cultivo sembrado en su finca o área de cultivo. Dependiendo del tipo de cultivo, el usuario podrá ingresar la cantidad de producción anual por cúltivo de café como el área de tierra cúltivada anual de los cúltivos seleccionados. Listado de cultivos por producción anual: Listado de cultivos por área cultivada al año: - café - arroz - banano - maíz - caña de azucar - trigo - caña panelera - papa - platano - tomate - cebolla - cacao
C36: Información general sobre número y tipos de cultivos existentes en la finca | D36: Del listado mencionado en el recuadro anterior blanco, ¿Cúantos tiene en su finca? Favor seleccione una opción del listado entre 1 y 12. | E36: Seleccione la cantidad de cultivos
D37: Seleccione el tipo de cultivo No. 1 que existe en su finca: | E37: Seleccione el tipo de cultivo
B38: Seleccione el tipo de cultivo | D38: Seleccione el tipo de cultivo No. 2 que existe en su finca: | E38: Seleccione el tipo de cultivo
B39: Seleccione el tipo de cultivo | D39: Seleccione el tipo de cultivo No. 3 que existe en su finca: | E39: Seleccione el tipo de cultivo
B40: Seleccione el tipo de cultivo | D40: Seleccione el tipo de cultivo No. 4 que existe en su finca: | E40: Seleccione el tipo de cultivo
B41: Seleccione el tipo de cultivo | D41: Seleccione el tipo de cultivo No. 5 que existe en su finca: | E41: Seleccione el tipo de cultivo
B42: Seleccione el tipo de cultivo | D42: Seleccione el tipo de cultivo No. 6 que existe en su finca: | E42: Seleccione el tipo de cultivo
B43: Seleccione el tipo de cultivo | D43: Seleccione el tipo de cultivo No. 7 que existe en su finca: | E43: Seleccione el tipo de cultivo
B44: Seleccione el tipo de cultivo | D44: Seleccione el tipo de cultivo No. 8 que existe en su finca: | E44: Seleccione el tipo de cultivo
B45: Seleccione el tipo de cultivo | D45: Seleccione el tipo de cultivo No. 9 que existe en su finca: | E45: Seleccione el tipo de cultivo
B46: Seleccione el tipo de cultivo | D46: Seleccione el tipo de cultivo No. 10 que existe en su finca: | E46: Seleccione el tipo de cultivo
B47: Seleccione el tipo de cultivo | D47: Seleccione el tipo de cultivo No. 11 que existe en su finca: | E47: Seleccione el tipo de cultivo
D48: Seleccione el tipo de cultivo No. 12 que existe en su finca: | E48: Seleccione el tipo de cultivo
B49: Seleccione el tipo de cultivo | C49: Producción anual estimada de cada cultivo seleccionado | D49: Aproximadamente, ¿cúantos kilogramos produce su cúltivo de café al año? | F49: kg/año | G49: Café
D50: Aproximadamente, ¿cúantos kilogramos produce su cúltivo de banano al año? | F50: kg/año | G50: Banano
D51: Aproximadamente, ¿cúantos kilogramos produce su cúltivo de caña de azucar al año? | F51: kg/año | G51: Caña de Azucar
D52: Aproximadamente, ¿cúantos kilogramos produce su cúltivo de caña panelera al año? | F52: kg/año | G52: Caña Panelera
D53: Aproximadamente, ¿cúantos kilogramos produce su cúltivo de platano al año? | F53: kg/año | G53: Platano
D54: ¿Cúal es el área del cultivo de arroz que siembra al año? | F54: metros cuadrados | G54: Arroz
D55: ¿Cúal es el área del cultivo de maíz que siembra al año? | F55: metros cuadrados | G55: Maíz
D56: ¿Cúal es el área del cultivo de trigo que siembra al año? | F56: hectáreas | G56: Trigo
D57: ¿Cúal es el área del cultivo de papa que siembra al año? | F57: hectáreas | G57: Papas
D58: ¿Cúal es el área del cultivo de tomate que siembra al año? | F58: hectáreas | G58: Tomate
D59: ¿Cúal es el área del cultivo de cebolla que siembra al año? | F59: hectáreas | G59: Cebolla
D60: ¿Cúal es el área del cultivo de cacao que siembra al año? | F60: metros cuadrados | G60: Cacao
C62: 2. Digestión anaerobia con biodigestores tipo rurales- Resultados
C63: RESULTADOS: Digestión Anaeróbica de residuos pecuarios | D63: Volumen de biogás generado | E63: 574.875 | F63: m3/año
D64: Cantidad de abono orgánico seco | E64: 3285 | F64: kg/mes
D65: Volumen de carga diaria del biodigestor | E65: 90 | F65: l/día
D66: Tiempo de retención en el biodigestor | E66: 35 | F66: días
D67: Volumen estimado del biodigestor | E67: 3.15 | F67: m³
D68: Relación Carbono-Nitrógeno (C/N) de los residuos orgánicos entrantes | E68: 16 | F68: C/N
D69: Porcentaje de Sólidos totales de los residuos orgánicos entrantes | E69: 29.2 | F69: %
C71: Nota aclaratoria: Las equivalencias mostradas a continuación representan los equipos que podrían ser abastecidos diaríamente por el uso del biogás para una familia colombiana de cinco (5) personas. Si se desea emplear una parte del biogás directamente para cocción, este podrá ser empleado para una estufa de dos hornillas. Además, otra parte del biogás podrá ser empleado para la generación de electricidad con autoconsumo del propio hogar en equipos como: lámparas, calentador de agua, refrigerador, entre otros.
C73: RESULTADOS: Dos métodos de empleo del biogás generado: Biogás para cocción ó Generación de energía eléctrica | D73: Volumen de biogás generado | E73: 1.575 | F73: m3/día
D74: El biogás generado alcanza para alimentar este número de estufas de dos hornillas: (Asumiendo un consumo de biogás de 0.33 m3/h por estufa de dos hornilas) | E74: 0 | F74: estufa(s) de dos hornillas
D75: El biogás generado alcanza para generar esta cantidad de electricidad: (Asumiendo una capacidad instalada de 600W en la finca) | E75: 2.1 | F75: kWh/día de electricidad generada
D76: El biogás generado alcanza para alimentar esta cantidad de lámparas con electricidad: (Asumiendo un consumo de biogás 0.03 m³/hr por lámpara) | E76: 5 | F76: lámpara(s)
D77: El biogás generado alcanza para alimentar esta cantidad de calentadores de agua promedio con electricidad: (Asumiendo un consumo de biogás de 2.2 m³/h por calentador) | E77: 0 | F77: calentador(es) de agua
D78: El biogás generado alcanza para alimentar esta cantidad de refrigeradores promedio con electricidad: (Asumiendo un consumo de biogás de 0.092 m3/h por refrigerador) | E78: 0 | F78: refrigerador(es)
C80: 3. Compostaje en pilas con volteo manual - Resultados
C81: RESULTADOS: Compostaje de residuos agrícolas | D81: Cantidad de abono orgánico generado | F81: kg/mes
D82: Área de descomposición de residuos requerida | F82: m2
D83: Área de maduración de residuos requerida | F83: m2
D84: Área de post-tratamiento de residuos requerida | F84: m2
D85: Número pilas para proceso de compostaje | F85: Pilas de compostaje
D86: Longitud de cada pila de compostaje requerida | F86: m/pila
C88: 4. Estimación de las emisiones de GEI
C89: RESULTADOS: Reducción de emisiones de GEI respecto un escenario base | D89: Emisiones de GEI por linea base de disposición de residuos o9rgánicos | E89: 9.494957817 | F89: t CO2e/año
D90: Emisiones de GEI por el tratamiento biológico de los residuos orgánicos | E90: 2.183782116 | F90: t CO2e/año
D91: Potencial reducción de emisiones de GEI | E91: 7.311175701 | F91: t CO2e/año
D92: Porcentaje de potencial reducción de emisiones de GEI | E92: 80 | F92: %
C94: Descripción de las emisiones de GEI por linea base de disposición de residuos orgánicos
C95: Sector bovino: El escenario base es la situación en la que se permite que el estiércol se descomponga anaeróbicamente dentro de los límites del proyecto. Posteriormente, el estiércol se utiliza como abono orgánico sin tratamiento. No hay recuperación de biogás.
C96: Sector porcicola: El escenario base es la situación en la que se permite que el estiércol se descomponga anaeróbicamente dentro de los límites del proyecto. Posteriormente, el estiércol se utiliza como abono orgánico sin tratamiento. No hay recuperación de biogás.
C97: Sector avícola: El escenario base es la situación en la que, en ausencia de actividad de proyecto la gallinaza se higieniza en almacenamiento durante un periodo de tiempo en pilas no confinadas para generar seguridad. Posteriormente, el estiércol se utiliza como abono orgánico sin tratamiento. No hay recuperación de biogás.
C98: Sector agrícola: El escenario base es la situación en la que, en ausencia de actividad de proyecto, los residuos agrícolas se almacenan durante un periodo de tiempo en pilas no confinadas para generar seguridad. No hay generación de abono orgánico.
C100: Descripción de las emisiones de GEI por el tratamiento biológico de los residuos orgánicos
C101: Sector bovino: El escenario proyecto contempla el tratamiento de los residuos orgánicos a través de un sistema de digestión anaerobia con producción de energía electrica a través del aprovechamiento del biogás generado por proceso de cogeneración. Además, también cuenta con producción de digestato para su aprovechamiento.
C102: Sector porcicola: El escenario proyecto contempla el tratamiento de los residuos orgánicos a través de un sistema de digestión anaerobia con producción de energía electrica a través del aprovechamiento del biogás generado por proceso de cogeneración. Además, también cuenta con producción de digestato para su aprovechamiento.
C103: Sector avícola: El escenario proyecto contempla el tratamiento de los residuos orgánicos a través de un sistema de digestión anaerobia con producción de energía electrica a través del aprovechamiento del biogás generado por proceso de cogeneración. Además, también cuenta con producción de digestato para su aprovechamiento.
C104: Sector agrícola: El escenario proyecto contempla la valorización de los residuos agrícolas a través del compostaje en pilas con volteo manual. El abono generado sirve como enmienda de suelo. No hay generación de energía.

Sheet Tecnologías Biodigestores (hidden)
C2: TECNOLOGÍAS DE BIODIGESTORES PARA EL TRATAMIENTO BIOLÓGICO DE RESIDUOS AGROPECUARIOS
B3: Tipo de biodigestor | C3: Tipo de material entrante | D3: Tamaño | E3: Material de construcción | F3: Principales características | G3: Principios de funcionamiento | H3: Diagrama de referencia
B4: Modelo indio: Cúpula flotante | C4: Mixto | D4: El tamaño del biodigestor puede variar en función de la cantidad de residuos disponible. | E4: Mampostería o estructura de concreto y un depósito de gas móvil en forma de campana. | F4: Son enterrados y verticales, asemejando a un pozo. Se cargan por gravedad una vez al día, con un volumen de mezcla que depende del tiempo de fermentación o retención y producen una cantidad diaria más o menos constante de biogás si se mantienen las condiciones de operación. | G4: Cúpula flotante que sube con la acumulación de biogás. Genera un abastecimiento continuo de biogás y fertilizante, caracterizándose por funcionar como depósito del gas producido, es decir, es el único tipo de biodigestores que tienen un depósito de biogás interior. Este tipo de digestor presenta una buena eficiencia de producción de biogás, generándose entre 0.5 y 1.0 volumen de gas/volumen de digestor por día.
B5: Modelo chino: Cúpula fija de volumen constante | C5: Agrícola | D5: El tamaño del biodigestor puede variar en función de la cantidad de residuos disponible. | E5: Mampostería y un domo fijo e inmóvil cerrado donde se almacena el biogás. | F5: Tanques cilíndricos con el techo y el piso en forma de domo y se construyen totalmente enterrados. | G5: El digestor se llena con residuos agrícolas compostados mezclados con lodos activos de otro digestor, a través de la cubierta superior, que es removible. Una vez cargadoí, es alimentado diariamente con los residuos que se encuentren disponibles, provenientes de la letrina y de los animales domésticos, a través del tubo de carga el cual llega a la parte media del digestor. Se generan entre 0.15 y 0.20 volúmenes de gas por volumen de digestor/día.
B6: Biodigestor de bolsa plástica | C6: Mixto | D6: El tamaño del biodigestor puede variar en función de la cantidad de residuos disponible. | E6: Polietileno o PVC | F6: Bolsa flexible que almacena biogás. | G6: Tubos largos que pueden ir enterrados o sobre el piso. Esta característica alargada permite que, cuando se carga, toda la masa de líquido dentro del biodigestor se mueva hacia la salida, lo que provoca que la misma carga constituya una forma de agitación. Estos biodigestores son de fácil instalación y movilidad. El grosor de la membrana que se utilizará, debería ser inferior a 0.80 mm, y el tipo de material y aditivos empleados en su fabricación deben ser resistentes al ataque químico y los rayos ultravioleta (UV).
B7: Biodigestor de laguna | C7: Mixto | D7: El tamaño del biodigestor puede variar en función de la cantidad de residuos disponible. | E7: Impermeable, PVC, cubierta flotante | F7: Tapa flotante que permite el control de olores y aprovechamiento de los subproductos. Es un sistema integral de tratamiento de los residuos orgánicos. | G7: El aprovechamiento de los subproductos puede realizarse a través de un generador eléctrico de biogás, para producir energía eléctrica que puede ser usada para iluminación o cercas, Equipos de ordeño, cámara de vacío, cuartos fríos, calentadores de agua, calderas, entre otros.
B8: Biodigestor Tropicalizado | C8: Mixto | D8: El tamaño del biodigestor puede variar en función de la cantidad de residuos disponible. | E8: PVC, cubierta, sistemas de mezcla | F8: Son construcciones de bajo costo, eficientes y fáciles de operar. El dimensionamiento y diseño de los biodigestores tropicalizados se realiza en base a normas técnicas y de seguridad industrial vigentes en Alemania. | G8: Los biodigestores tienen una cubierta de membrana de caucho de 2 mm de espesor, sistema mecánico de agitación, extracción de lodos, control de proceso, extracción y aprovechamiento de biogás, laguna de descarga y lecho de secado de lodos para la producción de fertilizante orgánico.
B9: Biodigestor horizontal | C9: Mixto | D9: El tamaño del biodigestor puede variar en función de la cantidad de residuos disponible. | E9: Concreto, acero | F9: Flujo continuo con orientación horizontal para grandes volúmenes | G9: Estos digestores se construyen generalmente enterrados, son poco profundos y alargados, semejando un canal, con relaciones de largo a ancho de 5:1m hasta 8:1m y sección transversal circular, cuadrada o en “V”. Se operan a régimen semi continuo, entrando la carga por un extremo del digestor y saliendo los lodos por el extremo opuesto. La cúpula puede ser rígida o de algún material flexible que no presente fugas de gas y que resista las condiciones de la intemperie. Este tipo de digestores se recomiendan cuando se requiere trabajar con volúmenes mayores de 15 m3, para los cuales, la excavación de un pozo vertical comienza a resultar muy problemática.

Sheet Base_datos - Residuos (hidden)
D2: HERRAMIENTA DE CÁLCULO PARA EL POTENCIAL ENERGÉTICO Y DISEÑO DE BIODIGESTORES Y/O CELDAS DE COMPOSTAJE PARA RESIDUOS SÓLIDOS PRODUCTO DE LA ACTIVIDAD AGROPECUARIA Y DOMÉSTICA DE PEQUEÑOS Y MEDIANOS PRODUCTORES
C5: Sector agricultura
C6: Cultivos | D6: Tipo de residuo | E6: Origen del residuo | F6: Factor de residuo (kg residuo/kg producto principal) | G6: Factor de residuo (kg residuo/ha) | H6: Biogás (m3/kg residuo)
C7: Café | D7: Pulpa | E7: RAC1 | F7: 0.348 | G7: - | H7: =25/1000 -> 0.025
C8: Arroz | D8: Paja | E8: RAC | F8: - | G8: =4*1000 -> 4000 | H8: 0.352
C9: Banano | D9: Fruto rechazo | E9: RAI2 | F9: 0.15 | G9: - | H9: 0.0015
C10: Caña de azucar | D10: Bagazo | E10: RAI | F10: 0.28 | G10: - | H10: =1.6539/1000 -> 0.0016539
C11: Maiz | D11: Caña | E11: RAC | F11: - | G11: =6.4*1000 -> 6400 | H11: =514/1000 -> 0.514
C12: Platano | D12: Fruto rechazo | E12: RAI | F12: 0.05 | G12: - | H12: 0.0015
C13: Caña Panelera | D13: Bagazo | E13: RAI | F13: 0.28 | G13: - | H13: =0.1642/1000 -> 0.0001642
C14: Trigo | D14: Paja | E14: RAC | F14: - | G14: =3.3*1000 -> 3300 | H14: 0.367
C15: Papas | D15: Hojas | E15: RAC | F15: - | G15: =10*1000 -> 10000 | H15: 0.606
C16: Tomate | D16: Hojas | E16: RAC | F16: - | G16: =5.5*1000 -> 5500 | H16: 0.603
C17: Cebolla | D17: Hojas | E17: RAC | F17: - | G17: =7*1000 -> 7000 | H17: 0.514
C18: Cacao | E18: RAC | G18: 453.6
C19: Fuente: (1) https://www.fao.org/4/as400s/as400s.pdf (2) https://www1.upme.gov.co/siame/Paginas/atlas-del-potencial-energetico-de-la-biomasa.aspx
C20: (3) htpps://repository.udistrital.edu.co/server/api/core/bitstreams/90160c70-05da-42c0-ad40-7a22c5f975cd/content
C21: 1RAC: Residuo Agricola de Cosecha
C22: 2RAI: Residuo Agricola Industrial
C24: Factores de producción de gallinaza y biogás - Sector avicola
C25: Actividad | D25: Tamaño | E25: Gallinaza (kg/día) | F25: Biogás (m3/kg gallinaza) | G25: Biogás (m3/ton gallinaza)
C26: Engorde | D26: Mediano | E26: 0.1 | F26: 0.06 | G26: 60
C27: Levante | D27: Pequeño | E27: 0.05 | F27: 0.06 | G27: 60
C28: Postura | D28: Grande | E28: 0.15 | F28: 0.06 | G28: 60
C29: Reproductoras | D29: Grande | E29: 0.15 | F29: 0.06 | G29: 60
C30: Fuente: (3) https://www1.upme.gov.co/siame/Paginas/atlas-del-potencial-energetico-de-la-biomasa.aspx
C32: Factores de producción de estiercol y biogás - Sector porcicola
C33: Actividad | D33: Tamaño | E33: Estiercol (kg/día) | F33: Biogás (m3/kg estiércol) | G33: Biogás (m3/ton estiércol)
C34: Lechón (1-60 días) | D34: Pequeño | E34: 1 | F34: =+G34/1000 -> 0.07 | G34: 70
C35: Levante (61-120 días) | D35: Mediano | E35: 1.5 | F35: 0.07 | G35: 70
C36: Ceba (121-180 días) | D36: Grande | E36: 2 | F36: 0.07 | G36: 70
C37: Hembras reemplazo (120-240 días) | D37: Grande | E37: 2 | F37: 0.07 | G37: 70
C38: Hembras crías (+240 días) | D38: Grande | E38: 2 | F38: 0.07 | G38: 70
C39: Machos reproductores (+180 días) | D39: Grande | E39: 2 | F39: 0.07 | G39: 70
C40: Fuente: (2) https://www1.upme.gov.co/siame/Paginas/atlas-del-potencial-energetico-de-la-biomasa.aspx
C42: Factores de producción de estiercol y biogás - Sector bovino
C43: Actividad | D43: Tamaño | E43: Estiercol (kg/día) | F43: Biogás (m3/kg estiércol) | G43: Biogás (m3/ton estiércol)
C44: Terneras (<1 año) | D44: Ternera | E44: 4 | F44: =+G44/1000 -> 0.04 | G44: 40
C45: Hembras (1-2 años) | D45: Pequeño | E45: 8 | F45: =+G45/1000 -> 0.04 | G45: 40
C46: Hembras (2-3 años) | D46: Mediano | E46: 10 | F46: =+G46/1000 -> 0.04 | G46: 40
C47: Hembras (> 3 años) | D47: Grande | E47: 15 | F47: =+G47/1000 -> 0.04 | G47: 40
C48: Fuente: (2) https://www1.upme.gov.co/siame/Paginas/atlas-del-potencial-energetico-de-la-biomasa.aspx
C50: Conversiones
C51: PCI - Biogas(45% CH4) | D51: 16 | E51: MJ/m3
C52: PCI - Biogas(75% CH4) | D52: 28 | E52: MJ/m3
C53: Fuente: (3) https://www.iea.org/reports/outlook-for-biogas-and-biomethane-prospects-for-organic-growth/an-introduction-to-biogas-and-biomethane
C57: Relación C/N, %solidos totales y %N
C58: Tipo de animal/cultivo | D58: Residuo | E58: Nombre completo | F58: Relación C/N | G58: Solidos Totales (%) | H58: Nitrogeno (%)
C59: Bovino | D59: Estiercol | E59: =+CONCATENATE(D59, " de ", LOWER(C59)) -> Estiercol de bovino | F59: 25 | G59: =+((13.4+56.2)/2)/100 -> 0.348 | H59: -
C60: Porcino | D60: Estiercol | E60: =+CONCATENATE(D60, " de ", LOWER(C60)) -> Estiercol de porcino | F60: 16 | G60: =+((15+49)/2)/100 -> 0.32 | H60: -
C61: Gallinas | D61: Gallinaza | E61: Gallinaza de gallinas | F61: 23 | G61: =+((26+92)/2)/100 -> 0.59 | H61: -
C62: Café7 | D62: Pulpa | E62: Pulpa de café7 | F62: 70 | G62: 0.581 | H62: 0.02
C63: Banano8 | D63: Fruto rechazo | E63: Fruto rechazo de banano8 | F63: 26 | G63: 0.107 | H63: 0.008
C64: Caña de Azucar6 | D64: Bagazo | E64: Bagazo de caña de azucar6 | F64: 113 | G64: 0.866 | H64: 0.0025
C65: Platano8 | D65: Fruto rechazo | E65: Fruto rechazo de platano8 | F65: 26 | G65: 0.107 | H65: 0.014
C66: Caña Panelera6 | D66: Bagazo | E66: Bagazo de caña panelera6 | F66: 113 | G66: 0.866 | H66: 0.0025
C67: Trigo | D67: Paja | E67: Paja de trigo | F67: 87 | G67: =+((88+90)/2)/100 -> 0.89 | H67: 0.0053
C68: Maíz | D68: Paja | E68: Paja de maíz | F68: 45 | G68: =77/100 -> 0.77 | H68: 0.0075
C69: Arroz | D69: Paja | E69: Paja de arroz | F69: 67 | G69: =+((88.8+92.6)/2)/100 -> 0.907 | H69: 0.0063
C70: Papas | D70: Hojas | E70: Hojas de papas | F70: 20 | G70: =+((10+20)/2)/100 -> 0.15 | H70: 0.01
C71: Tomate | D71: Hojas | E71: Hojas de tomate | F71: 12 | G71: =+((10+15)/2)/100 -> 0.125 | H71: 0.01
C72: Cebolla | D72: Hojas | E72: Hojas de cebolla | F72: 15 | G72: =+((10+15)/2)/100 -> 0.125 | H72: 0.01
C73: Cacao | D73: Hojas | E73: =+CONCATENATE(D73, " de ", LOWER(C73)) -> Hojas de cacao | F73: N.A. | G73: N.A. | H73: N.A.
C74: Fuente: (5) Biogas Technology (6) http://repository.lppm.unila.ac.id/2232/1/Characterization%20and%20Production%20of.pdf (8) https://www.researchgate.net/figure/Total-solids-TS-and-volatile-solids-VS-contents-of-the-sole-inoculum-and-of-the_tbl1_299425510 (7) https://pubmed.ncbi.nlm.nih.gov/32039901/ (9)https://www.researchgate.net/publication/330990435_Effects_of_Appropriate_Composition_of_Sugarcane_Bagasse_Compost_and_Nitrogen_Fertilizer_on_the_Growth_and_Yield_of_Soybean_Glycine_max_L_Merill/fulltext/5c5f84e8299bf1d14cb7ed36/Effects-of-Appropriate-Composition-of-Sugarcane-Bagasse-Compost-and-Nitrogen-Fertilizer-on-the-Growth-and-Yield-of-Soybean-Glycine-max-L-Merill.pdf (10) https://www.omicsonline.org/articles-images/2155-9821-5-259-t002.html (11) https://scholar.uprm.edu/server/api/core/bitstreams/e79bf43f-fc3c-4a91-8dfb-817dcb83433d/content
C77: Sector pecuario - Relación Agua:Estiercol
C78: Tipo de animal | D78: Relacion Agua:estiercol
C79: Bovino | D79: 1
C80: Porcino | D80: 3
C81: Aves | D81: 3
C82: Residuos agrícolas | D82: 0.8
C83: Fuente: (1) https://www.fao.org/4/as400s/as400s.pdf (5) Biogas Technology
C86: Seleccione si aplica o no
C87: Si
C88: No
C91: Consumo específico de biogás para diferentes tareas
C92: Actividad | D92: Dispositivo de conversión | E92: Requerimiento | F92: Consumo de gas (m3/hr) | G92: Consumo de gas (m3/día) | H92: Tiempo operación (hr)
C93: Cocinar | D93: 560 mm Burner | E93: Cocina a biogás de dos hornillas | F93: 0.33 | G93: =+F93*5 -> 1.65 | H93: 5
C94: Lámpara | D94: Lámpara de manto simple | E94: Lámparas a biogás | F94: 0.07 | G94: =+F94*4 -> 0.28 | H94: 4
C95: Calefacción | D95: - | E95: Calentador de agua | F95: 2.2 | G95: =+F95*2 -> 4.4 | H95: 2
C96: Generación electricidad* | D96: Potencia 600W | E96: Generador eléctrico (600W) | F96: 0.75 | G96: =0.75*8 -> 6 | H96: 8
C97: Refrigeración | D97: - | E97: Refrigerador (Capacidad 1m3) | F97: =2.2/24 -> 0.09166666667 | G97: =+F97*24 -> 2.2 | H97: 24
C98: Fuente: (1) https://www.fao.org/4/as400s/as400s.pdf (5) Biogas Technology
C99: */kWh

Sheet Base-datos - Emisiones (hidden)
C2: HERRAMIENTA DE CÁLCULO PARA EL POTENCIAL ENERGÉTICO Y DISEÑO DE BIODIGESTORES Y/O CELDAS DE COMPOSTAJE PARA RESIDUOS SÓLIDOS PRODUCTO DE LA ACTIVIDAD AGROPECUARIA Y DOMÉSTICA DE PEQUEÑOS Y MEDIANOS PRODUCTORES
B5: Parametros e hipótesis - Base | D5: Unidad | E5: Valor | I5: Sector bovino
B6: GWP_CO2 | D6: 1 | E6: t CO2e/tCO2 | I6: Tamaño | J6: kg estiercol/año | K6: Mezcla (l/año) | L6: m3 biogas/año | M6: Relación C/N (% m/m) | N6: ST (%)
B7: GWP_CH4 | D7: 28 | E7: t CO2e/tCH4 | I7: Ternera | J7: =+'HC_Valorización Orgánicos'!E21*'Base_datos - Residuos'!E44*365 -> 0 | K7: =+J7*'Base_datos - Residuos'!$D$79+J7 -> 0 | L7: =+J7*'Base_datos - Residuos'!F44 -> 0 | M7: =+J7*'Base_datos - Residuos'!$F$59 -> 0 | N7: =+J7*'Base_datos - Residuos'!$G$59 -> 0
B8: CWP_N20 | D8: 265 | E8: t CO2e/tN2O | I8: Pequeño | J8: =+'HC_Valorización Orgánicos'!E22*'Base_datos - Residuos'!E45*365 -> 0 | K8: =+J8*'Base_datos - Residuos'!$D$79+J8 -> 0 | L8: =+J8*'Base_datos - Residuos'!F45 -> 0 | M8: =+J8*'Base_datos - Residuos'!$F$59 -> 0 | N8: =+J8*'Base_datos - Residuos'!$G$59 -> 0
B9: D_CH4 | D9: 0.67 | E9: kg/m3 | I9: Mediano | J9: =+'HC_Valorización Orgánicos'!E23*'Base_datos - Residuos'!E46*365 -> 0 | K9: =+J9*'Base_datos - Residuos'!$D$79+J9 -> 0 | L9: =+J9*'Base_datos - Residuos'!F46 -> 0 | M9: =+J9*'Base_datos - Residuos'!$F$59 -> 0 | N9: =+J9*'Base_datos - Residuos'!$G$59 -> 0
B10: TDL | D10: 1.4 | E10: % | I10: Grande | J10: =+'HC_Valorización Orgánicos'!E24*'Base_datos - Residuos'!E47*365 -> 0 | K10: =+J10*'Base_datos - Residuos'!$D$79+J10 -> 0 | L10: =+J10*'Base_datos - Residuos'!F47 -> 0 | M10: =+J10*'Base_datos - Residuos'!$F$59 -> 0 | N10: =+J10*'Base_datos - Residuos'!$G$59 -> 0
B11: EF_SINCO2e | D11: 31.51949 | E11: t CO2e/GWh
B12: Fuente: - Anthropogenic and Natural Radiative Forcing (https://www.climatechange2013.org/images/report/WG1AR5_Chapter08_FINAL.pdf) - Escenarios de mitigación de emisiones de Gases de Efecto Invernadero a 2030 y carbono neutralidad a 2050 (https://pigccme.minenergia.gov.co/public/uploads/web_documentos/61b8b1308832d.pdf ) | I12: Sector porcicola
I13: Tamaño | J13: kg estiercol/año | K13: Mezcla (l/año) | L13: m3 biogas/año | M13: Relación C/N (% m/m) | N13: ST (%)
B14: Sector avícola | I14: Pequeño | J14: =+'HC_Valorización Orgánicos'!E25*'Base_datos - Residuos'!E34*365 -> 0 | K14: =+J14*'Base_datos - Residuos'!$D$80+J14 -> 0 | L14: =+J14*'Base_datos - Residuos'!F34 -> 0 | M14: =+J14*'Base_datos - Residuos'!$F$60 -> 0 | N14: =+J14*'Base_datos - Residuos'!$G$60 -> 0
B15: Parametros e hipótesis - Sector avícola | D15: Unidad | E15: Valor | I15: Mediano | J15: =+'HC_Valorización Orgánicos'!E26*'Base_datos - Residuos'!E35*365 -> 8212.5 | K15: =+J15*'Base_datos - Residuos'!$D$80+J15 -> 32850 | L15: =+J15*'Base_datos - Residuos'!F35 -> 574.875 | M15: =+J15*'Base_datos - Residuos'!$F$60 -> 131400 | N15: =+J15*'Base_datos - Residuos'!$G$60 -> 2628
B16: Número de ganado avícola | D16: # | E16: =+SUM('HC_Valorización Orgánicos'!E28:F30) -> 0 | I16: Grande | J16: =+'HC_Valorización Orgánicos'!E27*'Base_datos - Residuos'!E36*365 -> 0 | K16: =+J16*'Base_datos - Residuos'!$D$80+J16 -> 0 | L16: =+J16*'Base_datos - Residuos'!F36 -> 0 | M16: =+J16*'Base_datos - Residuos'!$F$60 -> 0 | N16: =+J16*'Base_datos - Residuos'!$G$60 -> 0
B17: Demanda media de electricidad de la explotación por animal (base-proyecto) - Aves de corral | D17: KWh/head-y | E17: 3.7 | K17: =+J17*'Base_datos - Residuos'!$D$80+J17 -> 0
B18: Excreción volátil de sólidos por día sobre la base de materia orgánica seca | D18: kg_dm/head-d | E18: 0.02
B19: Capacidad máxima de producción de metano del estiércol | D19: m3_CH4/kg_dm | E19: 0.0809 | I19: Sector avícola
B20: Factor de conversión de metano por defecto - Almacenamiento de sólidos en zona de clima cálido | D20: % | E20: 5 | I20: Tamaño | J20: kg estiercol/año | K20: Mezcla (l/año) | L20: m3 biogas/año | M20: Relación C/N (% m/m) | N20: ST (%)
B21: Fracción de estiércol manipulado mediante sistemas de gestión del estiércol - Almacenamiento de sólidos en zona de clima cálido | D21: % | E21: 100 | I21: Pequeño | J21: =+'HC_Valorización Orgánicos'!E28*'Base_datos - Residuos'!E27*365 -> 0 | K21: =+J21*'Base_datos - Residuos'!$D$81+J21 -> 0 | L21: =+J21*'Base_datos - Residuos'!F26 -> 0 | M21: =+J21*'Base_datos - Residuos'!$F$61 -> 0 | N21: =+J21*'Base_datos - Residuos'!$G$61 -> 0
B22: Factor de emisión - Almacenamiento sólido en zona de clima cálido | D22: kg_CH4/head-y | E22: 0.019784095 | I22: Mediano | J22: =+'HC_Valorización Orgánicos'!E29*'Base_datos - Residuos'!E26*365 -> 0 | K22: =+J22*'Base_datos - Residuos'!$D$81+J22 -> 0 | L22: =+J22*'Base_datos - Residuos'!F27 -> 0 | M22: =+J22*'Base_datos - Residuos'!$F$61 -> 0 | N22: =+J22*'Base_datos - Residuos'!$G$61 -> 0
B23: Masa animal típica - Aves de corral | D23: kg_animal/head | E23: 1.8 | I23: Grande | J23: =+'HC_Valorización Orgánicos'!E30*'Base_datos - Residuos'!E28*365 -> 0 | K23: =+J23*'Base_datos - Residuos'!$D$81+J23 -> 0 | L23: =+J23*'Base_datos - Residuos'!F28 -> 0 | M23: =+J23*'Base_datos - Residuos'!$F$61 -> 0 | N23: =+J23*'Base_datos - Residuos'!$G$61 -> 0
B24: Tasa de excreción de nitrógeno por masa animal - Aves de corral | D24: kg_N/10E3kg_animal-d | E24: 1.2
B25: Tasa anual de excreción de nitrógeno por animal - Aves de corral | D25: kg_N/head-y | E25: 0.7884 | I25: Sector agricola
B26: Factor de emisión para emisiones directas de N2O procedentes de la gestión del estiércol - Almacenamiento sólido en zona de clima cálido | D26: kg_N2O-N/kg_N | E26: 0.01 | I26: Tipo de cultivo | J26: kg residuo/año | K26: Mezcla (l/año) | L26: m3 biogas/año | M26: Relación C/N (% m/m) | N26: ST (%) | O26: N (kg)
B27: Porcentaje de nitrógeno del estiércol gestionado que se volatiliza como NH3 y NOx en el sistema de gestión del estiércol - Almacenamiento sólido | D27: % | E27: 20 | I27: Café | J27: =+'HC_Valorización Orgánicos'!E49*'Base_datos - Residuos'!F7 -> 0 | K27: =+J27*'Base_datos - Residuos'!$D$82+J27 -> 0 | L27: =+J27*'Base_datos - Residuos'!H7 -> 0 | M27: =+J27*'Base_datos - Residuos'!$F62 -> 0 | N27: =+J27*'Base_datos - Residuos'!$G$62 -> 0 | O27: =+J27*'Base_datos - Residuos'!H62 -> 0
B28: Factor de emisión para las emisiones de N2O procedentes de la deposición atmosférica de nitrógeno en los suelos y en la superficie del agua - Almacenamiento sólido | D28: kg_N2O-N/kg_N | E28: 0.01 | I28: Banano | J28: =+'HC_Valorización Orgánicos'!E50*'Base_datos - Residuos'!F9 -> 0 | K28: =+J28*'Base_datos - Residuos'!$D$82+J28 -> 0 | L28: =+J28*'Base_datos - Residuos'!H9 -> 0 | M28: =+J28*'Base_datos - Residuos'!$F63 -> 0 | N28: =+J28*'Base_datos - Residuos'!$G$62 -> 0 | O28: =+J28*'Base_datos - Residuos'!H63 -> 0
B29: Porcentaje de nitrógeno del estiércol gestionado que se lixivia en el sistema de gestión del estiércol - Almacenamiento sólido | D29: % | E29: 2 | I29: Caña de Azucar | J29: =+'HC_Valorización Orgánicos'!E51*'Base_datos - Residuos'!F10 -> 0 | K29: =+J29*'Base_datos - Residuos'!$D$82+J29 -> 0 | L29: =+J29*'Base_datos - Residuos'!H10 -> 0 | M29: =+J29*'Base_datos - Residuos'!$F64 -> 0 | N29: =+J29*'Base_datos - Residuos'!$G$62 -> 0 | O29: =+J29*'Base_datos - Residuos'!H64 -> 0
B30: Factor de emisión de N2O procedente de la lixiviación y escorrentía de nitrógeno - Almacenamiento sólido | D30: kg_N2O-N/kg_N | E30: 0.011 | I30: Caña Panelera | J30: =+'HC_Valorización Orgánicos'!E52*'Base_datos - Residuos'!F13 -> 0 | K30: =+J30*'Base_datos - Residuos'!$D$82+J30 -> 0 | L30: =+J30*'Base_datos - Residuos'!H13 -> 0 | M30: =+J31*'Base_datos - Residuos'!$F66 -> 0 | N30: =+J30*'Base_datos - Residuos'!G66 -> 0 | O30: =+J30*'Base_datos - Residuos'!H66 -> 0
B31: Ratio de emisiones de N2 / N2O | D31: kg_N2-N/kg_N2O_N | E31: 3 | I31: Platano | J31: =+'HC_Valorización Orgánicos'!E53*'Base_datos - Residuos'!F12 -> 0 | K31: =+J31*'Base_datos - Residuos'!$D$82+J31 -> 0 | L31: =+J31*'Base_datos - Residuos'!H12 -> 0 | M31: =+J31*'Base_datos - Residuos'!$F65 -> 0 | N31: =+J31*'Base_datos - Residuos'!G65 -> 0 | O31: =+J31*'Base_datos - Residuos'!H65 -> 0
B32: Fracción del nitrógeno del estiércol gestionado que se pierde como N2 en el sistema de gestión del estiércol - Almacenamiento sólido | D32: % | E32: 3 | I32: Arroz | J32: =IF('HC_Valorización Orgánicos'!F54="hectáreas",'HC_Valorización Orgánicos'!E54*'Base_datos - Residuos'!G8,('HC_Valorización Orgánicos'!E54/10000)*'Base_datos - Residuos'!G8) -> 0 | K32: =+J32*'Base_datos - Residuos'!$D$82+J32 -> 0 | L32: =+J32*'Base_datos - Residuos'!H8 -> 0 | M32: =+J32*'Base_datos - Residuos'!$F69 -> 0 | N32: =+J32*'Base_datos - Residuos'!G69 -> 0 | O32: =+J32*'Base_datos - Residuos'!H69 -> 0
B33: Fracción del nitrógeno del estiércol gestionado que se pierde en el sistema de gestión del estiércol - Almacenamiento sólido | D33: % | E33: 46 | I33: Maíz | J33: =IF('HC_Valorización Orgánicos'!F55="hectáreas",'HC_Valorización Orgánicos'!E55*'Base_datos - Residuos'!G11,('HC_Valorización Orgánicos'!E55/10000)*'Base_datos - Residuos'!G11) -> 0 | K33: =+J33*'Base_datos - Residuos'!$D$82+J33 -> 0 | L33: =+J33*'Base_datos - Residuos'!H11 -> 0 | M33: =+J33*'Base_datos - Residuos'!$F68 -> 0 | N33: =+J33*'Base_datos - Residuos'!G68 -> 0 | O33: =+J33*'Base_datos - Residuos'!H68 -> 0
B34: Factor de emisión para adiciones de N procedentes de fertilizantes minerales, enmiendas orgánicas y residuos de cultivos | D34: kg_N2O-N/kg_N | E34: 0.01 | I34: Trigo | J34: =IF('HC_Valorización Orgánicos'!F56="hectáreas",'HC_Valorización Orgánicos'!E56*'Base_datos - Residuos'!G14,('HC_Valorización Orgánicos'!E56/10000)*'Base_datos - Residuos'!G14) -> 0 | K34: =+J34*'Base_datos - Residuos'!$D$82+J34 -> 0 | L34: =+J34*'Base_datos - Residuos'!H14 -> 0 | M34: =+J34*'Base_datos - Residuos'!$F67 -> 0 | N34: =+J34*'Base_datos - Residuos'!G67 -> 0 | O34: =+J34*'Base_datos - Residuos'!H67 -> 0
B35: Factor de emisión para volatilización y redepósito | D35: kg_N2O-N/kg_N | E35: 0.01 | I35: Papas | J35: =IF('HC_Valorización Orgánicos'!F57="hectáreas",'HC_Valorización Orgánicos'!E57*'Base_datos - Residuos'!G15,('HC_Valorización Orgánicos'!E57/10000*'Base_datos - Residuos'!G15)) -> 0 | K35: =+J35*'Base_datos - Residuos'!$D$82+J35 -> 0 | L35: =+J35*'Base_datos - Residuos'!H15 -> 0 | M35: =+J35*'Base_datos - Residuos'!$F70 -> 0 | N35: =+J35*'Base_datos - Residuos'!G70 -> 0 | O35: =+J35*'Base_datos - Residuos'!H70 -> 0
B36: Fracción de volatilización de todos los abonos orgánicos N aplicados | D36: -/- | E36: 0.21 | I36: Tomate | J36: =IF('HC_Valorización Orgánicos'!F58="hectáreas",'HC_Valorización Orgánicos'!E58*'Base_datos - Residuos'!G16,('HC_Valorización Orgánicos'!E58/10000)*'Base_datos - Residuos'!G16) -> 0 | K36: =+J36*'Base_datos - Residuos'!$D$82+J36 -> 0 | L36: =+J36*'Base_datos - Residuos'!H16 -> 0 | M36: =+J36*'Base_datos - Residuos'!$F71 -> 0 | N36: =+J36*'Base_datos - Residuos'!G71 -> 0 | O36: =+J36*'Base_datos - Residuos'!H71 -> 0
B37: Factor de emisión para lixiviación/escorrentía | D37: kg_N2O-N/kg_N | E37: 0.011 | I37: Cebolla | J37: =IF('HC_Valorización Orgánicos'!F59="hectáreas",'HC_Valorización Orgánicos'!E59*'Base_datos - Residuos'!G17,('HC_Valorización Orgánicos'!E59/10000)*'Base_datos - Residuos'!G17) -> 0 | K37: =+J37*'Base_datos - Residuos'!$D$82+J37 -> 0 | L37: =+J37*'Base_datos - Residuos'!H17 -> 0 | M37: =+J37*'Base_datos - Residuos'!$F72 -> 0 | N37: =+J37*'Base_datos - Residuos'!G72 -> 0 | O37: =+J37*'Base_datos - Residuos'!H72 -> 0
B38: Fracción de lixiviación/escorrentía de todos los fertilizantes N aplicados | D38: -/- | E38: 0.24 | I38: Cacao | J38: =IF('HC_Valorización Orgánicos'!F60="hectáreas",'HC_Valorización Orgánicos'!E60*'Base_datos - Residuos'!G18,('HC_Valorización Orgánicos'!E60/10000)*'Base_datos - Residuos'!G18) -> 0 | K38: =+J38*'Base_datos - Residuos'!$D$82+J38 -> 0 | L38: =+J38*'Base_datos - Residuos'!H18 -> 0 | M38: =+J38*'Base_datos - Residuos'!$F74 -> 0 | N38: =+J38*'Base_datos - Residuos'!G74 -> 0 | O38: =+J38*'Base_datos - Residuos'!H74 -> 0
B39: Demanda media del sistema de gestión del estiércol (proyecto) | D39: % | E39: 6 | I39: Resultados
B40: Porcentaje de metano en el biogás - estiércol de aves de corral | D40: % | E40: 60 | I40: Residuos | J40: =+SUM(J27:J37)+SUM(J21:J23)+SUM(J14:J16)+SUM(J7:J10) -> 8212.5 | K40: kg/año
B41: LHV Biogás | D41: MJ/m3 | E41: 21.457 | I41: Biogás generado | J41: =+SUM(L27:L37)+SUM(L21:L23)+SUM(L14:L16)+SUM(L7:L10) -> 574.875 | K41: m3/año
B42: Eficiencia térmica de los autogeneradores | D42: % | E42: 32 | I42: Abono seco | J42: =+J40*0.4 -> 3285 | K42: kg/año
B43: Factor de conversión de metano por defecto - Digestor anaeróbico | D43: % | E43: 4.59 | I43: Volumen de carga diaria | J43: =(SUM(K27:K37)+SUM(K21:K23)+SUM(K14:K16)+SUM(K7:K10))/365 -> 90 | K43: l/día
B44: Fracción de estiércol tratada mediante sistemas de gestión del estiércol - Digestor anaeróbico | D44: % | E44: 100 | I44: Tiempo de retención | J44: =IF(_xlfn.XLOOKUP('HC_Valorización Orgánicos'!$E$8,Dropdown_digestores!K4:K1125,Dropdown_digestores!L4:L1125)="Frío",50,35) -> 35 | K44: días
B45: Factor de emisión - Fugas del digestor anaeróbico | D45: kg_CH4/head-y | E45: 0.01816179921 | I45: Volumen digestor | J45: =+(J43*J44)/1000 -> 3.15 | K45: m3
B46: Cantidad de metano generado en el digestor anaeróbico menos las fugas de metano, por cabeza | D46: m3_CH4/head-y | E46: 0.563462837 | I46: Relación C/N | J46: =IFERROR((SUM(M27:M37)+SUM(M21:M23)+SUM(M14:M16)+SUM(M7:M11))/$J$40,0) -> 16 | K46: Adimensional
B47: Frecuencia de uso de autogeneradores | D47: % | E47: 90 | I47: Sólidos totales | J47: =+IFERROR((SUM(N7:N10)+SUM(N14:N16)+SUM(N21:N23)+SUM(N27:N37))/$J$43,0) -> 29.2 | K47: %
B48: Factor de emisión para emisiones directas de N2O procedentes de la gestión del estiércol - Digestor anaeróbico a 20 C | D48: kg_N2O-N/kg_N | E48: 0.0006 | I48: Biogás generado | J48: =+J41/365 -> 1.575 | K48: m3/día
B49: Porcentaje de nitrógeno del estiércol gestionado que se volatiliza como NH3 y Nox en el sistema de gestión del estiércol - Digestor anaeróbico | D49: % | E49: 5 | I49: Cantidad abastecida para una estufa de dos hornillas (Consumo de biogás 0,33 m3/hr) | J49: =ROUNDDOWN(J48/'Base_datos - Residuos'!$G$93,0) -> 0 | K49: unidad(es)
B50: Factor de emisión para las emisiones de N2O procedentes de la deposición atmosférica de nitrógeno en los suelos y en la superficie del agua - Digestor anaeróbico a 20 C | D50: kg_N2O-N/kg_N | E50: 0.01 | I50: Energía electrica generada (Capacidad instalada de 600W) | J50: =+'Base-datos - Emisiones'!J48/'Base_datos - Residuos'!F96 -> 2.1 | K50: kWh/día
B51: Porcentaje de nitrógeno del estiércol gestionado que se lixivia en el sistema de gestión del estiércol - Digestor anaeróbico | D51: % | E51: 0 | I51: Cantidad abastecida de lámparas a biogás (Consumo de biogás 0,03 m3/hr) | J51: =ROUNDDOWN('Base-datos - Emisiones'!J48/'Base_datos - Residuos'!G94,0) -> 5 | K51: unidad(es)
B52: Factor de emisión para las emisiones de N2O procedentes de la lixiviación y la escorrentía del nitrógeno - Digestor anaeróbico | D52: kg_N2O-N/kg_N | E52: 0.011 | I52: Cantidad abastecida de calentador de agua (Consumo de biogás 2,2 m3/hr) | J52: =ROUNDDOWN(J48/'Base_datos - Residuos'!G95,0) -> 0 | K52: unidad(es)
B53: Fracción del nitrógeno del estiércol gestionado que se pierde como N2 en el sistema de gestión del estiércol - Digestor anaeróbico | D53: % | E53: 0.18 | I53: Cantidad abastecida de refrigerador medio (Consumo de biogás 0,092 m3/hr) | J53: =ROUNDDOWN(J48/'Base_datos - Residuos'!G97,0) -> 0 | K53: unidad(es)
B54: Fracción del nitrógeno del estiércol gestionado que se pierde en el sistema de gestión del estiércol - Digestor anaeróbico | D54: % | E54: 5.24
B55: Fuente: - IPCC 2006 con refinamiento 2019 Volumen 4 Capítulo 11 - IPCC 2006 con refinamiento 2019 Volumen 4 Capítulo 10
B57: Escenario base - Sector avícola | D57: Unidad | E57: Valor
B58: Demanda de electricidad tomada de la red (granja + sistema de gestión del estiércol) | D58: MWh | E58: =+(E16*E17)/1000 -> 0
B59: Excreción anual de nitrógeno | D59: kgN | E59: =+(E25*(E21/100)*E16) -> 0
B60: Cantidad de nitrógeno que se volatiliza como NH3 y Nox en el sistema de gestión del estiércol (Almacenamiento de sólidos) | D60: kgN | E60: =+E59*E27/100 -> 0
B61: Cantidad de nitrógeno que se lixivia en el sistema de gestión del estiércol (Almacenamiento de sólidos) | D61: kgN | E61: =+E29/100*E59 -> 0
B62: Cantidad de nitrógeno que se pierde en el sistema de gestión del estiércol | D62: kgN | E62: =+(1-E33/100)*E59 -> 0
B63: Cantidad potencial de fertilizante sintético de nitrógeno que puede sustituirse por digestato | D63: kgN | E63: =+E90 -> 0
B64: Demanda nacional potencial a la red para ser desplazada por la autogeneración de biogás | D64: MWh | E64: =+E86 -> 0
B65: (1A1a) Emisiones de la alimentación externa de las granjas avícolas (CO2eq) | D65: t CO2e | E65: =+E58*(1+($D$10/100))*$D$11/1000 -> 0
B66: (1A1a) Emisiones de la demanda nacional potencial a la red para ser desplazada por la autogeneración de biogás (CO2eq) | D66: t CO2e | E66: =+E64*$D$11/1000 -> 0
B67: (3A2i) Emisiones directas de CH4 procedentes de la gestión del estiércol (almacenamiento sólido) en granjas avícolas | D67: t CO2e | E67: =+(E16*E22/1000)*$D$7 -> 0
B68: (3A2i) Emisiones directas de N2O procedentes de la gestión del estiércol (almacenamiento sólido) en granjas avícolas | D68: t CO2e | E68: =+((E59*E26*1.57142857142857)/1000)*$D$8 -> 0
B69: (3C6i) Emisiones indirectas de N2O procedentes de la gestión del estiércol (almacenamiento sólido) en explotaciones avícolas (volatilización) | D69: t CO2e | E69: =+((E60*E50*1.57142857142857)/1000)*$D$8 -> 0
B70: (3C6i) Emisiones indirectas de N2O procedentes de la gestión del estiércol (almacenamiento sólido) en explotaciones avícolas (lixiviación) | D70: t CO2e | E70: =+((E61*E52*1.57142857142857)/1000)*$D$8 -> 0
B71: (3C4) Emisiones directas de N2O derivadas de la posible aplicación de FNS (Fertilizantes Nitrogenados Sintéticos) sustituidos por digestato, en suelos gestionados | D71: t CO2e | E71: =+((E63*E34*1.57142857142857)/1000)*$D$8 -> 0
B72: (3C5) Emisiones indirectas de N2O procedentes de la posible aplicación de FNS (Fertilizantes Nitrogenados Sintéticos) sustituidos por digestato en suelos gestionados (volatilización) | D72: t CO2e | E72: =+((E63*E35*E36*1.57142857142857)/1000)*$D$8 -> 0
B73: (3C5) Emisiones indirectas de N2O procedentes de la posible aplicación de FNS (Fertilizantes Nitrogenados Sintéticos) sustituidos por digestato en suelos gestionados (lixiviación) | D73: t CO2e | E73: =+((E63*E37*E38*1.57142857142857)/1000)*$D$8 -> 0
B74: (3C4) Direct N2O Emissions from sludge deposition on soil in Poultry Farms | D74: t CO2e | E74: =+((E62*E34*1.57142857142857)/1000)*$D$8 -> 0
B75: (3C5) Indirect N2O Emissions from sludge deposition on soil in Poultry Farms (Volatilisation) | D75: t CO2e | E75: =+((E62*E35*E36*1.57142857142857)/1000)*$D$8 -> 0
B76: (3C5) Indirect N2O Emissions from sludge deposition on soil in Poultry Farms (Leaching) | D76: t CO2e | E76: =+((E62*E37*E38*1.57142857142857)/1000)*$D$8 -> 0
B78: Escenario proyecto - Sector avícola | D78: Unidad | E78: Valor
B79: Demanda de electricidad (granja + sistema de gestión del estiércol) | D79: MWh | E79: =+(E16*E17)/1000*(1+E39/100) -> 0
B80: Cantidad de metano para autogeneración | D80: m3 CH4 | E80: =+E46*E16 -> 0
B81: Cantidad de biogás para autogeneración | D81: m3 Biogas | E81: =+E80/(E40/100) -> 0
B82: Energía procedente del biogás | D82: TJ | E82: =+(E81*E41)/(1*10^6) -> 0
B83: Cantidad mínima de energía eléctrica generada por autogeneración | D83: MWh | E83: =+(E82*E42/100)*277.7778 -> 0
B84: Demanda de electricidad suministrada por autogeneración | D84: MWh | E84: =+IF(E83>=E79*E47/100,E79*E47/100,E83) -> 0
B85: Demanda de electricidad tomada de la red | D85: MWh | E85: =+E79-E84 -> 0
B86: Excedente de electricidad suministrado a la red | D86: MWh | E86: =+E83-E84 -> 0
B87: Excreción anual de nitrógeno | D87: kgN | E87: =+E25*(E44/100)*E16 -> 0
B88: Cantidad de nitrógeno que se volatiliza como NH3 y Nox en el sistema de gestión del estiércol (digestor anaeróbico) | D88: kgN | E88: =+(E49/100)*E87 -> 0
B89: Cantidad de nitrógeno que se lixivia en el sistema de gestión del estiércol (digestor anaeróbico) | D89: kgN | E89: =+E87*E51/100 -> 0
B90: Cantidad de nitrógeno que se pierde en el sistema de gestión del estiércol (digestor anaeróbico) | D90: kgN | E90: =+(1-E54/100)*E87 -> 0
B91: (1A1a) Emisiones del suministro eléctrico externo para granjas avícolas | D91: t CO2e | E91: =+E85*(1+$D$10/100)*$D$11/1000 -> 0
B92: (1A1a) Emisiones por demanda nacional abastecida con autogeneración de biogás | D92: t CO2e | E92: =+(E64-E86)*$D$11/1000 -> 0
B93: (3A2i) Emisiones directas de CH4 procedentes de la gestión del estiércol (fugas de digestores anaerobios) en granjas avícolas | D93: t CO2e | E93: =+(E16*E45/1000)*$D$7 -> 0
B94: (3A2i) Emisiones directas de N2O procedentes de la gestión del estiércol (digestor anaeróbico) en granjas avícolas | D94: t CO2e | E94: =+((E87*E48*1.57142857142857)/1000)*$D$8 -> 0
B95: (3C6i) Emisiones indirectas de N2O procedentes de la gestión del estiércol (digestor anaeróbico) en granjas avícolas (volatilización) | D95: t CO2e | E95: =+((E88*E50*1.57142857142857)/1000)*$D$8 -> 0
B96: (3C6i) Emisiones indirectas de N2O procedentes de la gestión del estiércol (digestor anaeróbico) en granjas avícolas (lixiviación) | D96: t CO2e | E96: 0
B97: (3C4) Emisiones directas de N2O de la aplicación de digestato de granjas avícolas al suelo, tras el desplazamiento de FNS (Fertilizantes Nitrogenados Sintéticos) | D97: t CO2e | E97: =+((E90*E34*1.57142857142857)/1000)*$D$8 -> 0
B98: (3C5) Emisiones indirectas de N2O de la aplicación de digestato de granjas avícolas al suelo, tras el desplazamiento de FNS (Fertilizantes Nitrogenados Sintéticos) (volatilización) | D98: t CO2e | E98: =+((E90*E35*E36*1.57142857142857)/1000)*$D$8 -> 0
B99: (3C5) Emisiones indirectas de N2O de la aplicación de digestato de granjas avícolas al suelo, tras el desplazamiento de FNS (Fertilizantes Nitrogenados Sintéticos) (lixiviación) | D99: t CO2e | E99: =+((E90*E37*E38*1.57142857142857)/1000)*$D$8 -> 0
B102: Sector porcicola
B103: Parametros e hipótesis - Sector porcicola | D103: Unidad | E103: Valor
B104: Número de ganado porcino | D104: # | E104: =+SUM('HC_Valorización Orgánicos'!E25:F27) -> 15
B105: Demanda media de electricidad de la granja por animal (base-proyecto) - Porcino | D105: KWh/head-y | E105: 49.9
B106: Demanda media del sistema de gestión del estiércol (base de referencia) | D106: % | E106: 8
B107: Excreción de sólidos volátiles por día sobre la base de materia orgánica seca | D107: kg_dm/head-d | E107: 0.3
B108: Capacidad máxima de producción de metano del estiércol | D108: m3_CH4/kg_dm | E108: 0.29
B109: Factor de conversión de metano por defecto - Laguna anaeróbica en zona de clima cálido | D109: % | E109: 80
B110: Fracción de estiércol manipulado mediante sistemas de gestión del estiércol - Laguna anaeróbica en zona de clima cálido | D110: % | E110: 100
B111: Factor de emisión - Laguna anaeróbica en zona de clima cálido | D111: kg_CH4/head-y | E111: 14.76827668
B112: Masa animal típica | D112: kg_animal/head | E112: 65
B113: Tasa de excreción de nitrógeno por masa animal - Porcino | D113: kg_N/10E3kg_animal-d | E113: 0.59
B114: Tasa anual de excreción de nitrógeno por animal - Porcino | D114: kg_N/head-y | E114: 19.3815
B115: Factor de emisión para emisiones directas de N2O procedentes de la gestión del estiércol - Laguna anaeróbica en zona de clima cálido | D115: kg_N2O-N/kg_N | E115: 0
B116: Porcentaje de nitrógeno del estiércol gestionado que se volatiliza como NH3 y NOx en el sistema de gestión del estiércol - Laguna anaeróbica | D116: % | E116: 40
B117: Factor de emisión para las emisiones de N2O procedentes de la deposición atmosférica de nitrógeno en los suelos y en la superficie del agua - Laguna anaeróbica | D117: kg_N2O-N/kg_N | E117: 0.01
B118: Porcentaje de nitrógeno del estiércol gestionado que se lixivia en el sistema de gestión del estiércol - Laguna anaeróbica | D118: % | E118: 0
B119: Proporción de emisiones de N2 / N2O | D119: kg_N2-N/kg_N2O_N | E119: 3
B120: Fracción del nitrógeno del estiércol gestionado que se pierde como N2 en el sistema de gestión del estiércol - Laguna Anaeróbica | D120: % | E120: 0
B121: Fracción del nitrógeno del estiércol gestionado que se pierde en el sistema de gestión del estiércol - Laguna anaeróbica | D121: % | E121: 40
B122: Factor de emisión para adiciones de N procedentes de fertilizantes minerales, enmiendas orgánicas y residuos de cultivos | D122: kg_N2O-N/kg_N | E122: 0.01
B123: Factor de emisión para volatilización y redepósito | D123: kg_N2O-N/kg_N | E123: 0.01
B124: Fracción de volatilización de todos los abonos orgánicos N aplicados | D124: -/- | E124: 0.21
B125: Factor de emisión para lixiviación/escorrentía | D125: kg_N2O-N/kg_N | E125: 0.011
B126: Fracción de lixiviación/escorrentía de todos los fertilizantes N aplicados | D126: -/- | E126: 0.24
B127: Demanda media del sistema de gestión del estiércol (proyecto) | D127: % | E127: 12
B128: Porcentaje de metano en el biogás | D128: % | E128: 60
B129: LHV Biogás | D129: MJ/m3 | E129: 21.457
B130: Eficiencia térmica de los autogeneradores | D130: % | E130: 35
B131: Factor de conversión de metano por defecto - Digestor anaeróbico | D131: % | E131: 4.59
B132: Fracción de estiércol tratada mediante sistemas de gestión del estiércol - Digestor anaeróbico | D132: % | E132: 100
B133: Factor de emisión - Digestor anaeróbico | D133: kg_CH4/head-y | E133: 0.8473298745
B134: Cantidad de metano generado en el digestor anaeróbico menos las fugas de metano, por cabeza | D134: m3_CH4/head-y | E134: 26.28808355
B135: Frecuencia de uso de autogeneradores | D135: % | E135: 90
B136: Factor de emisión para emisiones directas de N2O procedentes de la gestión del estiércol - Digestor anaeróbico a 20 C | D136: kg_N2O-N/kg_N | E136: 0.0006
B137: Porcentaje de nitrógeno del estiércol gestionado que se volatiliza como NH3 y Nox en el sistema de gestión del estiércol - Digestor anaeróbico | D137: % | E137: 5
B138: Factor de emisión para las emisiones de N2O procedentes de la deposición atmosférica de nitrógeno en los suelos y en la superficie del agua - Digestor anaeróbico a 20 C | D138: kg_N2O-N/kg_N | E138: 0.01
B139: Porcentaje de nitrógeno del estiércol gestionado que se lixivia en el sistema de gestión del estiércol - Digestor anaeróbico | D139: % | E139: 0
B140: Fracción del nitrógeno del estiércol gestionado que se pierde como N2 en el sistema de gestión del estiércol - Digestor anaeróbico | D140: % | E140: 0.18
B141: Fracción del nitrógeno del estiércol gestionado que se pierde en el sistema de gestión del estiércol - Digestor anaeróbico | D141: % | E141: 5.1806
B142: Fuente: - IPCC 2006 con refinamiento 2019 Volumen 4 Capítulo 11 - IPCC 2006 con refinamiento 2019 Volumen 4 Capítulo 10
B143: Escenario base - Sector porcicola | D143: Unidad | E143: Valor
B144: Demanda de electricidad tomada de la red (granja + sistema de gestión del estiércol) | D144: MWh | E144: =+(E104*E105/1000)*(1+E106/100) -> 0.80838
B145: Excreción anual de nitrógeno | D145: kgN | E145: =+E104*E114*(E110/100) -> 290.7225
B146: Cantidad de nitrógeno que se volatiliza como NH3 y Nox en el sistema de gestión del estiércol (almacenamiento de sólidos) | D146: kgN | E146: =+E145*E116/100 -> 116.289
B147: Cantidad de pérdida de nitrógeno del sistema de gestión del estiércol | D147: kgN | E147: =+(1-E121/100)*E145 -> 174.4335
B148: Cantidad potencial de fertilizante sintético de nitrógeno que se puede sustituir por digestato | D148: kgN | E148: =+E172 -> 275.6613302
B149: Demanda nacional potencial a la red desplazada por la autogeneración de biogás | D149: MWh | E149: =+E169 -> 0.6164995612
B150: (1A1a) Suministro externo de energía para ganado porcino (CO2eq) | D150: t CO2e | E150: =+E144*(1+$D$10/100)*$D$11/1000 -> 0.02583644148
B151: (1A1a) Emisiones de la demanda nacional potencial a la red para ser desplazada por la autogeneración de biogás (CO2eq) | D151: t CO2e | E151: =+$D$11/1000*E149 -> 0.01943175176
B152: (3A2h) Emisiones directas de CH4 procedentes de la gestión del estiércol (laguna anaeróbica) en la ganadería porcina | D152: t CO2e | E152: =+(E104*E111/1000)*$D$7 -> 6.202676206
B153: (3C6h) Emisiones indirectas de N2O procedentes de la gestión del estiércol (laguna anaeróbica) en ganado porcino (volatilización) | D153: t CO2e | E153: =+((E146*E117*1.57142857142857)/1000)*$D$8 -> 0.4842606214
B154: (3C4) Emisiones directas de N2O procedentes de la aplicación potencial de FNS (Fertilizantes Nitrogenados Sintéticos) sustituidos por digestato en suelos gestionados. | D154: t CO2e | E154: =+((E148*E122*1.57142857142857)/1000)*$D$8 -> 1.147932539
B155: (3C5) Emisiones indirectas de N2O procedentes de la posible aplicación de FNS (Fertilizantes Nitrogenados Sintéticos) sustituidos por digestato en suelos gestionados (volatilización) | D155: t CO2e | E155: =+((E148*E123*E124*1.57142857142857)/1000)*$D$8 -> 0.2410658332
B156: (3C5) Emisiones indirectas de N2O derivadas de la posible aplicación de FNS (Fertilizantes Nitrogenados Sintéticos) sustituidos por digestato en suelos gestionados (lixiviación) | D156: t CO2e | E156: =+((E148*E125*E126*1.57142857142857)/1000)*$D$8 -> 0.3030541903
B157: (3C4) Emisiones directas de N2O por deposición de lodos en el suelo en ganado porcino | D157: t CO2e | E157: =+((E147*E122*1.57142857142857)/1000)*$D$8 -> 0.7263909321
B158: (3C5) Emisiones indirectas de N2O derivadas de la deposición de lodos en el suelo en la ganadería porcina (volatilización) | D158: t CO2e | E158: =+((E147*E123*E124*1.57142857142857)/1000)*$D$8 -> 0.1525420957
B159: (3C5) Emisiones indirectas de N2O procedentes de la deposición de lodos en el suelo del ganado porcino (lixiviación) | D159: t CO2e | E159: =+((E147*E125*E126*1.57142857142857)/1000)*$D$8 -> 0.1917672061 | G159: =+SUM(E150:E159) -> 9.494957817
B161: Escenario proyecto - Sector porcicola | D161: Unidad | E161: Valor
B162: Demanda de electricidad (granja + sistema de gestión del estiércol) | D162: MWh | E162: =+(E105*E104)*(1+E127/100)/1000 -> 0.83832
B163: Cantidad de metano para autogeneración | D163: m3 CH4 | E163: =+(E104*E134) -> 394.3212532
B164: Cantidad de biogás para autogeneración | D164: m3 Biogas | E164: =+E163/(E128/100) -> 657.2020886
B165: Energía procedente del biogás | D165: TJ | E165: =+E164*E129/(1*10^6) -> 0.01410158522
B166: Cantidad mínima de energía eléctrica generada por autogeneración | D166: MWh | E166: =+E165*(E130/100)*277.7778 -> 1.370987561
B167: Demanda de electricidad suministrada por autogeneración | D167: MWh | E167: =+IF(E166>=E162*E135/100,E162*E135/100,E166) -> 0.754488
B168: Demanda de electricidad tomada de la red | D168: MWh | E168: =+E162-E167 -> 0.083832
B169: Excedente de electricidad suministrado a la red | D169: MWh | E169: =+E166-E167 -> 0.6164995612
B170: Excreción anual de nitrógeno | D170: kgN | E170: =+E114*(E132/100)*E104 -> 290.7225
B171: Cantidad de nitrógeno que se volatiliza como NH3 y Nox en el sistema de gestión del estiércol (digestor anaeróbico) | D171: kgN | E171: =+E170*E137/100 -> 14.536125
B172: Cantidad de pérdida de nitrógeno del sistema de gestión del estiércol (digestor anaeróbico) | D172: kgN | E172: =+(1-E141/100)*E170 -> 275.6613302
B173: (1A1a) Emisiones procedentes del suministro externo de energía para el ganado porcino (CO2eq) | D173: t CO2e | E173: =+E168*(1+$D$10/100)*$D$11/1000 -> 0.002679334672
B174: (1A1a) Emisiones por demanda nacional abastecida con autogeneración de biogás (CO2eq) | D174: t CO2e | E174: =+(E149-E169)*$D$11/1000 -> 0
B175: (3A2i) Emisiones directas de CH4 procedentes de la gestión del estiércol (fugas de digestores anaerobios) en ganado porcino | D175: t CO2e | E175: =+(E104*E133/1000)*$D$7 -> 0.3558785473
B176: (3A2i) Emisiones directas de N2O procedentes de la gestión del estiércol (digestor anaeróbico) en ganado porcino | D176: t CO2e | E176: =+((E170*E136*1.57142857142857)/1000)*$D$8 -> 0.07263909321
B177: (3C6i) Emisiones indirectas de N2O procedentes de la gestión del estiércol (digestor anaeróbico) en ganado porcino (volatilización) | D177: t CO2e | E177: =+((E171*E138*1.57142857142857)/1000)*$D$8 -> 0.06053257768
B178: (3C6i) Emisiones indirectas de N2O procedentes de la gestión del estiércol (digestor anaeróbico) en ganado porcino (lixiviación) | D178: t CO2e | E178: 0
B179: (3C4) Emisiones directas de N2O de la aplicación de digestato de explotaciones porcinas al suelo, tras el desplazamiento de FNS (Fertilizantes Nitrogenados Sintéticos) | D179: t CO2e | E179: =+(((E172)*E122*1.57142857142857)/1000)*$D$8 -> 1.147932539
B180: (3C5) Emisiones indirectas de N2O de la aplicación de digestato de granjas porcinas al suelo, tras el desplazamiento de FNS (Fertilizantes Nitrogenados Sintéticos) (volatilización) | D180: t CO2e | E180: =+(((E172)*E123*E124*1.57142857142857)/1000)*$D$8 -> 0.2410658332
B181: (3C5) Emisiones indirectas de N2O de la aplicación de digestato procedente de explotaciones porcinas al suelo, tras el desplazamiento de FNS (Fertilizantes Nitrogenados Sintéticos) | D181: t CO2e | E181: =+(((E172)*E125*E126*1.57142857142857)/1000)*$D$8 -> 0.3030541903 | G181: =+SUM(E173:E181) -> 2.183782116
B184: Sector bovíno
B185: Parametros e hipótesis - Sector bovino | D185: Unidad | E185: Valor | H185: =+G159-G181 -> 7.311175701
B186: Número de ganado porcino | D186: # | E186: =+SUM('HC_Valorización Orgánicos'!E21:F24) -> 0
B187: Demanda media de electricidad de la granja por animal (base-proyecto) - Porcino | D187: KWh/head-y | E187: 49.9
B188: Demanda media del sistema de gestión del estiércol (base de referencia) | D188: % | E188: 8
B189: Excreción de sólidos volátiles por día sobre la base de materia orgánica seca | D189: kg_dm/head-d | E189: 2.9
B190: Capacidad máxima de producción de metano del estiércol | D190: m3_CH4/kg_dm | E190: 0.13
B191: Factor de conversión de metano por defecto - Laguna anaeróbica en zona de clima cálido | D191: % | E191: 80
B192: Fracción de estiércol manipulado mediante sistemas de gestión del estiércol - Laguna anaeróbica en zona de clima cálido | D192: % | E192: 100
B193: Factor de emisión - Laguna anaeróbica en zona de clima cálido | D193: kg_CH4/head-y | E193: 73.75628
B194: Masa animal típica | D194: kg_animal/head | E194: 508
B195: Tasa de excreción de nitrógeno por masa animal - Porcino | D195: kg_N/10E3kg_animal-d | E195: 0.39
B196: Tasa anual de excreción de nitrógeno por animal - Porcino | D196: kg_N/head-y | E196: 72.3138
B197: Factor de emisión para emisiones directas de N2O procedentes de la gestión del estiércol - Laguna anaeróbica en zona de clima cálido | D197: kg_N2O-N/kg_N | E197: 0
B198: Porcentaje de nitrógeno del estiércol gestionado que se volatiliza como NH3 y NOx en el sistema de gestión del estiércol - Laguna anaeróbica | D198: % | E198: 35
B199: Factor de emisión para las emisiones de N2O procedentes de la deposición atmosférica de nitrógeno en los suelos y en la superficie del agua - Laguna anaeróbica | D199: kg_N2O-N/kg_N | E199: 0.01
B200: Porcentaje de nitrógeno del estiércol gestionado que se lixivia en el sistema de gestión del estiércol - Laguna anaeróbica | D200: % | E200: 0
B201: Proporción de emisiones de N2 / N2O | D201: kg_N2-N/kg_N2O_N | E201: 3
B202: Fracción del nitrógeno del estiércol gestionado que se pierde como N2 en el sistema de gestión del estiércol - Laguna Anaeróbica | D202: % | E202: 0
B203: Fracción del nitrógeno del estiércol gestionado que se pierde en el sistema de gestión del estiércol - Laguna anaeróbica | D203: % | E203: 35
B204: Factor de emisión para adiciones de N procedentes de fertilizantes minerales, enmiendas orgánicas y residuos de cultivos | D204: kg_N2O-N/kg_N | E204: 0.01
B205: Factor de emisión para volatilización y redepósito | D205: kg_N2O-N/kg_N | E205: 0.01
B206: Fracción de volatilización de todos los abonos orgánicos N aplicados | D206: -/- | E206: 0.21
B207: Factor de emisión para lixiviación/escorrentía | D207: kg_N2O-N/kg_N | E207: 0.011
B208: Fracción de lixiviación/escorrentía de todos los fertilizantes N aplicados | D208: -/- | E208: 0.24
B209: Demanda media del sistema de gestión del estiércol (proyecto) | D209: % | E209: 12
B210: Porcentaje de metano en el biogás | D210: % | E210: 60
... 78 more rows

Sheet Dimens_Compostaje (hidden)
C2: HERRAMIENTA DE CÁLCULO PARA EL POTENCIAL ENERGÉTICO Y DISEÑO DE BIODIGESTORES Y/O CELDAS DE COMPOSTAJE PARA RESIDUOS SÓLIDOS PRODUCTO DE LA ACTIVIDAD AGROPECUARIA Y DOMÉSTICA DE PEQUEÑOS Y MEDIANOS PRODUCTORES
B4: Datos | C4: Cantidad | D4: Unidades | E4: Fuente
B5: Cantidad RSO de entrada | C5: =+SUM('Base-datos - Emisiones'!J27:J37)/1000 -> 0 | D5: ton/d
B6: Densidad de RSO | C6: 0.4 | D6: ton/m3 | E6: RAS, titulo F
B7: Densidad de residuos compostados | C7: 0.6 | D7: ton/m3 | E7: RAS, titulo F
B8: Tiempo en cámara de recepción | C8: 3 | D8: dias
B9: Altura del vehiculo (compactador) | C9: 4 | D9: m
B10: Ancho del vehiculo (compactador) | C10: 3 | D10: m
B11: Forma de la pila | C11: Triangular
B12: Base de la pila | C12: 2.5 | D12: m
B13: Altura de la pila | C13: 1.5 | D13: m
B14: Tiempo de descomposición | C14: 6 | D14: Semanas
B15: Espacio entre pilas | C15: 3 | D15: m
B16: Tiempo de almacenamiento | C16: 1 | D16: Semana
B17: Área transversal | C17: 20 | D17: m2
B18: Tiempo de maduración | C18: 2 | D18: Semanas
B19: Longitud estandar de la pila | C19: 20 | D19: m
B20: Base de la planta | C20: 20 | D20: m
B21: Fracción de volumen tratado | C21: 0.33
B22: Altura de la criba | C22: 3 | D22: m
B23: Área de la criba | C23: 21 | D23: m2
B24: Área de la ensacadora | C24: 1 | D24: m2
B25: Tiempo de almacenamiento para lixiviados | C25: 60 | D25: dias
B28: 1. Cámara de recepción
B30: Volumen de la cámara | C30: Vc | D30: =+(C5*C8)/C6 -> 0 | E30: m3
B31: Area de la cámara | C31: Ac | D31: =+D30/C9 -> 0 | E31: m2
B32: Longitud de la cámara | C32: Lc | D32: =+D31/C10 -> 0 | E32: m
B34: 2. Área de descomposición
B35: Volumen de la planta | C35: Vplanta | D35: =+(C5*C14*7)/C7 -> 0 | E35: m3
B36: Área transversal de la pila | C36: At | D36: =+(C12*C13)/2 -> 1.875 | E36: m2
B37: Volumen de la pila | C37: Vpila | D37: =+D36*C19 -> 37.5 | E37: m3
B38: Número de pilas | C38: N°pilas | D38: =ROUNDUP(D35/D37,0) -> 0 | E38: und
B39: Longitud de la pila calculada | C39: Lplantacalculado | D39: =IFERROR(D35/(D36*D38),0) -> 0 | E39: m
B40: Área inicial de descomposición (pila) | C40: Acides | D40: =+C12*D39 -> 0 | E40: m2
B41: Área total de descomposición | C41: Act | D41: =+D40*D38*80% -> 0 | E41: m2
B42: Área total de espaciamiento | C42: Ae | D42: =+C15*D38*D39 -> 0 | E42: m2
B43: Área final de descomposición | C43: Acft | D43: =+D41+D42 -> 0 | E43: m2
B44: Volumen total de la planta de compostaje diario | C44: Vtpc | D44: =+C5/C7 -> 0 | E44: m3/dia
B45: Área total de almacenamiento | C45: Ata | D45: =+(D44/C17)*C20*(C16*7) -> 0 | E45: m2
B47: 3. Área de maduración
B48: Área de maduración en pilas | C48: Am | D48: =+(((C18*7*1.1*C5*(C20^2))/(C19+C20))*C21)*80% -> 0 | E48: m2
B50: 4. Área de post-tratamiento
B51: Área de post-tratamiento | C51: Apost | D51: =+((D35*(1/3))/C22)+C23+C24 -> 22 | E51: m2
B53: 5. Área de oficina
B54: Área de oficina | C54: Aos | D54: =+D45*3 -> 0 | E54: m2
B56: 6. Área de recepción de lixiviados
B57: Volumen de lixiviados | C57: Vlixiviados | D57: =+(C5/7)*5%*1.5*C25 -> 0 | E57: m3
B58: Area de un solo tanque | C58: Atanque | D58: =8.3*2.3 -> 19.09 | E58: m2
B59: Número de tanques | C59: Ntanques | D59: =+D57/35 -> 0 | E59: adimensional
B60: Area total de tanques | C60: Atotaltanque | D60: =+D58*D59 -> 0 | E60: m2
B62: 7. Área total de la planta de compostaje
B63: Área total de compostaje | C63: Atotal | D63: =+D60+D54+D51+D48+D45+D42+D41+D31 -> 22 | E63: m2
B67: Abono orgánico | C67: =+(C5*1000)*30% -> 0 | D67: kg/mes
B68: Área de descomposición | C68: =+D41 -> 0 | D68: m2
B69: Área de maduración | C69: =+D48 -> 0 | D69: m2
B70: Área de post-tratamiento | C70: =+D51 -> 22 | D70: m2
B71: Número pilas | C71: =+D38 -> 0 | D71: Adimensional
B72: Longitud de cada pila | C72: =ROUNDUP(D39,0) -> 0 | D72: m
B74: Emisiones - Escenario base | C74: =+SUM('Base-datos - Emisiones'!E287:E288)+$D$97 -> 0 | D74: tCO2e/año
B75: Emisiones - Escenario proyecto | C75: =((4/(1*10^6))*'Base-datos - Emisiones'!$D$7)*SUM('Base-datos - Emisiones'!$J$27:$J$38)+$D$117+((0.3/(1*10^6))*'Base-datos - Emisiones'!$D$8)*SUM('Base-datos - Emisiones'!$J$27:$J$38) -> 0 | D75: tCO2e/año
B76: Potencial reducción de emisiones | C76: =+C74-C75 -> 0 | D76: tCO2e/año
B77: Potencial reducción de emisiones | C77: =IFERROR(ROUND(((C74-C75)/C74),1)*100,0) -> 0 | D77: tCO2e/año
B79: Escenario base - compostaje
B80: Descripción | C80: Variable | D80: Valor | E80: Unidad | F80: Comentario
B81: Toneladas generadas de residuos orgánicos | C81: RO | D81: =+(SUM('Base-datos - Emisiones'!J27:J38)/12)/1000 -> 0 | E81: ton/mes | F81: -
B82: Toneladas a tratar mensuales orgánicos | C82: RO | D82: =+D81*0.9 -> 0 | E82: ton/mes | F82: -
B83: Toneladas a tratar anuales orgánicos | C83: RO | D83: =+D82*12 -> 0 | E83: ton/año | F83: -
B84: Generación de abono orgánico | C84: AO | D84: =+D83*0.4 -> 0 | E84: ton/año | F84: -
B85: Fracción de N | C85: FN_ASW | D85: 0.01061 | E85: - | F85: Mean of the values reported in Sathish, T., & Prakasham, R. S. (2013). Intensification of Fructosyltransferases and Fructo-Oligosaccharides Production in Solid State Fermentation by Aspergillus awamori GHRTS. Indian Journal of Microbiology, 53(3), 337–342. doi:10.1007/s12088-013-0380-5
B86: Factor de emisión para adiciones de N procedentes de fertilizantes minerales, enmiendas orgánicas y residuos de cultivos | C86: kg_N2O-N/kg_N | D86: 0.01 | E86: kg_N2O-N/kg_N | F86: IPCC 2019 Methodology, Volume 4 Chapter 11 Equation 11.3
B87: Potencial de calentamiento global durante 100 años | C87: GWP_N20 | D87: 265 | E87: tCO2e/tN2O
B88: Factor de emisión para volatilización y redepósito | C88: EF4_FONA | D88: 0.01 | E88: kg_N2O-N/kg_N | F88: IPCC 2019 Methodology, Volume 4 Chapter 11 Equation 11.3
B89: Fracción de volatilización de todos los abonos orgánicos de N aplicados | C89: FRAC_GASMA | D89: 0.21 | E89: - | F89: IPCC 2019 Methodology, Volume 4 Chapter 11 Equation 11.3
B90: Factor de emisión para lixiviación/escorrentía | C90: EF5_FONA | D90: 0.011 | E90: kg_N2O-N/kg_N | F90: IPCC 2019 Methodology, Volume 4 Chapter 11 Equation 11.3
B91: Fracción de lixiviación/escorrentía de todos los fertilizantes N aplicados | C91: FRAC_LEACHA | D91: 0.24 | E91: - | F91: IPCC 2019 Methodology, Volume 4 Chapter 11 Equation 11.3
B92: Cantidad de nitrogeno en los residuos orgánicos | C92: NASW | D92: =+D81*$D$85*1000*12 -> 0 | E92: kg N | F92: -
B93: Cantidad potencial de fertilizante sintético nitrogenado que puede sustituirse por digestato | C93: PPSNA | D93: =+D84*$D$85*1000 -> 0 | E93: kg N | F93: -
B94: Emisiones directas de N2O procedentes de la posible aplicación de FSN (fertilizantes nitrogenados sintéticos) sustituidos por digestato, en suelos gestionados. | C94: EDFNA_BE | D94: =+(($D$93*D86*44/28)/1000)*$D$87 -> 0 | E94: ton CO2eq | F94: -
B95: Emisiones indirectas de N2O procedentes de la posible aplicación de FSN (fertilizantes nitrogenados sintéticos) sustituidos por digestato en suelos gestionados (volatilización). | C95: EVFNA_BE | D95: =+(($D$93*D88*D89*44/28)/1000)*$D$87 -> 0 | E95: ton CO2eq | F95: -
B96: Emisiones indirectas de N2O derivadas de la posible aplicación de FSN (fertilizantes nitrogenados sintéticos) sustituidos por digestato en suelos gestionados (lixiviación). | C96: ELFNA_BE | D96: =+(($D$93*D90*D91*44/28)/1000)*$D$87 -> 0 | E96: ton CO2eq | F96: -
B97: Emisiones base totales | C97: Emisiones compost | D97: =+SUM(D94:D96) -> 0 | E97: ton CO2eq | F97: -
B99: Escenario proyecto - Compostaje
B100: Descripción | C100: Variable | D100: Valor | E100: Unidad | F100: Comentario
B101: Toneladas generadas de residuos orgánicos | C101: RO | D101: =+D81 -> 0 | E101: ton/mes
B102: Toneladas a tratar mensuales orgánicos | C102: RO | D102: =+D101*0.9 -> 0 | E102: ton/mes
B103: Toneladas a tratar anuales orgánicos | C103: RO | D103: =+D102*12 -> 0 | E103: ton/año
B104: Generación de abono orgánico | C104: AO | D104: =+D103*0.4 -> 0 | E104: ton/año
B105: Fracción de N | C105: FN_ASW | D105: 0.01061 | E105: - | F105: Mean of the values reported in Sathish, T., & Prakasham, R. S. (2013). Intensification of Fructosyltransferases and Fructo-Oligosaccharides Production in Solid State Fermentation by Aspergillus awamori GHRTS. Indian Journal of Microbiology, 53(3), 337–342. doi:10.1007/s12088-013-0380-5
B106: Factor de emisión para adiciones de N procedentes de fertilizantes minerales, enmiendas orgánicas y residuos de cultivos | C106: kg_N2O-N/kg_N | D106: 0.01 | E106: kg_N2O-N/kg_N | F106: IPCC 2019 Methodology, Volume 4 Chapter 11 Equation 11.3
B107: Potencial de calentamiento global durante 100 años | C107: GWP_N20 | D107: 265 | E107: tCO2e/tN2O
B108: Factor de emisión para volatilización y redepósito | C108: EF4_FONA | D108: 0.01 | E108: kg_N2O-N/kg_N | F108: IPCC 2019 Methodology, Volume 4 Chapter 11 Equation 11.3
B109: Fracción de volatilización de todos los abonos orgánicos de N aplicados | C109: FRAC_GASMA | D109: 0.21 | E109: - | F109: IPCC 2019 Methodology, Volume 4 Chapter 11 Equation 11.3
B110: Factor de emisión para lixiviación/escorrentía | C110: EF5_FONA | D110: 0.011 | E110: kg_N2O-N/kg_N | F110: IPCC 2019 Methodology, Volume 4 Chapter 11 Equation 11.3
B111: Fracción de lixiviación/escorrentía de todos los fertilizantes N aplicados | C111: FRAC_LEACHA | D111: 0.24 | E111: - | F111: IPCC 2019 Methodology, Volume 4 Chapter 11 Equation 11.3
B112: Cantidad de nitrogeno en los residuos orgánicos | C112: NASW | D112: =+D101*$D$85*1000*12 -> 0 | E112: kg N
B113: Cantidad potencial de fertilizante sintético nitrogenado que puede sustituirse por compost | C113: PPSNA | D113: =+D104*$D$85*1000 -> 0 | E113: kg N
B114: Emisiones directas de N2O procedentes de la aplicación de FSN (fertilizantes nitrogenados sintéticos) sustituidos por digestato, en suelos gestionados. | C114: EDFNA_BE | D114: =+(($D$113*D106*44/28)/1000)*$D$107 -> 0 | E114: ton CO2eq
B115: Emisiones indirectas de N2O procedentes de la aplicación de FSN (fertilizantes nitrogenados sintéticos) sustituidos por digestato en suelos gestionados (volatilización). | C115: EVFNA_BE | D115: =+(($D$113*D108*D109*44/28)/1000)*$D$107 -> 0 | E115: ton CO2eq
B116: Emisiones indirectas de N2O derivadas de la aplicación de FSN (fertilizantes nitrogenados sintéticos) sustituidos por digestato en suelos gestionados (lixiviación). | C116: ELFNA_BE | D116: =+(($D$113*D110*D111*44/28)/1000)*$D$107 -> 0 | E116: ton CO2eq
B117: Emisiones base totales | C117: Emisiones compost | D117: =+SUM(D114:D116) -> 0 | E117: ton CO2eq

Sheet Dropdown_digestores (hidden)
A2: Seleccione un departamento de Colombia | B2: Categorías de clima | C2: Tipo de residuos en su finca | D2: Tipo de sector | E2: Tamaño del ganado bovino | F2: Tamaño del ganado porcino | G2: Tamaño del ganado avícola | H2: Cantidad de cultivos | I2: Tipos de cultivos | J2: Departamento | K2: Municipio | L2: Clima | N2: Columna3
A3: Seleccione un departamento | B3: Seleccione el tipo de clima | C3: Seleccione el tipo de residuo | D3: Seleccione el sector | E3: Seleccione un tamaño | F3: Seleccione un tamaño | G3: Seleccione un tamaño | H3: Seleccione la cantidad de cultivos | I3: Seleccione el tipo de cultivo | K3: Seleccióne el municipio
A4: Dpto_Amazonas | B4: Cálido húmedo | C4: Estiercol pecuario | D4: Sector bovino | E4: Ternera | F4: Pequeño | G4: Pequeño | H4: 1 | I4: Café | J4: Antioquia | K4: Abejorral | L4: Frío
A5: Dpto_Antioquia | B5: Cálido seco | C5: Residuo agrícola | D5: Sector porcicola | E5: Pequeño | F5: Mediano | G5: Mediano | H5: 2 | I5: Arroz | J5: Norte de Santander | K5: Abrego | L5: Templado
A6: Dpto_Arauca | B6: Frío | C6: Estiercol pecuario + residuo agrícola | D6: Sector avícola | E6: Mediano | F6: Grande | G6: Grande | H6: 3 | I6: Banano | J6: Antioquia | K6: Abriaquí | L6: Templado
A7: Dpto_SanAndrés | B7: Templado | D7: Sector bovino + porcicola | E7: Grande | F7: Pequeño + Mediano | G7: Pequeño + Mediano | H7: 4 | I7: Platano | J7: Meta | K7: Acacías | L7: Templado
A8: Dpto_Atlántico | D8: Sector bovino + avícola | E8: Ternera + Pequeño | F8: Pequeño + Grande | G8: Pequeño + Grande | H8: 5 | I8: Caña de Azucar | J8: Chocó | K8: Acandí | L8: Cálido húmedo
A9: Bogotá | D9: Sector porcicola + avícola | E9: Ternera + Mediano | F9: Mediano + Grande | G9: Mediano + Grande | H9: 6 | I9: Caña Panelera | J9: Huila | K9: Acevedo | L9: Templado
A10: Dpto_Bolívar | D10: Sector bovino + porcicola + avícola | E10: Ternera + Grande | F10: Pequeño + Mediano + Grande | G10: Pequeño + Mediano + Grande | H10: 7 | I10: Tomate | J10: Bolívar | K10: Achí | L10: Cálido húmedo
A11: Dpto_Boyacá | E11: Pequeño + Mediano | H11: 8 | I11: Cebolla | J11: Huila | K11: Agrado | L11: Cálido seco
A12: Dpto_Caldas | E12: Pequeño + Grande | H12: 9 | I12: Trigo | J12: Cundinamarca | K12: Agua de Dios | L12: Cálido seco
A13: Dpto_Caquetá | E13: Mediano + Grande | H13: 10 | I13: Maíz | J13: Cesar | K13: Aguachica | L13: Templado
A14: Dpto_Casanare | E14: Ternera + Pequeño + Mediano | H14: 11 | I14: Papas | J14: Santander | K14: Aguada, Santander | L14: Templado
A15: Dpto_Cauca | E15: Ternera + Pequeño + Grande | H15: 12 | I15: Cacao | J15: Caldas | K15: Aguadas | L15: Frío
A16: Dpto_Cesar | E16: Ternera + Mediano + Grande | J16: Casanare | K16: Aguazul | L16: Cálido húmedo
A17: Dpto_Chocó | E17: Ternera + Pequeño + Mediano + Grande | J17: Cesar | K17: Agustín Codazzi | L17: Cálido húmedo
A18: Dpto_Córdoba | J18: Nariño | K18: Albán, Nariño | L18: Templado
A19: Dpto_Cundinamarca | J19: Cundinamarca | K19: Albán | L19: Frío
A20: Dpto_Guainía | J20: Guajira | K20: Albania, Guajira | L20: Cálido seco
A21: Dpto_Guaviare | J21: Caquetá | K21: Albania | L21: Cálido húmedo
A22: Dpto_Huila | J22: Santander | K22: Albania, Santander | L22: Templado
A23: Dpto_Guajira | J23: Valle del Cauca | K23: Alcalá | L23: Templado
A24: Dpto_Magdalena | J24: Nariño | K24: Aldana | L24: Frío
A25: Dpto_Meta | J25: Antioquia | K25: Alejandría | L25: Templado
A26: Dpto_Nariño | J26: Magdalena | K26: Algarrobo | L26: Cálido seco
A27: Dpto_Norte_de_Santander | J27: Huila | K27: Algeciras | L27: Templado
A28: Dpto_Putumayo | J28: Cauca | K28: Almaguer | L28: Frío
A29: Dpto_Quindio | J29: Boyacá | K29: Almeida | L29: Templado
A30: Dpto_Risaralda | J30: Tolima | K30: Alpujarra | L30: Templado
A31: Dpto_Santander | J31: Huila | K31: Altamira | L31: Templado
A32: Dpto_Sucre | J32: Chocó | K32: Alto Baudo | L32: Cálido húmedo
A33: Dpto_Tolima | J33: Bolívar | K33: Altos del Rosario | L33: Cálido húmedo
A34: Dpto_Valle_del_Cauca | J34: Tolima | K34: Alvarado | L34: Cálido seco
A35: Dpto_Vaupés | J35: Antioquia | K35: Amagá | L35: Templado
A36: Dpto_Vichada | J36: Antioquia | K36: Amalfi | L36: Templado
J37: Tolima | K37: Ambalema | L37: Cálido húmedo
J38: Cundinamarca | K38: Anapoima | L38: Templado
J39: Nariño | K39: Ancuyá | L39: Templado
J40: Valle del Cauca | K40: Andalucía | L40: Templado
J41: Antioquia | K41: Andes | L41: Templado
J42: Antioquia | K42: Angelópolis | L42: Templado
J43: Antioquia | K43: Angostura | L43: Templado
J44: Cundinamarca | K44: Anolaima | L44: Templado
J45: Antioquia | K45: Anorí | L45: Templado
J46: Valle del Cauca | K46: Ansermanuevo | L46: Templado
J47: Antioquia | K47: Anza | L47: Cálido húmedo
J48: Tolima | K48: Anzoátegui | L48: Templado
J49: Antioquia | K49: Apartadó | L49: Cálido húmedo
J50: Risaralda | K50: Apía | L50: Cálido húmedo
J51: Cundinamarca | K51: Apulo | L51: Cálido seco
J52: Boyacá | K52: Aquitania | L52: Frío
J53: Magdalena | K53: Aracataca | L53: Cálido seco
J54: Caldas | K54: Aranzazu | L54: Templado
J55: Santander | K55: Aratoca | L55: Templado
J56: Arauca | K56: Arauca | L56: Cálido húmedo
J57: Arauca | K57: Arauquita | L57: Cálido húmedo
J58: Cundinamarca | K58: Arbeláez | L58: Templado
J59: Nariño | K59: Arboleda | L59: Frío
J60: Norte de Santander | K60: Arboledas | L60: Templado
J61: Antioquia | K61: Arboletes | L61: Cálido húmedo
J62: Boyacá | K62: Arcabuco | L62: Frío
J63: Bolívar | K63: Arenal | L63: Cálido húmedo
J64: Cauca | K64: Argelia | L64: Templado
J65: Valle del Cauca | K65: Argelia, VC | L65: Templado
J66: Magdalena | K66: Ariguaní | L66: Cálido seco
J67: Bolívar | K67: Arjona | L67: Cálido húmedo
J68: Quindio | K68: Armenia | L68: Templado
J69: Bolívar | K69: Arroyohondo | L69: Cálido húmedo
J70: Cesar | K70: Astrea | L70: Cálido húmedo
J71: Tolima | K71: Carmen de Apicalá | L71: Templado
J72: Chocó | K72: Bagadó | L72: Cálido húmedo
J73: Chocó | K73: Bahía Solano | L73: Cálido húmedo
J74: Chocó | K74: Bajo Baudó | L74: Cálido húmedo
J75: Cauca | K75: Balboa | L75: Templado
J76: Risaralda | K76: Balboa, Risaralda | L76: Templado
J77: Atlántico | K77: Baranoa | L77: Cálido húmedo
J78: Huila | K78: Baraya | L78: Cálido seco
J79: Nariño | K79: Barbacoas | L79: Cálido húmedo
J80: Antioquia | K80: Barbosa | L80: Templado
J81: Santander | K81: Barbosa, Santander | L81: Templado
J82: Santander | K82: Barichara | L82: Templado
J83: Meta | K83: Barranca de Upía | L83: Cálido húmedo
J84: Santander | K84: Barrancabermeja | L84: Cálido húmedo
J85: Guajira | K85: Barrancas | L85: Cálido seco
J86: Bolívar | K86: Barranco de Loba | L86: Cálido seco
J87: Guainía | K87: Barranco Minas | L87: Cálido húmedo
J88: Atlántico | K88: Barranquilla | L88: Cálido húmedo
J89: Cesar | K89: Becerril | L89: Templado
J90: Caldas | K90: Belalcázar | L90: Templado
J91: Boyacá | K91: Belén | L91: Frío
J92: Nariño | K92: Belén, Nariño | L92: Frío
J93: Caquetá | K93: Belén de los Andaquies | L93: Cálido húmedo
J94: Risaralda | K94: Belén de Umbría | L94: Templado
J95: Antioquia | K95: Bello | L95: Templado
J96: Antioquia | K96: Belmira | L96: Frío
J97: Cundinamarca | K97: Beltrán | L97: Templado
J98: Boyacá | K98: Berbeo | L98: Templado
J99: Antioquia | K99: Betania | L99: Templado
J100: Boyacá | K100: Betéitiva | L100: Frío
J101: Antioquia | K101: Betulia | L101: Templado
J102: Santander | K102: Betulia, Santander | L102: Templado
J103: Cundinamarca | K103: Bituima | L103: Templado
J104: Boyacá | K104: Boavita | L104: Frío
J105: Norte de Santander | K105: Bochalema | L105: Templado
J106: Bogotá | K106: Bogotá | L106: Frío
J107: Cundinamarca | K107: Bojacá | L107: Frío
J108: Chocó | K108: Bojaya | L108: Cálido húmedo
J109: Cauca | K109: Bolívar | L109: Templado
J110: Valle del Cauca | K110: Bolívar, VC | L110: Templado
J111: Santander | K111: Bolívar, Santander | L111: Frío
J112: Cesar | K112: Bosconia | L112: Cálido seco
J113: Boyacá | K113: Boyacá | L113: Frío
J114: Antioquia | K114: Briceño | L114: Templado
J115: Boyacá | K115: Briceño, Boyacá | L115: Templado
J116: Santander | K116: Bucaramanga | L116: Cálido seco
J117: Norte de Santander | K117: Bucarasica | L117: Templado
J118: Valle del Cauca | K118: Buenaventura | L118: Cálido húmedo
J119: Córdoba | K119: Buenavista, Córdoba | L119: Cálido húmedo
J120: Sucre | K120: Buenavista, Sucre | L120: Cálido seco
J121: Boyacá | K121: Buenavista | L121: Frío
J122: Quindio | K122: Buenavista, Quindío | L122: Templado
J123: Cauca | K123: Buenos Aires | L123: Templado
J124: Nariño | K124: Buesaco | L124: Templado
J125: Valle del Cauca | K125: Bugalagrande | L125: Templado
J126: Antioquia | K126: Buriticá | L126: Templado
J127: Boyacá | K127: Busbanzá | L127: Frío
J128: Cundinamarca | K128: Cabrera | L128: Frío
J129: Santander | K129: Cabrera, Santander | L129: Cálido seco
J130: Meta | K130: Cabuyaro | L130: Cálido húmedo
J131: Guainía | K131: Cacahual | L131: Cálido húmedo
J132: Cundinamarca | K132: Cachipay | L132: Templado
J133: Norte de Santander | K133: Cachirá | L133: Frío
J134: Norte de Santander | K134: Cácota | L134: Frío
J135: Antioquia | K135: Caicedo | L135: Templado
J136: Sucre | K136: Caimito | L136: Cálido seco
J137: Cauca | K137: Cajibío | L137: Templado
J138: Cundinamarca | K138: Cajicá | L138: Frío
J139: Bolívar | K139: Calamar | L139: Cálido húmedo
J140: Guaviare | K140: Calamar, Guaviare | L140: Cálido húmedo
J141: Antioquia | K141: Miraflores, Guaviare | L141: Templado
J142: Boyacá | K142: San José del Guaviare | L142: Frío
J143: Cauca | K143: Caldono | L143: Templado
J144: Valle del Cauca | K144: Santiago de Cali | L144: Cálido seco
J145: Santander | K145: California | L145: Frío
J146: Valle del Cauca | K146: Calima | L146: Templado
J147: Cauca | K147: Caloto | L147: Templado
J148: Antioquia | K148: Campamento | L148: Templado
J149: Atlántico | K149: Campo de La Cruz | L149: Cálido húmedo
J150: Huila | K150: Campoalegre | L150: Cálido seco
J151: Córdoba | K151: Canalete | L151: Cálido seco
J152: Valle del Cauca | K152: Candelaria, VC | L152: Templado
J153: Atlántico | K153: Candelaria | L153: Cálido húmedo
J154: Antioquia | K154: Cañasgordas | L154: Templado
J155: Cundinamarca | K155: Caparrapí | L155: Templado
J156: Santander | K156: Capitanejo | L156: Templado
J157: Cundinamarca | K157: Caqueza | L157: Templado
J158: Antioquia | K158: Caracolí | L158: Cálido húmedo
J159: Antioquia | K159: Caramanta | L159: Frío
J160: Santander | K160: Carcasí | L160: Frío
J161: Antioquia | K161: Carepa | L161: Cálido húmedo
J162: Cundinamarca | K162: Carmen de Carupa | L162: Frío
J163: Chocó | K163: Carmen del Darien | L163: Cálido húmedo
J164: Antioquia | K164: Carolina | L164: Templado
J165: Bolívar | K165: Cartagena de Indias | L165: Cálido húmedo
J166: Caquetá | K166: Cartagena del Chairá | L166: Cálido húmedo
J167: Valle del Cauca | K167: Cartago | L167: Templado
J168: Vaupés | K168: Caruru | L168: Cálido húmedo
J169: Tolima | K169: Casabianca | L169: Frío
J170: Meta | K170: Castilla la Nueva | L170: Cálido húmedo
J171: Antioquia | K171: Caucasia | L171: Cálido húmedo
J172: Santander | K172: Cepitá | L172: Cálido seco
J173: Córdoba | K173: Cereté | L173: Cálido seco
J174: Boyacá | K174: Cerinza | L174: Frío
J175: Santander | K175: Cerrito | L175: Frío
J176: Magdalena | K176: Cerro San Antonio | L176: Cálido húmedo
J177: Chocó | K177: Cértegui | L177: Cálido húmedo
J178: Nariño | K178: Chachagüí | L178: Templado
J179: Cundinamarca | K179: Chaguaní | L179: Templado
J180: Casanare | K180: Chameza | L180: Templado
J181: Tolima | K181: Chaparral | L181: Frío
J182: Santander | K182: Charalá | L182: Templado
J183: Santander | K183: Charta | L183: Templado
J184: Cundinamarca | K184: Chía | L184: Frío
J185: Antioquia | K185: Chigorodó | L185: Cálido húmedo
J186: Santander | K186: Chima | L186: Templado
J187: Córdoba | K187: Chimá | L187: Cálido seco
J188: Cesar | K188: Chimichagua | L188: Templado
J189: Norte de Santander | K189: Chinácota | L189: Templado
J190: Boyacá | K190: Chinavita | L190: Templado
J191: Caldas | K191: Chinchiná | L191: Templado
J192: Cundinamarca | K192: Chipaque | L192: Frío
J193: Santander | K193: Chipatá | L193: Templado
J194: Boyacá | K194: Chiquinquirá | L194: Frío
J195: Boyacá | K195: Chíquiza | L195: Frío
J196: Cesar | K196: Chiriguaná | L196: Cálido seco
J197: Boyacá | K197: Chiscas | L197: Frío
J198: Boyacá | K198: Chita | L198: Frío
J199: Norte de Santander | K199: Chitagá | L199: Frío
J200: Boyacá | K200: Chivatá | L200: Frío
J201: Magdalena | K201: Chivolo | L201: Cálido húmedo
... 836 more rows

Sheet Parámetros diseño digestor
D2: PARÁMETROS RECOMENDADOS A CONSIDERAR PARA EL DISEÑO DE BIODIGESTORES

Sheet Parámetros diseño pilas (hidden)
D2: PARÁMETROS RECOMENDADOS A CONSIDERAR PARA EL DISEÑO DE SISTEMAS DE PILAS DE COMPOSTAJE

Sheet Dropdown_Dptos (hidden)
A2: Dpto_Amazonas | B2: Dpto_Antioquia | C2: Dpto_Arauca | D2: Dpto_SanAndrés | E2: Dpto_Atlántico | F2: Bogotá | G2: Dpto_Bolívar | H2: Dpto_Boyacá | I2: Dpto_Caldas | J2: Dpto_Caquetá | K2: Dpto_Casanare | L2: Dpto_Cauca | M2: Dpto_Cesar | N2: Dpto_Chocó | O2: Dpto_Córdoba | P2: Dpto_Cundinamarca | Q2: Dpto_Guainía | R2: Dpto_Guaviare | S2: Dpto_Huila | T2: Dpto_Guajira | U2: Dpto_Magdalena | V2: Dpto_Meta | W2: Dpto_Nariño | X2: Dpto_Norte_de_Santander | Y2: Dpto_Putumayo | Z2: Dpto_Quindio | AA2: Dpto_Risaralda | AB2: Dpto_Santander | AC2: Dpto_Sucre | AD2: Dpto_Tolima | AE2: Dpto_Valle_del_Cauca | AF2: Dpto_Vaupés | AG2: Dpto_Vichada
A3: El Encanto | B3: Abejorral | C3: Arauca | D3: Providencia | E3: Baranoa | F3: Bogotá | G3: Achí | H3: Almeida | I3: Aguadas | J3: Albania | K3: Aguazul | L3: Almaguer | M3: Aguachica | N3: Acandí | O3: Buenavista, Córdoba | P3: Agua de Dios | Q3: Barranco Minas | R3: Calamar, Guaviare | S3: Acevedo | T3: Albania, Guajira | U3: Algarrobo | V3: Acacías | W3: Albán, Nariño | X3: Abrego | Y3: Colón, Putumayo | Z3: Armenia | AA3: Apía | AB3: Aguada, Santander | AC3: Buenavista, Sucre | AD3: Alpujarra | AE3: Alcalá | AF3: Caruru | AG3: Cumaribo
A4: La Chorrera | B4: Abriaquí | C4: Arauquita | D4: San Andrés | E4: Barranquilla | G4: Altos del Rosario | H4: Aquitania | I4: Aranzazu | J4: Belén de los Andaquies | K4: Chameza | L4: Argelia | M4: Agustín Codazzi | N4: Alto Baudó | O4: Canalete | P4: Albán | Q4: Cacahual | R4: El Retorno | S4: Agrado | T4: Barrancas | U4: Aracataca | V4: Barranca de Upía | W4: Aldana | X4: Arboledas | Y4: Leguízamo | Z4: Buenavista, Quindío | AA4: Balboa, Risaralda | AB4: Albania, Santander | AC4: Caimito | AD4: Alvarado | AE4: Andalucía | AF4: Mitú | AG4: La Primavera
A5: La Pedrera | B5: Alejandría | C5: Cravo Norte | E5: Campo de La Cruz | G5: Arenal | H5: Arcabuco | I5: Belalcázar | J5: Cartagena del Chairá | K5: Hato Corozal | L5: Balboa | M5: Astrea | N5: Bagadó | O5: Cereté | P5: Anapoima | Q5: Inírida | R5: Miraflores, Guaviare | S5: Aipe | T5: Dibulla | U5: Ariguaní | V5: Cabuyaro | W5: Ancuyá | X5: Bochalema | Y5: Mocoa | Z5: Circasia | AA5: Belén de Umbría | AB5: Aratoca | AC5: Corozal | AD5: Ambalema | AE5: Ansermanuevo | AF5: Pacoa | AG5: Puerto Carreño
A6: La Victoria | B6: Amagá | C6: Fortul | E6: Candelaria | G6: Arjona | H6: Belén | I6: Chinchiná | J6: Curillo | K6: La Salina | L6: Bolívar | M6: Becerril | N6: Bahía Solano | O6: Chimá | P6: Anolaima | Q6: La Guadalupe | R6: San José del Guaviare | S6: Algeciras | T6: Distracción | U6: Cerro San Antonio | V6: Castilla la Nueva | W6: Arboleda | X6: Bucarasica | Y6: Orito | Z6: Córdoba, Quindío | AA6: Dosquebradas | AB6: Barbosa, Santander | AC6: Coveñas | AD6: Anzoátegui | AE6: Argelia, VC | AF6: Papunaua | AG6: Santa Rosalía
A7: Leticia | B7: Amalfi | C7: Puerto Rondón | E7: Galapa | G7: Arroyohondo | H7: Berbeo | I7: Filadelfia | J7: El Doncello | K7: Maní | L7: Buenos Aires | M7: Bosconia | N7: Bajo Baudó | O7: Ciénaga de Oro | P7: Apulo | Q7: Morichal | S7: Altamira | T7: Fonseca | U7: Chivolo | V7: Cubarral | W7: Barbacoas | X7: Cachirá | Y7: Puerto Asís | Z7: Filandia | AA7: Guática | AB7: Barichara | AC7: El Roble | AD7: Carmen de Apicalá | AE7: Bolívar, VC | AF7: Taraira
A8: Miriti - Paraná | B8: Andes | C8: Saravena | E8: Malambo | G8: Barranco de Loba | H8: Betéitiva | I8: La Dorada | J8: El Paujil | K8: Monterrey | L8: Cajibío | M8: Chimichagua | N8: Bojaya | O8: Cotorra | P8: Arbeláez | Q8: Pana Pana | S8: Baraya | T8: Hatonuevo | U8: Ciénaga, Magdalena | V8: Cumaral | W8: Belén, Nariño | X8: Cácota | Y8: Puerto Caicedo | Z8: Génova | AA8: La Celia | AB8: Barrancabermeja | AC8: Galeras | AD8: Casabianca | AE8: Buenaventura | AF8: Yavaraté
A9: Puerto Alegría | B9: Angelópolis | C9: Tame | E9: Manatí | G9: Calamar | H9: Boavita | I9: La Merced | J9: Florencia | K9: Nunchía | L9: Caldono | M9: Chiriguaná | N9: Carmen del Darién | O9: La Apartada | P9: Beltrán | Q9: Puerto Colombia | S9: Campoalegre | T9: Maicao | U9: Concordia, Magdalena | V9: El Calvario | W9: Buesaco | X9: Chinácota | Y9: Puerto Guzmán | Z9: La Tebaida | AA9: La Virginia | AB9: Betulia, Santander | AC9: Guaranda | AD9: Chaparral | AE9: Bugalagrande
A10: Puerto Arica | B10: Angostura | E10: Palmar de Varela | G10: Cartagena de Indias | H10: Boyacá | I10: Manizales | J10: La Montañita | K10: Orocué | L10: Caloto | M10: Curumaní | N10: Cértegui | O10: Lorica | P10: Bituima | Q10: San Felipe | S10: Colombia | T10: Manaure, Guajira | U10: El Piñon | V10: El Castillo | W10: Chachagüí | X10: Chitagá | Y10: San Francisco, Putumayo | Z10: Montenegro | AA10: Marsella | AB10: Bolívar, Santander | AC10: La Unión, Sucre | AD10: Coello | AE10: Calima
A11: Puerto Nariño | B11: Anorí | E11: Polonuevo | G11: Clemencia | H11: Briceño, Boyacá | I11: Marmato | J11: Milán | K11: Paz de Ariporo | L11: Corinto | M11: El Copey | N11: Condoto | O11: Los Córdobas | P11: Bojacá | S11: Elías | T11: Riohacha | U11: El Retén | V11: El Dorado | W11: Colón | X11: Convención | Y11: San Miguel | Z11: Pijao | AA11: Mistrató | AB11: Bucaramanga | AC11: Los Palmitos | AD11: Coyaima | AE11: Candelaria, VC
A12: Puerto Santander | B12: Anza | E12: Ponedera | G12: Córdoba | H12: Buenavista | I12: Marquetalia | J12: Morelia | K12: Pore | L12: El Tambo | M12: El Paso | N12: El Cantón del San Pablo | O12: Momil | P12: Cabrera | S12: Garzón | T12: Uribia | U12: Fundación | V12: Fuente de Oro | W12: Consaca | X12: Cúcuta | Y12: Santiago, Putumayo | Z12: Quimbaya | AA12: Pereira | AB12: Cabrera, Santander | AC12: Majagual | AD12: Cunday | AE12: Cartago
A13: Tarapacá | B13: Apartadó | E13: Puerto Colombia | G13: El Carmen de Bolívar | H13: Busbanzá | I13: Marulanda | J13: Puerto Rico | K13: Recetor | L13: Florencia, Cauca | M13: Gamarra | N13: El Carmen de Atrato | O13: Montelíbano | P13: Cachipay | S13: Gigante | U13: Nueva Granada | V13: Granada, Meta | W13: Contadero | X13: Cucutilla | Y13: Sibundoy | Z13: Salento | AA13: Pueblo Rico, Risaralda | AB13: California | AC13: Morroa | AD13: Dolores | AE13: Dagua
B14: Arboletes | E14: Repelón | G14: El Guamo | H14: Caldas, Boyacá | I14: Neira | J14: San José del Fragua | K14: Sabanalarga, Casanare | L14: Guachené | M14: La Gloria | N14: Litoral de San Juan | O14: Montería | P14: Cajicá | S14: Guadalupe, Huila | U14: Pedraza | V14: Guamal | W14: Cuaspud | X14: Durania | Y14: Valle del Guamuez | AA14: Santa Rosa de Cabal | AB14: Capitanejo | AC14: Ovejas | AD14: Espinal | AE14: El Águila
B15: Barbosa | E15: Sabanagrande | G15: El Peñón | H15: Cerinza | I15: Norcasia | J15: San Vicente del Caguán | K15: Sácama | L15: Guapi | M15: La Jagua de Ibirico | N15: Istmina | O15: Moñitos | P15: Caparrapí | S15: Hobo | U15: Pijiño del Carmen | V15: La Macarena | W15: Cumbal | X15: El Carmen | Y15: Villagarzón | AA15: Santuario | AB15: Carcasí | AC15: Sampués | AD15: Falan | AE15: El Cairo
B16: Bello | E16: Sabanalarga, Atlántico | G16: Hatillo de Loba | H16: Chinavita | I16: Pácora | J16: Solano | K16: San Luis de Palenque | L16: Inzá | M16: La Paz | N16: Juradó | O16: Planeta Rica | P16: Caqueza | S16: Iquira | U16: Pivijay | V16: Lejanías | W16: Cumbitara | X16: El Tarra | AB16: Cepitá | AC16: San Benito Abad | AD16: Flandes | AE16: El Cerrito
B17: Belmira | E17: Santo Tomás | G17: Mahates | H17: Chiquinquirá | I17: Palestina | J17: Solita | K17: Támara | L17: Jambaló | M17: Manaure | N17: Lloró | O17: Pueblo Nuevo | P17: Carmen de Carupa | S17: Neiva | U17: Plato | V17: Mapiripán | W17: El Charco | X17: El Zulia | AB17: Cerrito | AC17: San Juan de Betulia | AD17: Fresno | AE17: El Dovio
B18: Betania | E18: Soledad | G18: Margarita | H18: Chíquiza | I18: Pensilvania | J18: Valparaíso | K18: Tauramena | L18: La Sierra | M18: Pailitas | N18: Medio Baudó | O18: Puerto Escondido | P18: Chaguaní | S18: Oporapa | U18: Puebloviejo | V18: Mesetas | W18: El Peñol | X18: Gramalote | AB18: Charalá | AC18: San Luis de Sincé | AD18: Guamo | AE18: Florida
B19: Betulia | E19: Suan | G19: Mompós | H19: Chiscas | I19: Riosucio | K19: Trinidad | L19: La Vega | M19: Pelaya | N19: Medio San Juan | O19: Puerto Libertador | P19: Chía | S19: Palermo | U19: Salamina, Magdalena | V19: Puerto Concordia | W19: El Rosario | X19: Hacarí | AB19: Charta | AC19: San Marcos | AD19: Herveo | AE19: Ginebra
B20: Briceño | E20: Usiacurí | G20: Montecristo | H20: Chita | I20: Salamina | K20: Villanueva | L20: López | M20: Pueblo Bello | N20: Nóvita | O20: Purísima | P20: Chipaque | S20: Palestina, Huila | U20: San Sebastián de Buenavista | V20: Puerto Gaitán | W20: El Tablón de Gómez | X20: Herrán | AB20: Chima | AC20: San Onofre | AD20: Honda | AE20: Guacarí
B21: Buriticá | G21: Morales | H21: Chivatá | I21: Samaná | K21: Yopal | L21: Mercaderes | M21: San Martín | N21: Nuquí | O21: Sahagún | P21: Choachí | S21: Pital | U21: San Zenón | V21: Puerto Lleras | W21: El Tambo, Nariño | X21: La Esperanza | AB21: Chipatá | AC21: San Pedro, Sucre | AD21: Ibagué | AE21: Guadalajara de Buga
B22: Cáceres | G22: Pinillos | H22: Chivor | I22: San José | L22: Miranda | M22: Tamalameque | N22: Quibdó | O22: San Andrés Sotavento | P22: Chocontá | S22: Pitalito | U22: Santa Ana | V22: Puerto López | W22: Francisco Pizarro | X22: La Playa | AB22: Cimitarra | AC22: Sincelejo | AD22: Lérida | AE22: Jamundí
B23: Caicedo | G23: Regidor | H23: Ciénega | I23: Supía | L23: Morales | M23: Valledupar | N23: Riosucio, Chocó | O23: San Antero | P23: Cogua | S23: Rivera | U23: Santa Bárbara de Pinto | V23: Puerto Rico, Meta | W23: Funes | X23: Labateca | AB23: Concepción, Santander | AC23: Sucre | AD23: Líbano | AE23: La Cumbre
B24: Caldas | G24: Río Viejo | H24: Cómbita | I24: Victoria | L24: Padilla | N24: San José del Palmar | O24: San Bernardo del Viento | P24: Cota | S24: Saladoblanco | U24: Santa Marta | V24: Restrepo | W24: Guachucal | X24: Los Patios | AB24: Confines | AC24: Tolú | AD24: Mariquita | AE24: La Unión, VC
B25: Campamento | G25: San Cristóbal | H25: Coper | I25: Villamaría | L25: Paez | N25: Sipí | O25: San Carlos, Córdoba | P25: Cucunubá | S25: San Agustín | U25: Sitionuevo | V25: San Carlos de Guaroa | W25: Guaitarilla | X25: Lourdes | AB25: Contratación | AD25: Melgar | AE25: La Victoria, VC
B26: Cañasgordas | G26: San Estanislao | H26: Corrales | L26: Patía | N26: Tadó | O26: San Pelayo | P26: El Colegio | S26: Santa María, Huila | U26: Tenerife | V26: San Juan de Arama | W26: Gualmatán | X26: Mutiscua | AB26: Coromoro | AD26: Murillo | AE26: Obando
B27: Caracolí | G27: San Fernando | H27: Cubará | L27: Piamonte | N27: Unguía | O27: Tierralta | P27: El Peñón, Cundinamarca | S27: Suaza | V27: San Juanito | W27: Iles | X27: Ocaña | AB27: Curití | AD27: Natagaima | AE27: Palmira
B28: Caramanta | G28: San Jacinto | H28: Cucaita | L28: Piendamó | N28: Unión Panamericana | O28: Valencia | P28: El Rosal | S28: Tarqui | V28: San Martín, Meta | W28: Imués | X28: Pamplona | AB28: El Carmen de Chucurí | AD28: Ortega | AE28: Pradera
B29: Carepa | G29: San Jacinto del Cauca | H29: Cuítiva | L29: Popayán | P29: Facatativá | S29: Tello | V29: Villavicencio | W29: Ipiales | X29: Pamplonita | AB29: El Guacamayo | AD29: Palocabildo | AE29: Restrepo, VC
B30: Carolina | G30: San Juan Nepomuceno | H30: Duitama | L30: Puerto Tejada | P30: Fomeque | S30: Teruel | V30: Vistahermosa | W30: La Cruz | X30: Puerto Santander, NS | AB30: El Peñón, Santander | AD30: Piedras | AE30: Riofrío
B31: Caucasia | G31: San Martín de Loba | H31: El Cocuy | L31: Puracé | P31: Fosca | S31: Timaná | W31: La Florida | X31: Ragonvalia | AB31: El Playón | AD31: Planadas | AE31: Roldanillo
B32: Chigorodó | G32: San Pablo | H32: El Espino | L32: Rosas | P32: Funza | S32: Villavieja | W32: La Llanada | X32: Salazar | AB32: Encino | AD32: Prado | AE32: San Pedro, VC
B33: Cisneros | G33: Santa Rosa del Sur | H33: Firavitoba | L33: San Sebastián | P33: Fúquene | S33: Yaguará | W33: La Tola | X33: San Calixto | AB33: Enciso | AD33: Purificación | AE33: Santiago de Cali
B34: Ciudad Bolívar | G34: Simití | H34: Floresta | L34: Santa Rosa | P34: Fusagasugá | W34: La Unión, Nariño | X34: San Cayetano, NS | AB34: Florián | AD34: Rioblanco | AE34: Sevilla
B35: Cocorná | G35: Soplaviento | H35: Gachantivá | L35: Santander de Quilichao | P35: Gachala | W35: Leiva | X35: Santiago | AB35: Floridablanca | AD35: Roncesvalles | AE35: Toro
B36: Concepción | G36: Turbaco | H36: Gameza | L36: Silvia | P36: Gachancipá | W36: Linares | X36: Sardinata | AB36: Galán | AD36: Rovira | AE36: Trujillo
B37: Concordia | H37: Garagoa | L37: Sotara | P37: Gachetá | W37: Magüi | X37: Silos | AB37: Gambita | AD37: Saldaña | AE37: Tuluá
B38: Copacabana | H38: Guacamayas | L38: Suárez | P38: Gama | W38: Mallama | X38: Teorama | AB38: Girón | AD38: San Antonio | AE38: Ulloa
B39: Dabeiba | H39: Guateque | L39: Timbío | P39: Girardot | W39: Mosquera, Nariño | X39: Tibú | AB39: Guaca | AD39: Santa Isabel | AE39: Versalles, VC
B40: Don Matías | H40: Guayatá | L40: Timbiquí | P40: Granada, Cundinamarca | W40: Nariño | X40: Toledo, NS | AB40: Guadalupe, Santander | AD40: Suárez | AE40: Vijes
B41: Ebéjico | H41: Güicán | L41: Toribio | P41: Guachetá | W41: Olaya Herrera | X41: Villa Caro | AB41: Guapotá | AD41: Valle de San Juan | AE41: Yotoco
B42: El Bagre | H42: Iza | L42: Totoró | P42: Guaduas | W42: Ospina | X42: Villa del Rosario | AB42: Guavatá | AD42: Venadillo | AE42: Yumbo
B43: El Carmen de Viboral | H43: Jenesano | L43: Villa Rica | P43: Guasca | W43: Pasto | AB43: Güepsa | AD43: Villahermosa | AE43: Zarzal, VC
B44: El Santuario | H44: Jericó, Boyacá | P44: Guataquí | W44: Policarpa | AB44: Hato | AD44: Villarrica
B45: Entrerrios | H45: La Capilla | P45: Guatavita | W45: Potosí | AB45: Jesús María
B46: Envigado | H46: La Uvita | P46: Guayabal de Siquima | W46: Providencia, Nariño | AB46: Jordán
B47: Fredonia | H47: La Victoria, Boyacá | P47: Guayabetal | W47: Puerres | AB47: La Belleza
B48: Frontino | H48: Labranzagrande | P48: Gutiérrez | W48: Pupiales | AB48: La Paz, Santander
B49: Giraldo | H49: Macanal | P49: Jerusalén | W49: Ricaurte, Nariño | AB49: Landázuri
B50: Girardota | H50: Maripí | P50: Junín | W50: Roberto Payán | AB50: Lebríja
B51: Gómez Plata | H51: Miraflores | P51: La Calera | W51: Samaniego | AB51: Los Santos
B52: Granada | H52: Mongua | P52: La Mesa | W52: San Andres de Tumaco | AB52: Macaravita
B53: Guadalupe | H53: Monguí | P53: La Palma | W53: San Bernardo | AB53: Málaga
B54: Guarne | H54: Moniquirá | P54: La Peña | W54: San Lorenzo | AB54: Matanza
B55: Guatapé | H55: Motavita | P55: La Vega, Cundinamarca | W55: San Pablo, Nariño | AB55: Mogotes
B56: Heliconia | H56: Muzo | P56: Lenguazaque | W56: San Pedro de Cartago | AB56: Molagavita
B57: Hispania | H57: Nobsa | P57: Machetá | W57: Sandoná | AB57: Ocamonte
B58: Itagui | H58: Nuevo Colón | P58: Madrid | W58: Santa Bárbara, Nariño | AB58: Oiba
B59: Ituango | H59: Oicatá | P59: Manta | W59: Sapuyes | AB59: Onzaga
B60: Jardín | H60: Otanche | P60: Medina | W60: Taminango | AB60: Palmar
B61: Jericó | H61: Pachavita | P61: Mosquera | W61: Tangua | AB61: Palmas del Socorro
B62: La Ceja | H62: Páez | P62: Nariño | W62: Túquerres | AB62: Páramo
B63: La Estrella | H63: Paipa | P63: Nemocón | W63: Yacuanquer | AB63: Piedecuesta
B64: La Pintada | H64: Pajarito | P64: Nilo | AB64: Pinchote
B65: La Unión | H65: Panqueba | P65: Nimaima | AB65: Puente Nacional
B66: Liborina | H66: Pauna | P66: Nocaima | AB66: Puerto Parra
B67: Maceo | H67: Paya | P67: Pacho | AB67: Puerto Wilches
B68: Marinilla | H68: Paz del Río | P68: Paime | AB68: Rionegro, Santander
B69: Medellín | H69: Pesca | P69: Pandi | AB69: Sabana de Torres
B70: Montebello | H70: Pisba | P70: Paratebueno | AB70: San Andrés, Santander
B71: Murindó | H71: Puerto Boyacá | P71: Pasca | AB71: San Benito
B72: Mutatá | H72: Quípama | P72: Pulí | AB72: San Gil
B73: Nechí | H73: Ramiriquí | P73: Quebradanegra | AB73: San Joaquín
B74: Necoclí | H74: Ráquira | P74: Quetame | AB74: San José de Miranda
B75: Olaya | H75: Rondón | P75: Quipile | AB75: San Miguel
B76: Peñol | H76: Saboyá | P76: Ricaurte | AB76: San Vicente de Chucurí
B77: Peque | H77: Sáchica | P77: San Antonio del Tequendama | AB77: Santa Bárbara, Santander
B78: Pueblorrico | H78: Samacá | P78: San Bernardo | AB78: Santa Helena del Opón
B79: Puerto Berrío | H79: San Eduardo | P79: San Cayetano | AB79: Simacota
B80: Puerto Nare | H80: San Luis de Gaceno | P80: San Francisco, Cundinamarca | AB80: Socorro
B81: Puerto Triunfo | H81: San Mateo | P81: San Juan de Río Seco | AB81: Suaita
B82: Retiro | H82: San Miguel de Sema | P82: Sasaima | AB82: Sucre, Santander
B83: Rionegro | H83: San Pablo de Borbur | P83: Sesquilé | AB83: Suratá
B84: Sabanalarga | H84: Santa María | P84: Sibaté | AB84: Tona
B85: Sabaneta | H85: Santa Rosa de Viterbo | P85: Silvania | AB85: Valle de San José
B86: Salgar | H86: Santa Sofía | P86: Simijaca | AB86: Vélez
B87: San Andrés de Cuerquía | H87: Sativanorte | P87: Soacha | AB87: Vetas
B88: San Carlos | H88: Sativasur | P88: Sopó | AB88: Villanueva, Santander
B89: San Francisco | H89: Siachoque | P89: Subachoque | AB89: Zapatoca
B90: San Jerónimo | H90: Soatá | P90: Suesca
B91: San José de La Montaña | H91: Socha | P91: Susa
B92: San Juan de Urabá | H92: Socotá | P92: Sutatausa
B93: San Luis | H93: Sogamoso | P93: Tabio
B94: San Pedro | H94: Somondoco | P94: Tausa
B95: San Pedro de Uraba | H95: Sora | P95: Tena
B96: San Rafael | H96: Soracá | P96: Tenjo
B97: San Roque | H97: Sotaquirá | P97: Tibacuy
B98: San Vicente | H98: Susacón | P98: Tibirita
B99: Santa Bárbara | H99: Sutamarchán | P99: Tocaima
B100: Santa Rosa de Osos | H100: Sutatenza | P100: Tocancipá
B101: Santafé de Antioquia | H101: Tasco | P101: Topaipí
B102: Santo Domingo | H102: Tenza | P102: Ubalá
B103: Segovia | H103: Tibaná | P103: Ubaque
B104: Sonson | H104: Tibasosa | P104: Une
B105: Sopetrán | H105: Tinjacá | P105: Útica
B106: Támesis | H106: Tipacoque | P106: Venecia
B107: Tarazá | H107: Toca | P107: Vergara
B108: Tarso | H108: Tópaga | P108: Vianí
B109: Titiribí | H109: Tota | P109: Villagómez
B110: Toledo | H110: Tunja | P110: Villapinzón
B111: Turbo | H111: Tununguá | P111: Villeta
B112: Uramita | H112: Turmequé | P112: Viotá
B113: Urrao | H113: Tuta | P113: Yacopí
B114: Valdivia | H114: Tutazá | P114: Zipacón
B115: Valparaíso | H115: Umbita | P115: Zipaquirá
B116: Vegachí | H116: Ventaquemada
B117: Vigía del Fuerte | H117: Villa de Leyva
B118: Yalí | H118: Viracachá
B119: Yarumal | H119: Zetaquira
B120: Yolombó
B121: Zaragoza

Sheet Estrés hídrico (IUA)
C2: IDENTIFICACIÓN DEL ESTADO DEL USO DEL RECURSO HÍDRICO POR MUNICIPIO EN COLOMBIA
B3: ¿Qué es el ENA 2022 y que municipios incluye esta herramienta?
B4: El Estudio Nacional del Agua 2022 es un informe que analiza y presenta el estado de los recursos hídricos en el país. Este estudio proporciona información clave sobre cuánta agua tiene Colombia en ríos, lagos y embalses, cómo se utiliza, y cuáles son las principales amenazas que enfrenta. El ENA 2022 también ayuda a entender qué regiones tienen más o menos agua disponible, y sirve para que el gobierno y las comunidades tomen decisiones sobre cómo cuidar mejor el recurso y garantizar que haya suficiente disponibilidad para el futuro. La herramienta presentada incluye información hidrográfica que relaciona los datos sobre el indie IUA del ENA 2022 en año medio y seco con los datos contenidos en documentos como los Planes de Ordenación y Manejo de Cuencas Hidrográficas (POMCA), los Planes Estratégicos de las cinco macrocuencas del país (Caribe, Magdalena-Cauca, Pacífico, Orinoco y Amazonas Y los Catálogos de Subzonas Hidrográficas de las macrocuencas Magdalena-Cauca y Caribe). De este análisis se recopiló información sobre municipios en zona de influencia por subzona hidrográfica para 1039 municipios de los 1101 municipios existentes en el país, abarcando el 94,4% de la información aplicable del país. Los 62 municipios restantes no fueron incluidos al no tener información específica para estos.
B6: MetodologÍa del Índice de Uso de Agua (IUA)
B7: Finalidad del IUA | C7: El Índice de Uso de Agua corresponde a la medida que indica cuánto se está utilizando el agua disponible en una región en comparación con la cantidad total que hay. Es una forma de saber si se está usando mucha o poca agua respecto a lo que se tiene. Si el IUA es alto, significa que se está usando una gran parte del agua disponible, lo que puede llevar a problemas de escasez. Si es bajo, significa que se está utilizando solo una pequeña parte del agua disponible, lo que es más sostenible.
B8: Fórmula de Cálculo | F8: Rangos del índice de Uso de Agua | G8: Categoría | H8: Interpretación del Índice de Uso del Agua
B9: IUA: Índice de Uso del Agua en la unidad espacial de referencia para condición hidrológica promedio o de año seco (%). En la expresión más cercana del estrés hídrico, dado que relaciona las variables de oferta y demanda de agua. | F9: >100 | G9: Crítico | H9: Se hace uso de la totalidad del recurso disponible. Las situaciones de escasez son inminentes o ya están ocurriendo. La gestión del agua debe ser revisada y ajustada a la situación real con acciones en el corto y mediano plazo.
B10: DHMN: La Demanda Hídrica Multisectorial Nacional en la unidad espacial de referencia (Mm3 /año). | F10: 50.01 - 100 | G10: Muy Alto | H10: Se está utilizando casi la totalidad del agua disponible. Se requiere tomar medidas urgentes para optimizar y hacer un uso eficiente del recurso. Actividades económicas altamente demandantes del recurso podría generar desabastecimiento.
B11: OHDS: La Oferta Hídrica Disponible superficial se refiere a la cantidad de agua que está disponible en la superficie de la tierra y que puede ser utilizada para diferentes necesidades. Es el agua que se puede aprovechar directamente de estas fuentes naturales, y su disponibilidad puede variar según las lluvias, el clima y la gestión del agua (Mm3 /año). Este relaciona los siguientes dos términos: | F11: 20.01 - 50 | G11: Alta | H11: Se está usando un alto porcentaje del agua disponible. Se requiere tomar medidas para evitar un impacto sostenido sobre el recurso que lleve a situaciones de escasez si se continúa consumiendo en el mismo ritmo.
F12: 10.01 - 20 | G12: Moderada | H12: Se realiza uso racional del agua. Existe una buena disponibilidad del recurso disponible, sin embargo, es importante mantener un uso consciente y responsable para no alcanzar niveles altos de consumo.
B13: - Año medio: Es un año en el que la cantidad de lluvia es cercana al promedio o lo que se espera en un año típico. En este caso, el agua disponible suele ser suficiente para las necesidades normales, sin grandes escaseces ni excesos. | F13: 1.0 - 10 | G13: Baja | H13: El uso de agua representa solo una pequeña fracción de la cantidad total de agua disponible en la región. Esto significa que la demanda de agua está bien equilibrada con la oferta, y hay suficiente agua para cubrir las necesidades actuales sin ejercer mucha presión sobre los recursos hídricos.
B14: - Año seco: Años en los que llueve mucho menos de lo normal según el promedio de la región. Esto significa que hay menos agua disponible en ríos, lagos y otras fuentes, lo que puede afectar el suministro de agua para el consumo, la agricultura y otras actividades. | F14: ≤ 1 | G14: Muy Baja | H14: Se hace uso de una cantidad mínima del agua disponible, lo cual puede estar asociado a regiones que no son densamente pobladas. Existe abundancia del recurso hídrico, por tanto, se deben establecer planes para garantizar la adecuada gestión y mantenimiento de las fuentes hídricas.
F15: Sin Información | G15: S.I | H15: No fue clasificado dentro del ENA 2022.

Sheet IUA_Recomendaciones Inversión (hidden)
C2: IDENTIFICACIÓN DEL ESTADO DEL USO DEL RECURSO HÍDRICO POR MUNICIPIO EN COLOMBIA
B4: ESTADO DEL USO DEL AGUA EN EL MUNICIPIO DE ELECCIÓN
B5: PASO 1 | C5: ¿En cual departamento está interesado en realizar la inversión? | J5: Dpto_Arauca
B6: PASO 2. | C6: ¿En que municipio desea realizar la inversión? | J6: Arauquita
B8: RESULTADOS DEL IUA POR MUNICIPIO Y SUBZONA HIDROGRÁFICA
B9: Área Hidrográfica AH | C9: Zona Hidrográfica ZH | D9: SZH | E9: Nombre de subzona hidrográfica | F9: Departamento | G9: Municipio | H9: Índice de uso del agua (IUA) según ENA 2022
H10: Año medio | J10: Año seco
H11: Valor | I11: Categoría | J11: Valor | K11: Categoría
B12: Orinoco | C12: Casanare | D12: 3603 | E12: Río Cravo Norte | F12: Dpto_Arauca | G12: Arauquita | H12: 5.61836488 | I12: Baja | J12: 15.07866352 | K12: Moderada
B13: Orinoco | C13: Arauca | D13: 3705 | E13: Río Banadia y otros Directos al río Arauca (md) | F13: Dpto_Arauca | G13: Arauquita | H13: 6.082287676 | I13: Baja | J13: 15.52081161 | K13: Moderada
B15: RECOMENDACIONES DE LOS TIPOS DE INVERSIONES FACTIBLES DE REALIZACION EN EL MUNICIPIO DE ELECCION
B16: Muy Baja | C16: En esta categoría la oferta hídrica superficial disponible supera la demanda hídrica y el sistema hídrico superficial puede satisfacer la demanda sin dificultad (IDEAM, s.f.). Esta categoría indica que, incluso durante años secos, el nivel de extracción de agua en el municipio es relativamente sostenible y no ejerce una presión significativa sobre los recursos hídricos disponibles. Para mantener el estado actual del recurso es esencial que se adopten prácticas eficientes de uso de agua, como la implementación de tecnologías de ahorro, el reciclaje de agua, y la optimización en los procesos productivos que utilicen este recurso. Las inversiones recomendadas en territorios con esta categorización debería enfocarse en proyectos que gestionen racionalmente el recurso hídrico, como: la agricultura de precisión, los sistemas de riego eficientes (p. ej: por goteo o aspersión controlada), la infraestructura verde, y en las tecnologías de reutilización de agua, promoviendo así un uso responsable y adaptado a la disponibilidad del recurso hídrico (CONAGUA, 2016).
B17: Baja
B18: Moderada
B19: Alta | C19: En esta categoría los sistemas hídricos superficiales aún pueden satisfacer la demanda sin entrar en competencia con el caudal ambiental. Esto implica que deben tomarse decisiones enfocadas en la gestión integral y sostenible del agua, articuladas con la protección, conservación y restauración de los ecosistemas, la biodiversidad y los sistemas hídricos superficiales (IDEAM, s.f.). En este sentido es recomendable hacer uso eficiente del recurso hídrico e implementar tecnologías, herramientas o sistemas para optimizar el uso del agua y disminuir la presión sobre las fuentes de abastecimiento convencionales. Considerando que el alcance de este trabajo se centra en entornos rurales, algunas herramientas que podrían emplearse son las siguientes: • Uso de sistemas de captación de agua lluvia para su aprovechamiento en hogares o sistemas de riego. • Implementación de sistemas de riego por goteo. • Implementación de sistemas de riego de alta tecnología, los cuales incluyen el uso de sensores de humedad que optimizan la distribución de agua en el cultivo.
B20: Muy Alta | C20: En esta categoría los sistemas hídricos superficiales se encuentran al limite de su capacidad para satisfacer la demanda hídrica sin entrar en competencia con el caudal ambiental, existe una alta probabilidad de escasez en épocas de largos periodos de sequía. Esto implica que deben tomarse decisiones enfocadas en la gestión integral y sostenible del agua, articuladas con la protección, conservación y restauración de los ecosistemas, la biodiversidad y los sistemas hídricos superficiales (IDEAM, s.f.). En este sentido es recomendable hacer uso eficiente del recurso hídrico e implementar tecnologías, herramientas o sistemas para optimizar el uso del agua y disminuir la presión sobre las fuentes de abastecimiento convencionales. Considerando que el alcance de este trabajo se centra en entornos rurales, algunas herramientas que podrían emplearse son las siguientes: • Uso de sistemas de captación de agua lluvia para su aprovechamiento en hogares o sistemas de riego. • Implementación de herramientas que optimicen el uso de agua en hogares, como el uso de duchas y cisternas eficientes. • Reuso de aguas grises en cisternas y actividades de limpieza. • Implementación de sistemas de riego por goteo. • Implementación de sistemas de riego de alta tecnología, los cuales incluyen el uso de sensores de humedad que optimizan la distribución de agua en el cultivo.
B21: Critico | C21: En esta categoría los sistemas hídricos superficiales se encuentran al limite de su capacidad para satisfacer la demanda del recurso, existe competencia de la demanda respecto al caudal ambiental y es inminente la ocurrencia de periodos de desabastecimiento y escasez del recurso por bajo nivel de oferta hídrica. Esto implica que deben tomarse decisiones enfocadas en la gestión integral y sostenible del agua, articuladas con la protección, conservación y restauración de los ecosistemas, la biodiversidad y los sistemas hídricos superficiales (IDEAM, s.f.). En este sentido es recomendable hacer uso eficiente del recurso hídrico e implementar tecnologías, herramientas o sistemas para optimizar el uso del agua y disminuir la presión sobre las fuentes de abastecimiento convencionales. Considerando que el alcance de este trabajo se centra en entornos rurales, algunas herramientas que podrían emplearse son las siguientes: • Uso de sistemas de captación de agua lluvia para su aprovechamiento en hogares o sistemas de riego. • Implementación de herramientas que optimicen el uso de agua en hogares, como el uso de duchas y cisternas eficientes. • Reuso de aguas grises en cisternas y actividades de limpieza. • Implementación de sistemas de riego por goteo. • Implementación de sistemas de riego de alta tecnología, los cuales incluyen el uso de sensores de humedad que optimizan la distribución de agua en el cultivo.

Sheet Base_datos_EH (hidden)
C2: BASE DE DATOS PARA EL FUNCIONAMIENTO DE LA HERRAMIENTA DE CÁLCULO DE SISTEMAS DE CAPTACIÓN DE AGUAS LLUVIA
B4: DATOS PROMEDIO DE PRECIPITACIÓN MENSUAL (mm) POR DEPARTAMENTO PARA EL PERIODO 1993 - 2023 | S4: TABLA DE CONVERSIONES
B5: DEPARTAMENTO | C5: ENE | D5: FEB | E5: MAR | F5: ABR | G5: MAY | H5: JUN | I5: JUL | J5: AGO | K5: SEP | L5: OCT | M5: NOV | N5: DIC | O5: PROM | S5: Unidades de tiempo
B6: Amazonas | C6: 265.422182 | D6: 261.6890826 | E6: 344.5961811 | F6: 393.8144106 | G6: 386.1700449 | H6: 329.4911439 | I6: 303.9452152 | J6: 228.6248974 | K6: 233.8013419 | L6: 260.3693753 | M6: 260.1228863 | N6: 287.9901997 | O6: =AVERAGE(C6:N6) -> 296.3364134 | S6: 1 | T6: hora | U6: 3600 | V6: segundos
B7: Antioquia | C7: 95.28749601 | D7: 101.8106938 | E7: 180.7648178 | F7: 278.9379065 | G7: 339.6896809 | H7: 281.1654426 | I7: 262.0732102 | J7: 286.7914939 | K7: 313.3381398 | L7: 331.3790933 | M7: 286.5254777 | N7: 164.6851681 | O7: 243.537385 | S7: 1 | T7: día | U7: 24 | V7: horas
B8: Arauca | C8: 24.25799879 | D8: 25.96241384 | E8: 72.38340343 | F8: 192.0373528 | G8: 278.6431397 | H8: 302.1592439 | I8: 279.2611348 | J8: 221.9712462 | K8: 210.4251556 | L8: 203.8329466 | M8: 140.8920491 | N8: 49.27693888 | O8: 166.7585853 | S8: 1 | T8: semana | U8: 7 | V8: días
B9: Atlántico | C9: 6.618257374 | D9: 4.737912935 | E9: 18.32050626 | F9: 69.12710543 | G9: 134.6489836 | H9: 111.8311229 | I9: 108.7888916 | J9: 140.1439217 | K9: 153.8772749 | L9: 176.1059774 | M9: 130.1352917 | N9: 32.0180338 | O9: 90.52943996 | S9: 1 | T9: mes | U9: 30 | V9: días
B10: Bolívar | C10: 29.62662003 | D10: 29.98424397 | E10: 69.72013053 | F10: 156.6991128 | G10: 243.3219186 | H10: 222.6118821 | I10: 211.0985853 | J10: 255.8544317 | K10: 261.6370444 | L10: 289.0198747 | M10: 234.2054114 | N10: 99.07158169 | O10: 175.2375698 | S10: 1 | T10: mes | U10: 4.345 | V10: semanas
B11: Boyacá | C11: 40.39658452 | D11: 56.2428879 | E11: 108.2100797 | F11: 166.976091 | G11: 185.3153696 | H11: 158.722864 | I11: 153.8894329 | J11: 132.2278822 | K11: 120.5219683 | L11: 150.8008958 | M11: 128.3747303 | N11: 61.35413577 | O11: 121.9194102 | S11: 1 | T11: año | U11: 365 | V11: días
B12: Caldas | C12: 166.9198284 | D12: 177.0684269 | E12: 239.6473139 | F12: 276.4573804 | G12: 256.7317653 | H12: 129.190612 | I12: 139.3793458 | J12: 126.4813938 | K12: 217.709928 | L12: 268.3533009 | M12: 310.7768087 | N12: 200.4749173 | O12: 209.0992518 | S12: 1 | T12: año | U12: 52 | V12: semanas
B13: Caquetá | C13: 132.7326748 | D13: 190.59785 | E13: 320.1944261 | F13: 404.7253436 | G13: 438.1833715 | H13: 408.480503 | I13: 347.14326 | J13: 256.6158241 | K13: 248.8172221 | L13: 258.176636 | M13: 222.1203882 | N13: 160.563691 | O13: 282.3625992 | S13: 1 | T13: año | U13: 12 | V13: meses
B14: Casanare | C14: 22.58998003 | D14: 36.51351542 | E14: 108.0260309 | F14: 295.4564754 | G14: 383.5351679 | H14: 368.2788702 | I14: 342.2228853 | J14: 301.3448996 | K14: 270.7944498 | L14: 270.1559502 | M14: 168.8967876 | N14: 58.69540171 | O14: 218.8758678
B15: Cauca | C15: 210.0244164 | D15: 182.9842036 | E15: 228.0278824 | F15: 253.8897324 | G15: 239.7598829 | H15: 175.1827723 | I15: 141.9439271 | J15: 120.706566 | K15: 157.471102 | L15: 276.4159274 | M15: 305.0316327 | N15: 247.1868546 | O15: 211.552075 | S15: Unidades de volumen
B16: Cesar | C16: 22.61763622 | D16: 27.81540423 | E16: 81.23114825 | F16: 155.4698924 | G16: 212.1473006 | H16: 144.5644817 | I16: 125.7044815 | J16: 175.191941 | K16: 211.8911344 | L16: 243.0755075 | M16: 185.7549491 | N16: 57.37083591 | O16: 136.9028927 | S16: 1 | T16: mm de lluvia | U16: 1 | V16: litro/metro cuadrado
B17: Chocó | C17: 392.6935618 | D17: 325.7499769 | E17: 381.5836591 | F17: 474.3558989 | G17: 563.5671424 | H17: 519.7498413 | I17: 555.1198148 | J17: 584.7826192 | K17: 530.7034295 | L17: 549.3754303 | M17: 575.6548333 | N17: 495.344386 | O17: 495.7233828 | S17: 1 | T17: metro cúbico | U17: 1000 | V17: litros
B18: Córdoba | C18: 23.60069496 | D18: 21.51229337 | E18: 51.61105995 | F18: 130.8866146 | G18: 220.9097563 | H18: 200.5470075 | I18: 205.4319619 | J18: 231.4204595 | K18: 214.4507376 | L18: 185.8552956 | M18: 133.7760959 | N18: 54.87605994 | O18: 139.5731697
B19: Cundinamarca | C19: 55.26111261 | D19: 68.87983082 | E19: 113.4224863 | F19: 152.2976559 | G19: 155.2531631 | H19: 120.5984508 | I19: 107.7654351 | J19: 92.11897079 | K19: 90.80602059 | L19: 137.2073311 | M19: 123.638496 | N19: 65.17069008 | O19: 106.8683036 | S19: Unidades de área
B20: Guainía | C20: 93.60001593 | D20: 100.8099535 | E20: 167.7040121 | F20: 283.578631 | G20: 408.3313813 | H20: 437.1457845 | I20: 446.1933407 | J20: 354.116581 | K20: 255.2566841 | L20: 229.5226878 | M20: 190.9027982 | N20: 144.5357834 | O20: 259.3081378 | S20: 1 | T20: metro | U20: 100 | V20: centimetros
B21: Guaviare | C21: 68.85676768 | D21: 86.51897436 | E21: 204.4340594 | F21: 309.0949765 | G21: 368.9386006 | H21: 370.4942222 | I21: 341.7180788 | J21: 281.4464412 | K21: 241.1461122 | L21: 244.9144913 | M21: 207.1568448 | N21: 138.3124555 | O21: 238.586002 | S21: 1 | T21: kilómetro | U21: 1000 | V21: metros
B22: Huila | C22: 113.6536503 | D22: 129.4745341 | E22: 179.2581162 | F22: 166.0532448 | G22: 146.1555575 | H22: 97.30839739 | I22: 81.10207059 | J22: 55.01041227 | K22: 72.94642957 | L22: 158.955533 | M22: 196.629086 | N22: 142.1817926 | O22: 128.227402 | S22: 1 | T22: Hectárea | U22: 10000 | V22: metros cuadrados
B23: Guajira | C23: 8.563189307 | D23: 4.057460828 | E23: 12.88044056 | F23: 50.35637997 | G23: 92.80944619 | H23: 54.02800206 | I23: 37.22297141 | J23: 79.98184784 | K23: 121.4724608 | L23: 161.6304867 | M23: 121.7273484 | N23: 40.53678801 | O23: 65.43890184
B24: Magdalena | C24: 14.48878186 | D24: 14.93094602 | E24: 43.96916277 | F24: 106.6336312 | G24: 182.0045999 | H24: 161.2556365 | I24: 139.350689 | J24: 190.1282909 | K24: 210.86979 | L24: 257.1632966 | M24: 176.084019 | N24: 58.24447099 | O24: 129.5936096 | S24: CONSTANTES DE CÁLCULO | W24: FUENTES RELEVANTES
B25: Meta | C25: 59.83519182 | D25: 80.54813113 | E25: 214.7257574 | F25: 424.7822322 | G25: 491.6271567 | H25: 437.7332413 | I25: 384.5423941 | J25: 306.9028212 | K25: 283.100909 | L25: 314.4916093 | M25: 270.5803194 | N25: 124.2565308 | O25: 282.7605245 | S25: Coeficiente de escorrentía según tipos de tejados (adimensional)
B26: Nariño | C26: 205.8066949 | D26: 169.9353001 | E26: 209.6715442 | F26: 242.2575366 | G26: 235.712344 | H26: 164.230991 | I26: 124.3042933 | J26: 88.68332904 | K26: 113.9791387 | L26: 191.8216076 | M26: 209.3760908 | N26: 207.9833818 | O26: 180.313521 | S26: Tejas de zinc | U26: 0.9 | W26: CEPIS/OPS, 2004. Guía de diseño para captación del agua de lluvia. Disponible en: https://sswm.info/sites/default/files/reference_attachments/OPS%202004.%20Guia%20de%20dise%C3%B1o%20para%20captaci%C3%B3n%20del%20agua%20de%20lluvia.pdf
B27: Norte_Santander | C27: 83.92850195 | D27: 80.10882599 | E27: 122.3030706 | F27: 200.420965 | G27: 200.3764912 | H27: 141.5404665 | I27: 138.7671561 | J27: 163.0029846 | K27: 211.1619687 | L27: 271.1775861 | M27: 238.9270671 | N27: 140.9707016 | O27: 166.0571488 | S27: Cubierta metálica | U27: 0.9
B28: Putumayo | C28: 191.6867061 | D28: 206.2329622 | E28: 281.3180048 | F28: 339.3365571 | G28: 383.7748872 | H28: 381.7831586 | I28: 347.7106093 | J28: 245.571147 | K28: 217.4446859 | L28: 216.6543599 | M28: 236.317965 | N28: 218.2937442 | O28: 272.1770656 | S28: Tejas de barro | U28: 0.8
B29: Quindío | C29: 117.3418331 | D29: 73.18335893 | E29: 167.0380184 | F29: 142.6529698 | G29: 125.7786994 | H29: 55.61652806 | I29: 29.77859703 | J29: 34.15486431 | K29: 71.33513569 | L29: 173.1613945 | M29: 210.2517665 | N29: 74.71827957 | O29: 106.2509538 | S29: Techo plano | U29: 0.7
B30: Risaralda | C30: 143.5969182 | D30: 138.9937607 | E30: 203.19748 | F30: 239.5441244 | G30: 222.1465235 | H30: 158.1711206 | I30: 137.4906625 | J30: 133.8197011 | K30: 174.7539137 | L30: 252.1380255 | M30: 268.4090219 | N30: 184.2830368 | O30: 188.0453574 | S30: Techo de paja | U30: 0.2
B31: SA_Prov_SC | C31: 79.46842678 | D31: 35.35886701 | E31: 18.99187777 | F31: 18.66221054 | G31: 116.1339 | H31: 149.3572845 | I31: 137.6443217 | J31: 145.5057561 | K31: 167.2783116 | L31: 286.4667748 | M31: 271.5410396 | N31: 128.9745259 | O31: 129.6152747 | S31: Techo de gravilla | U31: 0.75
B32: Santander | C32: 66.63181811 | D32: 95.44838242 | E32: 169.7069372 | F32: 228.8651521 | G32: 233.9417005 | H32: 155.5403619 | I32: 141.4638936 | J32: 164.3684942 | K32: 203.7689102 | L32: 250.9238263 | M32: 211.3819217 | N32: 98.2616846 | O32: 168.3585902 | S32: Techo verde con profundidad inferior a 4 pulgadas | U32: 0.5
B33: Sucre | C33: 21.60329198 | D33: 17.80975398 | E33: 45.91767545 | F33: 116.6015308 | G33: 210.8361515 | H33: 205.3362758 | I33: 196.5075962 | J33: 228.1681664 | K33: 227.4232591 | L33: 221.2178683 | M33: 175.7008466 | N33: 67.56185236 | O33: 144.5570224
B34: Tolima | C34: 108.8465159 | D34: 129.6067589 | E34: 194.9953253 | F34: 229.6860643 | G34: 208.713879 | H34: 104.3311779 | I34: 78.14193844 | J34: 74.71686052 | K34: 126.4187864 | L34: 203.6831817 | M34: 205.1738917 | N34: 135.8393086 | O34: 150.0128074 | S34: Datos para el diseño del FLA | W34: FUENTES RELEVANTES
B35: Valle_del_Cauca | C35: 114.6610749 | D35: 109.2430319 | E35: 161.9122296 | F35: 200.712161 | G35: 192.7838161 | H35: 130.529232 | I35: 104.5328677 | J35: 108.2263509 | K35: 151.9614157 | L35: 219.1153425 | M35: 218.5979878 | N35: 146.1021773 | O35: 154.8648073 | S35: Velocidad o tasa de filtración del sustrato (m/h) | U35: 0.12 | W35: IMTA, 2023. ¿Cómo purificar agua usando un filtro lento de arena en mi escuela? Disponible en: https://www.imta.gob.mx/gobmx/DOI/ecoagua/ecoagua-purificar-agua-filtro-lento-arena.pdf
B36: Vaupés | C36: 199.8426227 | D36: 220.1220465 | E36: 306.8023826 | F36: 383.5085046 | G36: 419.2707365 | H36: 391.7064371 | I36: 384.1840534 | J36: 291.7893834 | K36: 242.666515 | L36: 263.3463001 | M36: 254.2281527 | N36: 241.2825496 | O36: 299.895807 | S36: Profundidad de la capa de arena (m) | U36: 0.75
B37: Vichada | C37: 40.06377726 | D37: 40.75696515 | E37: 92.46185472 | F37: 230.2730391 | G37: 335.4556987 | H37: 403.3697798 | I37: 384.2554106 | J37: 301.8406283 | K37: 242.4267249 | L37: 225.6874904 | M37: 163.8051884 | N37: 78.91285116 | O37: 211.6091174 | S37: Carga hidraulica (m) | U37: 0.14
S38: Agua estancada (m) | U38: 0.05
B39: DATOS PROMEDIO DE EVAPORACIÓN (mm) POR DEPARTAMENTO PARA EL PERIODO 1981 - 2010 | S39: Capa de drenaje de grava fina (m) | U39: 0.1
B40: DEPARTAMENTO | C40: PROMEDIO MENSUAL | S40: Capa de separación de arena gruesa (m) | U40: 0.1
B41: Amazonas | C41: =1113/12 -> 92.75 | S41: tiempo de operación del FLA (h/día) | U41: 24
B42: Antioquia | C42: =1040/12 -> 86.66666667
B43: Arauca | C43: =1570/12 -> 130.8333333 | S43: Datos para el diseño de la laguna de precipitación | W43: FUENTES RELEVANTES
B44: Atlántico | C44: =1841/12 -> 153.4166667 | S44: Coeficiente de escorrentia de la geomembrana HDPE (adimensional) | U44: 0.85 | W44: FAO, 2014. Compendium on rainwater harvesting for agriculture in Caribbean Sub-region. Disponible en: https://openknowledge.fao.org/server/api/core/bitstreams/9e1e6970-26d5-4d07-94ce-7202552e4988/content
B45: Bolívar | C45: =1807/12 -> 150.5833333 | S45: Tasa de infiltración HDPE Geomembrana (mm/h) | U45: =0.0000003564*Base_datos_EH!U7*Base_datos_EH!U11 -> 0.003122064
B46: Boyacá | C46: =1230/12 -> 102.5
B47: Caldas | C47: =1315/12 -> 109.5833333 | S47: Generales | W47: FUENTES RELEVANTES
B48: Caquetá | C48: =957/12 -> 79.75 | S48: Consumo de agua potable por persona (l/día) | U48: 50 | W48: OHCHR, 2011. El derecho al agua. Disponible en:https://www.ohchr.org/sites/default/files/Documents/Publications/FactSheet35sp.pdf
B49: Casanare | C49: =1256/12 -> 104.6666667 | S49: Altura de agua para lavado de cubierta del techo (l/m2) | U49: 1 | W49: CEPIS/OPS, 2004. Guía de diseño para captación del agua de lluvia. Disponible en: https://sswm.info/sites/default/files/reference_attachments/OPS%202004.%20Guia%20de%20dise%C3%B1o%20para%20captaci%C3%B3n%20del%20agua%20de%20lluvia.pdf
B50: Cauca | C50: =1645/12 -> 137.0833333
B51: Cesar | C51: =1051/12 -> 87.58333333
B52: Chocó | C52: =2365/12 -> 197.0833333
B53: Córdoba | C53: =960/12 -> 80
B54: Cundinamarca | C54: =1106/12 -> 92.16666667
B55: Guainía | C55: =1239/12 -> 103.25
B56: Guaviare | C56: =1085/12 -> 90.41666667
B57: Huila | C57: =2060/12 -> 171.6666667
B58: Guajira | C58: =2256/12 -> 188
B59: Magdalena | C59: =2002/12 -> 166.8333333
B60: Meta | C60: =1273/12 -> 106.0833333
B61: Nariño | C61: =1104/12 -> 92
B62: Norte_Santander | C62: =2211/12 -> 184.25
B63: Putumayo | C63: =918/12 -> 76.5
B64: Quindío | C64: =1301/12 -> 108.4166667
B65: Risaralda | C65: =1315/12 -> 109.5833333
B66: SA_Prov_SC | C66: =1300/12 -> 108.3333333
B67: Santander | C67: =1523/12 -> 126.9166667
B68: Sucre | C68: =1603/12 -> 133.5833333
B69: Tolima | C69: =1485/12 -> 123.75
B70: Valle_del_Cauca | C70: =1362/12 -> 113.5
B71: Vaupés | C71: =893/12 -> 74.41666667
B72: Vichada | C72: =1857/12 -> 154.75
B74: Departamento | C74: Cultivo | D74: Requerimiento anual de agua por cultivo (mm/año) | G74: m³/ha/año
D76: Mínimo | E76: Máximo | F76: Promedio
B77: Amazonas | C77: Yuca | D77: 1000 | E77: 4000 | F77: =AVERAGE(D77:E77) -> 2500 | G77: =(F77*10000)/1000 -> 25000
B78: Amazonas | C78: Plátano | D78: 2000 | E78: 4000 | F78: 3000 | G78: 30000
B79: Amazonas | C79: Chontaduro | D79: 1000 | E79: 2000 | F79: 1500 | G79: 15000
B80: Amazonas | C80: Uva | D80: 400 | E80: 1100 | F80: 750 | G80: 7500
B81: Amazonas | C81: Maíz | D81: 700 | E81: 1100 | F81: 900 | G81: 9000
B82: Amazonas | C82: Arazá | D82: 2500 | E82: 4000 | F82: 3250 | G82: 32500
B83: Amazonas | C83: Cilantro | D83: 300 | E83: 2600 | F83: 1450 | G83: 14500
B84: Antioquia | C84: Caña | D84: 1500 | E84: 2500 | F84: 2000 | G84: 20000
B85: Antioquia | C85: Plátano | D85: 2000 | E85: 4000 | F85: 3000 | G85: 30000
B86: Antioquia | C86: Tomate | D86: 400 | E86: 600 | F86: 500 | G86: 5000
B87: Antioquia | C87: Papa | D87: 1000 | E87: 1200 | F87: 1100 | G87: 11000
B88: Antioquia | C88: Café | D88: 1200 | E88: 1800 | F88: 1500 | G88: 15000
B89: Antioquia | C89: Arroz | D89: 1000 | E89: 4000 | F89: 2500 | G89: 25000
B90: Antioquia | C90: Aguacate | D90: 665 | E90: 2000 | F90: 1332.5 | G90: 13325
B91: Antioquia | C91: Yuca | D91: 1000 | E91: 4000 | F91: 2500 | G91: 25000
B92: Antioquia | C92: Naranja | D92: 1100 | E92: 2000 | F92: 1550 | G92: 15500
B93: Antioquia | C93: Banano | D93: 1200 | E93: 2200 | F93: 1700 | G93: 17000
B94: Arauca | C94: Plátano | D94: 2000 | E94: 4000 | F94: 3000 | G94: 30000
B95: Arauca | C95: Yuca | D95: 1000 | E95: 4000 | F95: 2500 | G95: 25000
B96: Arauca | C96: Arroz | D96: 1000 | E96: 4000 | F96: 2500 | G96: 25000
B97: Arauca | C97: Cacao | D97: 1200 | E97: 1800 | F97: 1500 | G97: 15000
B98: Arauca | C98: Caña | D98: 1500 | E98: 2500 | F98: 2000 | G98: 20000
B99: Arauca | C99: Maíz | D99: 700 | E99: 1100 | F99: 900 | G99: 9000
B100: Arauca | C100: Maracuyá | D100: 900 | E100: 2000 | F100: 1450 | G100: 14500
B101: Arauca | C101: Papaya | D101: 800 | E101: 2000 | F101: 1400 | G101: 14000
B102: Arauca | C102: Aguacate | D102: 665 | E102: 2000 | F102: 1332.5 | G102: 13325
B103: Atlántico | C103: Yuca | D103: 1000 | E103: 4000 | F103: 2500 | G103: 25000
B104: Atlántico | C104: Melón | D104: 400 | E104: 600 | F104: 500 | G104: 5000
B105: Atlántico | C105: Mango | D105: 1000 | E105: 1500 | F105: 1250 | G105: 12500
B106: Atlántico | C106: Guayaba | D106: 1000 | E106: 3800 | F106: 2400 | G106: 24000
B107: Atlántico | C107: Arroz | D107: 1000 | E107: 4000 | F107: 2500 | G107: 25000
B108: Atlántico | C108: Maíz | D108: 700 | E108: 1100 | F108: 900 | G108: 9000
B109: Atlántico | C109: Plátano | D109: 2000 | E109: 4000 | F109: 3000 | G109: 30000
B110: Atlántico | C110: Limón | D110: 900 | E110: 1200 | F110: 1050 | G110: 10500
B111: Atlántico | C111: Ahuyama | D111: 1000 | E111: 2000 | F111: 1500 | G111: 15000
B112: Atlántico | C112: Ñame | D112: 1000 | E112: 1500 | F112: 1250 | G112: 12500
B113: Bolívar | C113: Yuca | D113: 1000 | E113: 4000 | F113: 2500 | G113: 25000
B114: Bolívar | C114: Arroz | D114: 1000 | E114: 4000 | F114: 2500 | G114: 25000
B115: Bolívar | C115: Ñame | D115: 1000 | E115: 1500 | F115: 1250 | G115: 12500
B116: Bolívar | C116: Maíz | D116: 700 | E116: 1100 | F116: 900 | G116: 9000
B117: Bolívar | C117: Palma | D117: 2000 | E117: 2500 | F117: 2250 | G117: 22500
B118: Bolívar | C118: Plátano | D118: 2000 | E118: 4000 | F118: 3000 | G118: 30000
B119: Bolívar | C119: Ahuyama | D119: 1000 | E119: 2000 | F119: 1500 | G119: 15000
B120: Bolívar | C120: Mango | D120: 1000 | E120: 1500 | F120: 1250 | G120: 12500
B121: Bolívar | C121: Aguacate | D121: 665 | E121: 2000 | F121: 1332.5 | G121: 13325
B122: Boyacá | C122: Caña | D122: 1500 | E122: 2500 | F122: 2000 | G122: 20000
B123: Boyacá | C123: Papa | D123: 1000 | E123: 1200 | F123: 1100 | G123: 11000
B124: Boyacá | C124: Cebolla | D124: 450 | E124: 800 | F124: 625 | G124: 6250
B125: Boyacá | C125: Tomate | D125: 400 | E125: 600 | F125: 500 | G125: 5000
B126: Boyacá | C126: Zanahoria | D126: 600 | E126: 1700 | F126: 1150 | G126: 11500
B127: Boyacá | C127: Yuca | D127: 1000 | E127: 4000 | F127: 2500 | G127: 25000
B128: Boyacá | C128: Mora | D128: 1200 | E128: 1700 | F128: 1450 | G128: 14500
B129: Boyacá | C129: Pera | D129: 700 | E129: 800 | F129: 750 | G129: 7500
B130: Boyacá | C130: Plátano | D130: 2000 | E130: 4000 | F130: 3000 | G130: 30000
B131: Caldas | C131: Caña | D131: 1500 | E131: 2500 | F131: 2000 | G131: 20000
B132: Caldas | C132: Plátano | D132: 2000 | E132: 4000 | F132: 3000 | G132: 30000
B133: Caldas | C133: Aguacate | D133: 665 | E133: 2000 | F133: 1332.5 | G133: 13325
B134: Caldas | C134: Café | D134: 1200 | E134: 1800 | F134: 1500 | G134: 15000
B135: Caldas | C135: Banano | D135: 1200 | E135: 2200 | F135: 1700 | G135: 17000
B136: Caldas | C136: Mora | D136: 1200 | E136: 1700 | F136: 1450 | G136: 14500
B137: Caldas | C137: Guayaba | D137: 1000 | E137: 3800 | F137: 2400 | G137: 24000
B138: Caldas | C138: Papa | D138: 1000 | E138: 1200 | F138: 1100 | G138: 11000
B139: Caquetá | C139: Caña | D139: 1500 | E139: 2500 | F139: 2000 | G139: 20000
B140: Caquetá | C140: Plátano | D140: 2000 | E140: 4000 | F140: 3000 | G140: 30000
B141: Caquetá | C141: Yuca | D141: 1000 | E141: 4000 | F141: =AVERAGE(D141:E141) -> 2500 | G141: =(F141*10000)/1000 -> 25000
B142: Caquetá | C142: Maíz | D142: 700 | E142: 1100 | F142: 900 | G142: 9000
B143: Caquetá | C143: Arroz | D143: 1000 | E143: 4000 | F143: 2500 | G143: 25000
B144: Caquetá | C144: Piña | D144: 1000 | E144: 1500 | F144: 1250 | G144: 12500
B145: Caquetá | C145: Café | D145: 1200 | E145: 1800 | F145: 1500 | G145: 15000
B146: Caquetá | C146: Banano | D146: 1200 | E146: 2200 | F146: 1700 | G146: 17000
B147: Caquetá | C147: Cacao | D147: 1200 | E147: 1800 | F147: 1500 | G147: 15000
B148: Caquetá | C148: Chontaduro | D148: 1000 | E148: 2000 | F148: 1500 | G148: 15000
B149: Casanare | C149: Arroz | D149: 1000 | E149: 4000 | F149: 2500 | G149: 25000
B150: Casanare | C150: Palma | D150: 2000 | E150: 2500 | F150: 2250 | G150: 22500
B151: Casanare | C151: Piña | D151: 1000 | E151: 1500 | F151: 1250 | G151: 12500
B152: Casanare | C152: Plátano | D152: 2000 | E152: 4000 | F152: 3000 | G152: 30000
B153: Casanare | C153: Caña | D153: 1500 | E153: 2500 | F153: 2000 | G153: 20000
B154: Casanare | C154: Yuca | D154: 1000 | E154: 4000 | F154: 2500 | G154: 25000
B155: Casanare | C155: Papaya | D155: 800 | E155: 2000 | F155: 1400 | G155: 14000
B156: Casanare | C156: Banano | D156: 1200 | E156: 2200 | F156: 1700 | G156: 17000
B157: Casanare | C157: Maíz | D157: 700 | E157: 1100 | F157: 900 | G157: 9000
B158: Casanare | C158: Sandia | D158: 500 | E158: 1500 | F158: 1000 | G158: 10000
B159: Cauca | C159: Caña | D159: 1500 | E159: 2500 | F159: 2000 | G159: 20000
B160: Cauca | C160: Yuca | D160: 1000 | E160: 4000 | F160: 2500 | G160: 25000
B161: Cauca | C161: Papa | D161: 1000 | E161: 1200 | F161: 1100 | G161: 11000
B162: Cauca | C162: Café | D162: 1200 | E162: 1800 | F162: 1500 | G162: 15000
B163: Cauca | C163: Plátano | D163: 2000 | E163: 4000 | F163: 3000 | G163: 30000
B164: Cauca | C164: Coco | D164: 1500 | F164: 1500 | G164: 15000
B165: Cauca | C165: Piña | D165: 1000 | E165: 1500 | F165: 1250 | G165: 12500
B166: Cauca | C166: Maíz | D166: 700 | E166: 1100 | F166: 900 | G166: 9000
B167: Cauca | C167: Arroz | D167: 1000 | E167: 4000 | F167: 2500 | G167: 25000
B168: Cauca | C168: Chontaduro | D168: 1000 | E168: 2000 | F168: 1500 | G168: 15000
B169: Cesar | C169: Palma | D169: 2000 | E169: 2500 | F169: 2250 | G169: 22500
B170: Cesar | C170: Caña | D170: 1500 | E170: 2500 | F170: 2000 | G170: 20000
B171: Cesar | C171: Maíz | D171: 700 | E171: 1100 | F171: 900 | G171: 9000
B172: Cesar | C172: Arroz | D172: 1000 | E172: 4000 | F172: 2500 | G172: 25000
B173: Cesar | C173: Yuca | D173: 1000 | E173: 4000 | F173: 2500 | G173: 25000
B174: Cesar | C174: Plátano | D174: 2000 | E174: 4000 | F174: 3000 | G174: 30000
B175: Cesar | C175: Café | D175: 1200 | E175: 1800 | F175: 1500 | G175: 15000
B176: Cesar | C176: Banano | D176: 1200 | E176: 2200 | F176: 1700 | G176: 17000
B177: Cesar | C177: Aguacate | D177: 665 | E177: 2000 | F177: 1332.5 | G177: 13325
B178: Chocó | C178: Plátano | D178: 2000 | E178: 4000 | F178: 3000 | G178: 30000
B179: Chocó | C179: Caña | D179: 1500 | E179: 2500 | F179: 2000 | G179: 20000
B180: Chocó | C180: Arroz | D180: 1000 | E180: 4000 | F180: 2500 | G180: 25000
B181: Chocó | C181: Yuca | D181: 1000 | E181: 4000 | F181: 2500 | G181: 25000
B182: Chocó | C182: Banano | D182: 1200 | E182: 2200 | F182: 1700 | G182: 17000
B183: Chocó | C183: Ñame | D183: 1000 | E183: 1500 | F183: 1250 | G183: 12500
B184: Chocó | C184: Maíz | D184: 700 | E184: 1100 | F184: 900 | G184: 9000
B185: Chocó | C185: Coco | D185: 1500 | F185: 1500 | G185: 15000
B186: Chocó | C186: Borojó | D186: 3000 | E186: 4000 | F186: 3500 | G186: 35000
B187: Chocó | C187: Malanga | D187: 1000 | E187: 1600 | F187: 1300 | G187: 13000
B188: Córdoba | C188: Yuca | D188: 1000 | E188: 4000 | F188: 2500 | G188: 25000
B189: Córdoba | C189: Plátano | D189: 2000 | E189: 4000 | F189: 3000 | G189: 30000
B190: Córdoba | C190: Maíz | D190: 700 | E190: 1100 | F190: 900 | G190: 9000
B191: Córdoba | C191: Arroz | D191: 1000 | E191: 4000 | F191: 2500 | G191: 25000
B192: Córdoba | C192: Ñame | D192: 1000 | E192: 1500 | F192: 1250 | G192: 12500
B193: Córdoba | C193: Papaya | D193: 800 | E193: 2000 | F193: 1400 | G193: 14000
B194: Córdoba | C194: Mango | D194: 1000 | E194: 1500 | F194: 1250 | G194: 12500
B195: Córdoba | C195: Caña | D195: 1500 | E195: 2500 | F195: 2000 | G195: 20000
B196: Córdoba | C196: Sandia | D196: 500 | E196: 1500 | F196: 1000 | G196: 10000
B197: Córdoba | C197: Piña | D197: 1000 | E197: 1500 | F197: 1250 | G197: 12500
B198: Cundinamarca | C198: Caña | D198: 1500 | E198: 2500 | F198: 2000 | G198: 20000
B199: Cundinamarca | C199: Papa | D199: 1000 | E199: 1200 | F199: 1100 | G199: 11000
B200: Cundinamarca | C200: Zanahoria | D200: 600 | E200: 1700 | F200: 1150 | G200: 11500
B201: Cundinamarca | C201: Mango | D201: 1000 | E201: 1500 | F201: 1250 | G201: 12500
B202: Cundinamarca | C202: Plátano | D202: 2000 | E202: 4000 | F202: 3000 | G202: 30000
B203: Cundinamarca | C203: Tomate | D203: 400 | E203: 600 | F203: 500 | G203: 5000
B204: Cundinamarca | C204: Fresa | D204: 900 | E204: 1500 | F204: 1200 | G204: 12000
... 175 more rows

Sheet Tecnologías UEA (hidden)
C2: TECNOLOGÍAS Y ALTERNATIVAS DE SISTEMAS URBANOS y RURALES DE DRENAJE SOSTENIBLE
B3: Información tomada de la tabla 5.5 de la Guía de lineamientos para potenciar el uso del agua lluvía del MADS (2022) y complementada con revisión bibliográfica adicional | G3: Características del territorio que hacen favorable (mas no excluyente) la implementación del sistema de captación | H3: Ejemplos de aplicación | I3: Departamento priorizado en el ENA 2022 del ejemplo de aplicación | J3: Imagen de referencia del sistema de captación
B4: Sistema de captación | C4: Descripción general | D4: Parametros a controlar | E4: Ventajas | F4: Desventajas | I4: Departamento
B5: Canales y zanjas | C5: Son depresiones lineales que permiten que el agua fluya linealmente, logrando la filtración en el suelo o evaporándose (Woods-Ballard, B. et al, 2007) - Se emplean para recolectar, transportar y almacenar agua de escorrentía mediante estructuras rectas o meándricas. - Los canales se recubren normalmente en cemento o concreto. - Las zanjas están recubiertas normalmente con pasto o rocas y se refuerzan según las características del terreno. Además, es posible incorporar plantas acuáticas para disminuir la velocidad y favorecer la remoción de nutrientes y contaminantes. | D5: Los parámetros que se deben controlar son los siguientes: - Velocidad - Pendiente - Profundidad y forma - Erosión | E5: Las ventajas que presentan los canales y zanjas son: - Alternativa de bajo costo para el control de la escorrentía - Fácil integración a espacios verdes - Fácil mantenimiento e integración a áreas verdes - Permite filtración y eliminación de contaminantes | F5: Las desventajas que presentan los canales y zanjas son: - Costoso en áreas escarpadas - Uso limitado de árboles en áreas verdes - Uso limitado de áreas densamente pobladas | G5: Clima con lluvias regulares | H5: Pereira es una ciudad con alta pluviosidad (Weather Atlas, 2024), lo que facilita el uso de sistemas de recolección de agua de lluvia en distintos contextos. Sistemas como canales y zanjas son especialmente efectivos en territorios con precipitaciones regulares, ya que la frecuencia de las lluvias asegura un suministro continuo. | I5: Risaralda
G6: Terreno favorable | H6: Santa Marta, con su suave topografía costera, es ideal para la implementación de canales y zanjas. Los terrenos con pendiente suave facilitan la instalación de sistemas de canalización por gravedad, donde el agua se desplaza de manera natural hacia los puntos de recolección. | I6: Magdalena
G7: Áreas rurales o cerca de las ciudades | H7: Valledupar, en una región agrícola, puede aprovechar sistemas de captación de agua, como canales y zanjas, para abastecer hogares y áreas agrícolas sin acceso a otras fuentes hídricas. | I7: Cesar
B8: Reservorios de agua | C8: Cuerpo de agua natural o artificial empleado para retener escorrentía, regular el nivel del agua subterránea y tratar el agua. Tienen adicionalmente otros usos: áreas recreativas, granjas de peces, y diseño paisajístico. | D8: Los parámetros que se deben controlar son los siguientes: - Ubicación: pendiente del terreno, exposición al sol, presencia de fuentes de agua cercanas. - Dimensiones y profundidad: tener en cuenta el área disponible, la cantidad de agua lluvia a almacenar, entre otros factores. - Calidad del agua: circulación del agua en el estanque, oxigenación, control de nutrientes presentes en el agua. - Materiales y revestimientos: es ideal contar con materiales de construcción sostenibles y duraderos. - Mantenimiento: limpieza regular del sistema de filtración | E8: Las ventajas que presentan los reservorios de agua son: - Eficaz en retener grandes volúmenes de agua - Favorece el tratamiento del agua - Regula el nivel del agua - Estimula la biodiversidad y se convierte en un elemento de paisaje - Agua disponible para otros usos | F8: Las desventajas que presentan los reservorios de agua son: - No se disminuye el volumen de escorrentía - Requiere de grandes áreas - Pueden generarse condiciones anaeróbicas o crecimiento de algas - Riesgos por acceso de personas | G8: Suelo que absorbe poca agua | H8: Tunja posee suelos pedregosos y arcillosos (IDEAM, 2022), ideales para la construcción de reservorios de agua a cielo abierto. | I8: Boyacá
G9: Clima con lluvias regulares | H9: Pereira es una ciudad con alta pluviosidad (Weather Atlas, 2024), lo que facilita el uso de sistemas de recolección de agua de lluvia en distintos contextos. Sistemas como canales y zanjas son especialmente efectivos en territorios con precipitaciones regulares, ya que la frecuencia de las lluvias asegura un suministro continuo. | I9: Risaralda
G10: Espacio disponible para almacenamiento | H10: La zona periurbana de Sincelejo dispone de un amplio espacio que facilita la instalación de reservorios de agua y otros sistemas de recolección de agua lluvia. Esta característica es especialmente valiosa en áreas rurales o periurbanas, ya que garantiza una capacidad de almacenamiento sostenible a largo plazo, beneficiando así a la comunidad en su gestión hídrica. | I10: Sucre
G11: Áreas rurales o cerca de las ciudades | H11: Valledupar, ubicada en una región con extensas áreas agrícolas, puede aprovechar los sistemas de captación de agua para abastecer sus zonas rurales. Estos sistemas, especialmente de recolección de agua de lluvia, son ideales para suministrar agua tanto a los hogares como a las áreas agrícolas que carecen de otras fuentes hídricas. | I11: Cesar
G12: Terreno favorable | H12: Santa Marta, con su topografía costera suave, es un lugar ideal para la implementación de reservorios de agua. La inclinación natural del terreno facilita la recolección de agua por gravedad, permitiendo que ésta fluya de manera eficiente hacia los puntos de almacenamiento, optimizando el sistema de gestión hídrica. | I12: Magdalena
B13: Sistema de biorretención por infiltración/recarga | C13: Los sistemas de biorretención son sistemas compuestos por un área de almacenamiento en el que se disponen sedimentos y vegetación, que son empleados para atenuar la escorrentía y disminuir su velocidad, así como realizar filtración y remoción de contaminantes. Este sistema es empleado en áreas con baja a moderada de contaminación por escorrentía (áreas residenciales, vías con bajo tráfico, etc.) en donde el suelo natural tiene una alta tasa de infiltración. | D13: Los parametros que se deben controlar son: - Profundidad del suelo - Espesor de los materiales de drenaje y capa de vegetación - Velocidad máxima del flujo | E13: Las ventajas que presentan son: - Bajo costo y fácil implementación | F13: Las desventajas que presentan son: - Su implementación depende de las características del medio - Requiere adecuado mantenimiento de la capa de vegetación para mantener el potencial de infiltración o retención de contaminantes - Adecuado diseño de sistemas de drenaje - Ante la existencia de eventos extremos de precipitación se pueden generar desbordamientos en sistemas de biorretención /recarga. No es aplicable en áreas con nivel freático poco profundo o de muy baja pendiente | G13: Centros urbanos | H13: Barranquilla, gracias a su amplia zona industrial, puede implementar sistemas de recolección de agua mediante biorretención, como los jardines de lluvia. Estos sistemas facilitan la infiltración y la recarga en áreas con escorrentía de baja a moderada contaminación, como barrios residenciales y calles de poco tráfico, donde el suelo presenta una alta capacidad de absorción. | I13: Atlántico
G14: Áreas rurales o cerca de las ciudades | H14: Valledupar, ubicada en una región agrícola, puede beneficiarse del sistema de biorretención, como un jardín de lluvia, mediante la infiltración y la recarga en zonas con baja a moderada contaminación por escorrentía, como áreas residenciales y vías de bajo tráfico, donde el suelo tiene alta capacidad de infiltración. | I14: Cesar
G15: Terreno favorable | H15: Santa Marta, con su suave topografía costera, es un lugar ideal para implementar un sistema de biorretención, como un jardín de lluvia, por infiltración y recarga. Este sistema es adecuado para áreas con baja a moderada contaminación por escorrentía, como zonas residenciales y calles de poco tráfico, donde el suelo presenta una alta capacidad de absorción. Además, la inclinación del terreno permite que el agua fluya naturalmente hacia los puntos de almacenamiento, aprovechando la gravedad de manera eficiente. | I15: Magdalena
B16: Sistema de biorretención por filtración | C16: Los sistemas de biorretención son sistemas compuestos por un área de almacenamiento en el que se disponen sedimentos y vegetación, que son empleados para atenuar la escorrentía y disminuir su velocidad, así como realizar filtración y remoción de contaminantes. A diferencia de los otros sistemas de biorretención, este sistema cuenta con una membrana (geomembrana) entre el suelo natural y el suelo incorporado, para evitar la recarga. Lo anterior debido a que esta alternativa se emplea para zonas con escorrentía que se caracteriza por altas cargas de contaminación (vías de alto tráfico, estaciones de servicio, estacionamientos, etc.) | D16: Los parametros que se deben controlar son: - Profundidad del suelo - Espesor de los materiales de drenaje y capa de vegetación - Velocidad máxima del flujo | E16: Las ventajas que presentan son: -Permite un mejor control de la escorrentía - Impide que se contamine el agua subterránea | F16: Las desventajas que presentan son: - Su implementación depende de las características del medio - Requiere adecuado mantenimiento de la capa de vegetación para mantener el potencial de infiltración o retención de contaminantes - Adecuado diseño de sistemas de drenaje - Ante la existencia de eventos extremos de precipitación se pueden generar desbordamientos en sistemas de biorretención /recarga. No es aplicable en áreas con nivel freático poco profundo o de muy baja pendiente | G16: Centros urbanos | H16: Barranquilla, con su amplia zona industrial y urbana, puede implementar sistemas de recolección de agua mediante biorretención, como jardines de lluvia, para filtrar el agua en áreas con alta contaminación por escorrentía. Esto incluye vías de alto tráfico, estaciones de servicio y estacionamientos. | I16: Atlántico
G17: Áreas rurales o cerca de las ciudades | H17: Valledupar, situada en una región agrícola, puede implementar sistemas de biorretención, como jardines de lluvia, para filtrar el agua en zonas rurales con escorrentía que presenta altas cargas de contaminación, como vías de alto tráfico, estaciones de servicio y estacionamientos. | I17: Cesar
G18: Terreno favorable | H18: Santa Marta, con su suave topografía costera, es un lugar ideal para implementar sistemas de biorretención, como los jardines de lluvia, para filtrar el agua. Estos sistemas son especialmente útiles para tratar la escorrentía proveniente de áreas con altas cargas de contaminación, como vías de alto tráfico, estaciones de servicio y estacionamientos. Además, la inclinación del terreno permite que el agua fluya naturalmente hacia los puntos de almacenamiento, aprovechando la gravedad de manera eficiente. | I18: Magdalena
B19: Superficies permeables porosas | C19: Las superficies permeables pueden ser empleadas para el tránsito peatonal o vehicular, a la vez que se permite la infiltración de agua a niveles inferiores. Estos sistemas permiten según la necesidad almacenar temporalmente el agua, reusarla o descargarla mediante drenaje. Para el tratamiento de la calidad del agua se emplea una sub-base de agregados. La superficie porosa permite la infiltración del agua a través de toda la superficie. El asfalto y el concreto porosos son los más comunes, están compuestos por mezclas de agregados sin materiales finos que permiten la infiltración del agua hacia la sub-base en donde se almacena temporalmente el agua para posteriormente ser liberada hacia el drenaje. | D19: Los parámetros que se deben controlar son: - Carga aplicada | E19: Las ventajas que presentan son: - Excelente reducción del caudal pico, volumen de escorrentía y mejoramiento de la calidad del agua - Aplicable en áreas desarrolladas con alta densidad - Reduce necesidad de excavación y drenajes y estructuras (manholes), lo que se traduce en beneficios de costos - Poco mantenimiento - Los costos pueden ser compensados por una disminución en las necesidades de tierra, tuberías y otros materiales. Esto reduce el costo total de instalación de sistemas de drenaje | F19: Las desventajas que presentan son: - La capacidad de carga de estas superficies es inferior a la de sistemas tradicionales, por ello se recomienda para áreas de bajo tráfico como estacionamientos, vías residenciales, ciclovías y vías peatonales - Los costos de instalación son más altos en relación con métodos tradicionales, esto debido a su alto contenido de cemento y control de calidad especializado - Estos sistemas requieren de mantenimiento para evitar taponamiento de poros o vacíos | G19: Centros urbanos | H19: Barranquilla puede implementar sistemas de recolección de agua utilizando superficies permeables, como el asfalto y el concreto poroso, en áreas urbanas tales como vías de alto tráfico, estaciones de servicio y estacionamientos. | I19: Atlántico
G20: Existencia de infraestructura adecuada | H20: En áreas urbanas con infraestructura desarollada, como Cali (IWA, 2014), los sistemas de captación de agua mediante superficies permeables pueden integrarse fácilmente en las redes de agua y saneamiento existentes. | I20: Valle del Cauca
B21: Superficies permeables a través de vacíos | C21: Las superficies permeables pueden ser empleadas para el tránsito peatonal o vehicular, a la vez que se permite la infiltración de agua a niveles inferiores. Estos sistemas permiten según la necesidad almacenar temporalmente el agua, reusarla o descargarla mediante drenaje. Para el tratamiento de la calidad del agua se emplea sub-base de agregados. Su uso se recomienda en estacionamientos, calles residenciales, entradas de vehículos, aceras o espacios peatonales. La superficie está formada por un material impermeable al agua, pero que debido a su disposición y espacios vacíos permite la infiltración. Los más comunes son los adoquines o bloques que están compuestos normalmente por concreto (para sistemas de baja carga se usa plástico reciclado) entrelazado con espacios. La infiltración la determinan el tipo de material y el espesor del material empleado para rellenar los espacios vacíos. | D21: Los parámetros que se deben controlar son: - La instalación típica está compuesta por una base de grava, una capa de arena y adoquines. Los espacios vacíos pueden llenarse com grava, tierra o pasto. | E21: Las ventajas que presentan son: - Excelente reducción del caudal pico, volumen de escorrentía y mejoramiento de la calidad del agua - Aplicable en áreas desarrolladas con alta densidad - Reduce necesidad de excavación y drenajes y estructuras (manholes), lo que se traduce en beneficios de costos - Poco mantenimiento - Los costos pueden ser compensados por una disminución en las necesidades de tierra, tuberías y otros materiales. Esto reduce el costo total de instalación de sistemas de drenaje | F21: Las desventajas que presentan son: - La capacidad de carga de estas superficies es inferior a la de sistemas tradicionales, por ello se recomienda para áreas de bajo tráfico como estacionamientos, vías residenciales, ciclovías y vías peatonales - Los costos de instalación son más altos en relación con métodos tradicionales, esto debido a su alto contenido de cemento y control de calidad especializado - Estos sistemas requieren de mantenimiento para evitar taponamiento de poros o vacíos | G21: Centros urbanos | H21: Barranquilla puede implementar sistemas de recolección de agua utilizando superficies permeables, como adoquines, bloques o pavé, que permiten la infiltración a través de sus vacíos. Estos sistemas son ideales para áreas urbanas como vías de alto tráfico, estaciones de servicio y estacionamientos. | I21: Atlántico
G22: Existencia de infraestructura adecuada | H22: En áreas urbanas con infraestructura desarollada, como Cali (IWA, 2014), los sistemas de captación de agua mediante superficies permeables, como adoquines, bloques o pavé, que permiten la infiltración a través de sus vacíos, pueden integrarse fácilmente en las redes de agua y saneamiento existentes. | I22: Valle del Cauca
B23: Techos verdes | C23: Los techos verdes son sistemas de plantas soportados en un medio de cultivo que absorben parte del agua lluvia proveniente de techos, calles o estacionamientos, permitiendo su infiltración en el suelo. Esto permite reducir la escorrentía y atenuar los picos de flujo de agua. | D23: Los parámetros que se deben controlar son los siguientes: - Deslizamientos - Viento - Selección de plantas teniendo en cuenta las necesidades de agua. En caso de requerir riego en temporadas secas, puede emplearse riego por goteo, aspersión y capilares. - No emplear materiales inflamables y seleccionar las plantas que se mantengan en periodos secos. - Carga estructural - Sistemas de drenaje - Irrigación - Impermeabilización | E23: Las ventajas que presentan los techos verdes son: - Permiten eliminación de contaminantes urbanos atmosféricos. - Aplicables en zonas de alta densidad urbana - Mejoran la calidad del aire, agua y clima, además de aislar estructuras de calor y el ruido - Disminuyen el consumo de energía - Pueden emplearse en producción de alimentos | F23: Las desventajas que presentan los techos verdes son: - Limitación por el área disponible en infraestructura, su capacidad de carga, pendiente, entre otros. | G23: Centros urbanos | H23: Barranquilla, tiene una importante área urbana e industrial, puede implementar techos verdes en edificios y en la industria. | I23: Atlántico
G24: Existencia de infraestructura adecuada | H24: En áreas urbanas con infraestructura desarrollada, como Cali (IWA, 2014), los sistemas de captación de agua mediante techos verdes pueden integrarse fácilmente en las redes de agua y saneamiento existentes. | I24: Valle del Cauca
B25: Humedales artificiales con superficie libre de agua | C25: Los humedales artificiales de flujo subsuperficial con sistemas aislados por membranas impermeables (geomembranas), que se llenan con medios filtrantes (arena, grava, etc.) y cubiertos con macrófitas pueden tener flujo horizontal o vertical. Los humedales artificiales con superficie libre de agua son estanques poco profundos cubiertos por plantas acuáticas que soportan los microorganismos que desarrollan los procesos de tratamiento. Por lo anterior entre más densa es la cobertura de vegetación, más eficiente es el proceso de tratamiento. Aplicable para tratar aguas lluvias poco contaminadas, principalmente de áreas residenciales | D25: Los parámetros que se deben controlas son los siguientes: - Su profundidad limita el crecimiento de las plantas y el contenido de oxígeno (zonas anóxicas para tratamiento de nitrógeno por procesos de denitrificación) - Es posible dimensionar el sistema empleando carga de DBO, tiempo de retención, tasa de infiltración, lluvia de diseño o métodos indirectos | E25: Las ventajas que presentan son: - Opera adecuadamente ante variaciones de caudal y carga contaminante - Buena remoción de materia orgánica y nitrógeno en el cuerpo de agua y remoción de fósforo y compuestos orgánicos en sistemas subsuperficiales - Fácil incorporación al paisaje y aumento de la biodiversidad - Bajo costo de mantenimiento y energía debido a que emplea procesos naturales - Opera como un ecosistema | F25: Las desventajas que presentan son: - Requerimiento de área - El proceso no es controlado. - El proceso es lento. - Sistema sujeto a sobrecarga | G25: Espacio disponible para almacenamiento | H25: La zona periurbana de Sincelejo cuenta con un amplio espacio que facilita la instalación de estanques y otros sistemas de recolección de agua lluvia, como humedales artificiales. Esta característica es especialmente valiosa en áreas rurales o periurbanas, ya que asegura una capacidad de almacenamiento sostenible a largo plazo, beneficiando así a la comunidad en su gestión hídrica. | I25: Sucre
G26: Áreas rurales o cerca de las ciudades | H26: Valledupar, ubicada en una región con extensas áreas agrícolas, puede aprovechar los sistemas de captación de agua para abastecer sus zonas rurales. Estos sistemas, especialmente de recolección de agua lluvia, son ideales para suministrar agua tanto a los hogares como a las áreas agrícolas que carecen de otras fuentes hídricas. | I26: Cesar
G27: Centros urbanos | H27: Barranquilla, con su extensa zona urbana, puede implementar humedales artificiales con superficie libre de agua. Estos sistemas son adecuados para tratar aguas lluvias poco contaminadas, especialmente aquellas provenientes de áreas residenciales. | I27: Atlántico
G28: Suelo que absorbe poca agua | H28: Tunja cuenta con suelos pedregosos y arcillosos (IDEAM, 2022), que son ideales para la construcción de reservorios de agua a cielo abierto, como humedales artificiales. | I28: Boyacá
G29: Terreno favorable | H29: Santa Marta, con su topografía costera suave, es un lugar ideal para la implementación de humedales artificiales. La inclinación natural del terreno facilita la recolección de agua por gravedad, permitiendo que ésta fluya de manera eficiente hacia los puntos de almacenamiento, optimizando el sistema de gestión hídrica. | I29: Magdalena
B30: Humedales artificiales de flujo subsuperficial | C30: Los humedales artificiales emplean procesos fisicoquímicos y biológicos para el tratamiento de aguas lluvias o tratamiento combinado de aguas residuales y aguas lluvias. Los humedales artificiales de flujo subsuperficial con sistemas aislados por membranas impermeables, que se llenan con medios filtrantes (arena, grava, etc.) y cubiertos con macrófitas pueden tener flujo horizontal o vertical. Tiene buena eficiencia de remoción de compuestos orgánicos de alto peso molecular (petróleo) y por tanto es útil en el tratamiento de escorrentía de estacionamientos y carreteras. | D30: Los parámetros que se deben controlar son: -Dimensionamiento del sistema empleando tiempo de retención, tasa de infiltración, caudal de aguas lluvias o métodos indirectos | E30: Las ventajas que presentan son: - Opera adecuadamente ante variaciones de caudal y carga contaminante - Buena remoción de materia orgánica y nitrógeno en el cuerpo de agua y remoción de fósforo y compuestos orgánicos en sistemas subsuperficiales - Fácil incorporación al paisaje y aumento de la biodiversidad - Bajo costo de mantenimiento y energía debido a que emplea procesos naturales - Opera como un ecosistema | F30: Las desventajas que presentan son: - Requerimiento de área - El proceso no es controlado. - El proceso es lento. - Sistema sujeto a sobrecarga | G30: Espacio disponible para almacenamiento | H30: La zona periurbana de Sincelejo cuenta con un amplio espacio que facilita la instalación de estanques y otros sistemas de recolección de agua de lluvia, como humedales artificiales. Esta característica es especialmente valiosa en áreas rurales o periurbanas, ya que asegura una capacidad de almacenamiento sostenible a largo plazo, beneficiando así a la comunidad en su gestión hídrica. | I30: Sucre
G31: Centros urbanos | H31: Barranquilla, una importante área urbana e industrial, puede implementar humedales artificiales de flujo subsuperficial para tratar el agua lluvia en zonas contaminadas, como estacionamientos y carreteras con residuos de petróleo. | I31: Atlántico
G32: Terreno favorable | H32: Santa Marta, con su topografía costera suave, es un lugar ideal para la implementación de humedales artificiales. La inclinación natural del terreno facilita la recolección de agua por gravedad, permitiendo que ésta fluya de manera eficiente hacia los puntos de almacenamiento, optimizando el sistema de gestión hídrica. | I32: Magdalena
G33: Áreas rurales o cerca de las ciudades | H33: Valledupar, situada en una región con amplias áreas agrícolas, puede aprovechar los sistemas de captación de agua para abastecer sus zonas rurales. Estos sistemas, especialmente diseñados para la recolección de agua lluvia, son ideales para suministrar agua tanto a los hogares como a las áreas agrícolas que carecen de otras fuentes hídricas. Además, son efectivos en zonas con diferentes niveles de contaminación, incluyendo áreas con residuos de petróleo, y resultan útiles para tratar el agua lluvia proveniente de carreteras. | I33: Cesar
G34: Suelo que absorbe poca agua | H34: Tunja cuenta con suelos pedregosos y arcillosos (IDEAM, 2022), que son ideales para la construcción de reservorios de agua a cielo abierto, como humedales artificiales. | I34: Boyacá
B35: Zanjas de infiltración/drenajes de filtro (filtro francés) | C35: Son excavaciones que se llenan con un medio filtrante grueso que permiten la infiltración del agua en el subsuelo, almacenaje, filtración y reducción de la velocidad de flujo. Puede emplearse como un drenaje al incorporarse tubería perforada al medio filtrante para transportar el agua que no se infiltra a un punto de descarga. Se recomienda su aplicación en aguas lluvias poco contaminadas, principalmente de áreas residenciales, para evitar problemas de contaminación de suelos o del agua subterránea. | D35: Los parámetros que se deben controlar son: - Contenido de sólidos del agua - Dimensionamiento | E35: Las ventajas que presentan son: - Permite la remoción de contaminantes mediante la absorción, filtración y descomposición microbiana en el suelo circundante al drenaje de filtro | F35: Las desventajas que presentan son: - Requiere de la eliminación de excesos de sólidos para mantener su funcionalidad y prolongar su vida útil - Se debe evaluar su uso para impedir la contaminación del suelo o del agua subterránea | G35: Existencia de infraestructura adecuada | H35: En áreas urbanas con infraestructura desarrollada, como Cali (IWA, 2014), los drenajes de filtro (también conocidos como filtro francés) requieren infraestructura complementaria para funcionar de manera óptima. Estos sistemas son empleados para gestionar y tratar el agua de escorrentía en entornos tanto urbanos como rurales. Su principal objetivo es permitir la infiltración del agua en el suelo, favoreciendo la recarga de aguas subterráneas y disminuyendo el riesgo de inundaciones, al reducir el volumen de agua que fluye por la superficie. | I35: Valle del Cauca
G36: Centros urbanos | H36: Barranquilla, una importante área urbana e industrial, puede beneficiarse de sistemas diseñados para gestionar y tratar el agua de escorrentía en entornos urbanos y rurales, así como para reducir el riesgo de inundaciones. | I36: Atlántico
G37: Áreas rurales o cerca de las ciudades | H37: Valledupar, ubicada en una región con amplias áreas agrícolas, puede beneficiarse de sistemas diseñados para gestionar y tratar el agua de escorrentía en entornos urbanos y rurales. Estos sistemas tienen como objetivo principal permitir la infiltración del agua en el suelo, lo que promueve la recarga de aguas subterráneas y reduce el riesgo de inundaciones. | I37: Cesar
G38: Clima con lluvias regulares | H38: Pereira es una ciudad con alta pluviosidad (Weather Atlas, 2024), lo que facilita el uso de sistemas de recolección de agua lluvia en distintos contextos. Sistemas como canales y zanjas son especialmente efectivos en territorios con precipitaciones regulares, ya que la frecuencia de las lluvias asegura un suministro continuo. | I38: Risaralda
B39: Sistemas de captación de aguas lluvias (SCALL) | C39: Es la captación de aguas lluviaa para su uso. Puede ser recolectada de techos y otras áreas impermeables, almacenada, tratada (cuando se requiera) y luego se utiliza como suministro de agua para uso doméstico, comercial, industrial o institucional. Estos sistemas representan los siguientes beneficios: - Disminuyen escorrentía. - Disminuyen la demanda de agua. - Reducen el volumen de almacenamiento. Se diseñan para proveer un nivel específico de servicio, pueden emplearse para la conservación del agua (suministro) o para la gestión del agua superficial, o ambas. | D39: Los parámetros que se deben controlar son: - Diseño hidráulico - Caudal de aguas lluvias - Oferta y demanda - Superficie de captación (área y materiales) - Diseño del sistema de tratamiento según el uso (pretratamiento, filtración, tratamiento biológico y desinfección) | E39: Las ventajas que presentan son: - Disminuyen la demanda de agua de fuentes superficiales y subterráneas y la dependencia de suministro de sistemas centralizados y los impactos asociados a estos - Bajo costo de inversión y disminución de costos asociados al consumo de agua - El agua lluvia tiene buena calidad fisicoquímica y microbiológica por lo que permite múltiples usos | F39: Las desventajas que presentan son: - Para que esta alternativa sea efectiva debe masificarse o complementarse con el uso de otros sistemas urbanos de drenaje sostenible. - El agua requiere un adecuado manejo para evitar que se contamine - El mantenimiento y operación son dependientes de la superficie de captación y el uso | G39: Clima con lluvias regulares | H39: Pereira es una ciudad con alta pluviosidad (Weather Atlas, 2024), lo que facilita el uso de sistemas de recolección de agua lluvia en distintos contextos. Sistemas como canales y zanjas son especialmente efectivos en territorios con precipitaciones regulares, ya que la frecuencia de las lluvias asegura un suministro continuo. | I39: Risaralda
G40: Centros urbanos | H40: Barranquilla, tiene una importante área urbana e industrial, puede implementar sistemas de captación de aguas lluvias en edificios y en la industria. | I40: Atlántico
G41: Poca agua (subterránea o de ríos) | H41: En Riohacha, se recomienda implementar este tipo de sistema de captación de agua de lluvia debido a la escasez de agua y al clima árido de la región (Weather Atlas, 2024). Este sistema no solo reduce la demanda de agua potable, sino que también contribuye a la conservación del recurso hídrico, ofreciendo una alternativa sostenible para el abastecimiento y la gestión del agua disponible. | I41: La Guajira
B42: Barriles de lluvia | C42: Son sistemas de almacenamiento pequeños que recolectan y almacenan el agua lluvia. Las estructuras de almacenamiento son variables y pudiéndose emplear: barriles plásticos, cisternas en concreto, metal, polipropileno, fibra de vidrio, entre otros. El agua almacenada se limita a uso doméstico, sin incluir el consumo humano. Por ello, normalmente no se emplea ningún tratamiento. | D42: Los parámetros que se deben controlar son: - Mosquitos y algas | E42: Las ventajas que presentan son: - Sencillo y económico de implementar - Fácil mantenimiento | F42: Las desventajas que presentan son: - El tamaño limita el volumen de almacenamiento - Poco retorno en función de la inversión - Crecimiento de algas y propagación de mosquitos | G42: Poca agua (subterránea o de ríos) | H42: En Riohacha, se recomienda implementar este tipo de sistema de captación de agua de lluvia debido a la escasez de agua y al clima árido de la región (Weather Atlas, 2024). Este sistema no solo reduce la demanda de agua potable, sino que también contribuye a la conservación del recurso hídrico, ofreciendo una alternativa sostenible para el abastecimiento y la gestión del agua disponible. | I42: La Guajira
G43: Áreas rurales o cerca de las ciudades | H43: Valledupar, situada en una región con amplias áreas agrícolas, puede aprovechar los sistemas de captación de agua para abastecer sus zonas rurales. Estos sistemas, diseñados específicamente para la recolección de agua de lluvia, son ideales para suministrar agua tanto para uso doméstico, excluyendo el consumo humano, como para las áreas agrícolas que carecen de otras fuentes hídricas. | I43: Cesar
B44: Sistemas de tratamiento | C44: Son sistemas empleados para el tratamiento de la escorrentía y remoción de contaminantes, los cuales se fundamentan en los siguientes principios de tratamiento: - Filtración: el agua es filtrada a través de varios medios filtrantes, en cámaras construidas por debajo de la superficie del terreno. - Filtración biológica: cuenta con un medio de soporte en el que crecen plantas o biopelículas. - Eliminación de sedimentos: por métodos físicos e.g. separadores hidrodinámicos o vórtex que emplean la gravedad o fuerza centrífuga para eliminar sedimentos o escombros. - Eliminación de material flotante por métodos físicos: separadores de aceite o sólidos suspendidos, en cámaras que favorecen la flotación y sedimentación. - Se pueden emplear varios procesos de manera simultánea. | D44: Los parámetros que se deben controlar son: - Diseño hidráulico - Características de los contaminantes presentes en la escorrentía - Las concentraciones en la entrada - Mantenimiento | E44: Las ventajas que presentan son: Son sistemas que pueden ser empleados para disminuir los requerimientos de tratamiento de aguas de escorrentía o para mejorar la provisión de servicios aguas abajo o para eliminar contaminantes prioritarios | F44: Las desventajas que presentan son: - Requieren de mantenimiento periódico - El mantenimiento influencia su eficacia | G44: Centros urbanos | H44: Barranquilla, tiene una importante área urbana e industrial, puede implementar sistemas de tratamiento de agua que mejoren la calidad del recurso hídrico. Estos sistemas son fundamentales para garantizar el suministro de agua potable, reducir la contaminación y promover un desarrollo sostenible en la ciudad. | I44: Atlántico
G45: Existencia de infraestructura adecuada | H45: En áreas urbanas con infraestructura desarrollada, como Cali (IWA, 2014), los sistemas de tratamiento necesitan de infraestructura adecuada para complementar la recolección y almacenamiento de agua. | I45: Valle del Cauca
B46: Canales con vegetación | C46: Canales abiertos de poca profundidad, de fondo plano y vegetación (usualmente pastos) diseñados para transportar, tratar y a menudo atenuar la escorrentía. El sistema tiene el propósito de promover la sedimentación, la infiltración a través de la zona radicular y matriz del suelo, y la evapotranspiración e infiltración en el suelo circundante, especialmente en zonas de pendiente escarpada. Empleados normalmente como sistemas de drenaje de carreteras, caminos o estacionamientos. | D46: Los parámetros que se deben controlar son: - Sección transversal - Ancho de la base - Pendiente longitudinal y estructuras de control (presas) - El lateral debe ser preferiblemente plano - Profundidad | E46: Las ventajas que presentan son: - Aplicable y adaptable a las condiciones de la mayor parte de los sitios - Fácil diseño e instalación - Buena reducción de sedimentos y contaminantes - Generan bienestar, se adaptan a paisajes generando amplios corredores verdes - El mantenimientose relaciona principalmente a la poda de la vegetación | F46: Las desventajas que presentan son: - Posibilidad de contaminación de aguas subterráneas si el suelo no tiene alto contenido de materia orgánica o arcilla, por lo tanto, debe ser tenida en cuenta la vulnerabilidad para proteger el agua subterránea - La infiltración es dependiente del terreno - Alto requerimiento de área - Requiere tratamientos adicionales dependiendo de las condiciones de calidad de la escorrentía - Puede requerirse limpieza por acumulaciones de sedimentos | G46: Centros urbanos | H46: Barranquilla, tiene una importante área urbana e industrial, puede implementar canales de vegetación, que se utilizan comúnmente como sistemas de drenaje para carreteras, caminos y estacionamientos. | I46: Atlántico
G47: Áreas rurales o cerca de las ciudades | H47: Valledupar, ubicada en una región con amplias áreas agrícolas, puede beneficiarse de sistemas de recolección y tratamiento de agua de lluvia. Estos sistemas son efectivos en áreas con distintos niveles de contaminación, incluidos los residuos de petróleo, y son especialmente útiles para tratar el agua lluvia de estacionamientos y carreteras. | I47: Cesar
G48: Terreno favorable | H48: Santa Marta, con su suave topografía costera, es ideal para la implementación de canales y zanjas. Los terrenos con pendiente suave facilitan la instalación de sistemas de canalización por gravedad, donde el agua se desplaza de manera natural hacia los puntos de recolección. | I48: Magdalena
B49: Esquemas de sistemas urbanos de drenaje sostenible que emplean árboles | C49: Desde el punto de vista de la gestión del agua superficial la presencia de árboles atenúa la escorrentía debido a los siguientes aspectos: - Transpiración: se favorece la evaporación a través de las hojas de los árboles. - Interceptación: las hojas, las ramas y las superficies del tronco retienen importantes volúmenes de agua, retrasando el pico y volumen de escorrentía. - Infiltración: las raíces aumentan la infiltración del suelo. - Fitorremediación: los árboles toman del suelo pequeñas cantidades de sustancias químicas (metales, compuestos orgánicos, combustibles y solventes) y los transforman, usan como nutrientes o almacenan. | D49: Los parámetros que se deben controlar son: - Los árboles requieren suficiente espacio, suelo apropiado (nutrientes), suficiente intercambio de gases, drenaje adecuado y suministro de agua - Criterios de selección del árbol (tamaño:altura, dosel y raíces, tasas de crecimiento, longevidad, tolerancia a condiciones ambientales: disponibilidad de agua, contaminación del aire y suelos, criterios estéticos: belleza y caída de hojas) | E49: Las ventajas que presentan son: - Mejoran el bienestar de la población debido a su valor estético - Tienen ventajas adicionales a la gestión de aguas superficiales (regulan el clima disminuyen el consumo energético, reducen el ruido, mejoran hábitats para vida silvestre, absorción y almacenan dióxido de carbono) | F49: Las desventajas que presentan son: - Aplicables en áreas de drenaje locales - Aplicables en áreas con buena capacidad de infiltración | G49: Centros urbanos | H49: Barranquilla, con su extensa zona urbana, puede implementar sistemas de drenaje que integren árboles. Estos sistemas no solo ayudan a gestionar el agua de escorrentía, sino que también mejoran la calidad del aire y embellecen el entorno urbano, promoviendo un ambiente más sostenible y saludable para la comunidad. | I49: Atlántico
B50: Tanques de almacenamiento para atenuación | C50: Estos sistemas se emplean para crear un almacenamiento subterráneo temporal de agua superficial, antes de su infiltración, liberación controlada o uso. Para el almacenamiento se emplean diversas opciones entre las que se encuentran: - Estructuras de plásticos o polímeros. Unidades geocelulares. - Tuberías de concreto, acero o plástico corrugado. - Secciones de box culverts y tanques - Estructuras híbridas que utilizan paredes en tierra reforzada y paneles de techo en concreto. | D50: Los parámetros que se deben controlar son: - Diseño estructural (cargas, factores de seguridad, deformación, resistencia), geotécnico e hidráulico - Comportamiento de aguas subterráneas | E50: Pueden ser empleados para cualquier sitio que requiera almacenamiento en el subsuelo - El agua almacenada puede ser destinada para varios usos, generando beneficios a la población | F50: Requiere pretratamiento, para evitar acumulación de sedimentos, especialmente en sistemas con acceso limitado para su remoción - En áreas con suelos o aguas subterráneas contaminadas se debe hacer un análisis de riesgo y de medidas para reducirlo - Deben estar instalados por encima del nivel freático o hacerse un diseño que evite problemas de flotación | G50: Clima con lluvias regulares | H50: Pereira es una ciudad con alta pluviosidad (Weather Atlas, 2024), lo que facilita el uso de sistemas de recolección de agua lluvia en distintos contextos. Sistemas como canales y zanjas son especialmente efectivos en territorios con precipitaciones regulares, ya que la frecuencia de las lluvias asegura un suministro continuo. | I50: Risaralda
G51: Existencia de infraestructura adecuada | H51: En áreas urbanas con infraestructura desarrollada, como Cali (IWA, 2014), los tanques de almacenamiento para atenuación se utilizan para crear un espacio subterráneo temporal que recoge el agua de superficie. Esto permite gestionar el agua antes de su infiltración, liberación controlada o uso, contribuyendo a una mejor gestión hídrica y a la reducción del riesgo de inundaciones. | I51: Valle del Cauca
G52: Centros urbanos | H52: Barranquilla, con su extensa zona urbana e industrial, puede beneficiarse de la implementación de tanques de almacenamiento para atenuación. Estos tanques permiten gestionar de manera efectiva el agua de escorrentía, reduciendo el riesgo de inundaciones y optimizando el uso del recurso hídrico en la ciudad. | I52: Atlántico
G53: Espacio disponible para almacenamiento | H53: La zona periurbana de Sincelejo dispone de un amplio espacio que facilita la instalación de tanques de almacenamineto para atenuación. | I53: Sucre

Sheet HC_SCALL
C2: HERRAMIENTA DE CÁLCULO PARA EL DISEÑO DE SISTEMAS DE CAPTACIÓN DE AGUAS LLUVIA (A PEQUEÑA ESCALA) PARA ACTIVIDADES DOMÉSTICAS Y AGRÍCOLAS EN ZONAS RURALES
B4: Instrucciones de diligenciamiento: Bienvenido a la herramienta de cálculo para estimar el volumen para la construcción de sistemas de cáptación de agua lluvia para uso doméstico y agrícola en Colombia. Las celdas en color AZUL corresponden a celdas con listas despleglables donde el usuario debe seleccionar una opción según el tipo de proyecto de su interés. El usuario debe ingresar manualmente los datos del proyecto en cada celda que se encuentre resaltada en color AMARILLO. Los resultados de los cálculos serán visibles en las celdas resaltadas en color VERDE. Estos datos serán usados para la estimación de las dimensiones de sistemas de captación de agua lluvia a través de techos rurales o lagunas de precipitación. A continuación se muestra la ruta de navegación general de la herramienta de cálculo: NOTA: Recuerde habilitar la ejecución de macros para el funcionamiento de la herramienta de cálculo de emisiones, sin estas la calculadora NO funcionará.
B6: PASO 1. INGRESO DE DATOS | C6: ¿En qué departamento de Colombia se encuentra ubicado el terreno donde se emplazará el sistema de captación de agua lluvia? | E6: Seleccione un departamento de Colombia
C7: ¿Qué tipo de captación de agua lluvia busca realizar? | E7: Seleccione una opción
C8: ¿Qué tipo de uso le dará al agua lluvia recolectada? | E8: Seleccione una opción
B10: PASO 2. DATOS DEL SISTEMA DE CAPTACIÓN DE AGUA LLUVIA (Estructura de captación en techo para uso doméstico) | C10: ¿Cúantas personas habitan la vivienda? | G10: # personas
C11: ¿Conoce el consumo diario de agua por persona en la vivienda? | E11: Seleccione una opción | G11: l/p.día
C12: ¿Qué tipo de techo tiene la vivienda donde se emplazará el sistema de captación de agua lluvia? | E12: Seleccione una opción
C13: ¿Cúal es el área de cubierta del techo de la vivienda? | G13: m²
C14: ¿Conoce la precipitación promedio mensual en la ubicación del sistema de captación de agua lluvia a implementar? | E14: Seleccione una opción
C15: Si su respuesta fue si en la pregunta anterior, favor ingrese los datos de precipitación promedio mensual para cada mes en las celdas adyacentes: | E15: Enero | G15: mm/mes
E16: Febrero | G16: mm/mes
E17: Marzo | G17: mm/mes
E18: Abril | G18: mm/mes
E19: Mayo | G19: mm/mes
E20: Junio | G20: mm/mes
E21: Julio | G21: mm/mes
E22: Agosto | G22: mm/mes
E23: Septiembre | G23: mm/mes
E24: Octubre | G24: mm/mes
E25: Noviembre | G25: mm/mes
E26: Diciembre | G26: mm/mes
B28: PASO 2: DATOS DEL SISTEMA DE CAPTACIÓN (Estructura de captación en techo de aguas lluvia, para uso agrícola) | C28: ¿Cúal tipo de cultivo tiene en el terreno donde se emplazará el sistema de captación de aguas lluvia? NOTA: los cultivos relacionados corresponden a los cultivos con mayor relevancia en cuanto a producción por departamento. La herramienta de cálculo se encuentra diseñada para el cálculo bajo la selección de un único tipo de cultivo. | E28: Yuca
C29: ¿Cúal es el área plantada del cultivo seleccionado? | G29: m2
C30: ¿Cuántos días a la semana riega su cultivo? | G30: días/semana
C31: ¿Qué tipo de techo tiene la vivienda donde se emplazará el sistema de captación de aguas lluvia? | E31: Seleccione una opción
C32: ¿Cúal es el área de cubierta del techo de la vivienda? | G32: m²
C33: ¿Conoce el requerimiento anual de agua para el cultivo seleccionado? | E33: Seleccione una opción | G33: l/(m².año)
C34: ¿Conoce la precipitación promedio mensual en la ubicación del sistema de captación de aguas lluvias a implementar? | E34: Seleccione una opción
C35: Si su respuesta fue si en la pregunta anterior, favor ingrese los datos de precipitación promedio mensual para cada mes en las celdas adyacentes: | E35: Enero | G35: mm/mes
E36: Febrero | G36: mm/mes
E37: Marzo | G37: mm/mes
E38: Abril | G38: mm/mes
E39: Mayo | G39: mm/mes
E40: Junio | G40: mm/mes
E41: Julio | G41: mm/mes
E42: Agosto | G42: mm/mes
E43: Septiembre | G43: mm/mes
E44: Octubre | G44: mm/mes
E45: Noviembre | G45: mm/mes
E46: Diciembre | G46: mm/mes
B48: PASO 2: DATOS DEL SISTEMA DE CAPTACIÓN (Laguna de almacenamiento de agua lluvia/jagüey para uso agrícola) | C48: ¿Cúal tipo de cultivo tiene en el terreno donde se emplazará el sistema de captación de aguas lluvia? NOTA: los cultivos relacionados corresponden a los cultivos con mayor relevancia en cuanto a producción por departamento. La herramienta de cálculo se encuentra diseñada para el cálculo bajo la selección de un único tipo de cultivo. | E48: Yuca
C49: ¿Cúanta área tiene plantada del cultivo seleccionado? | G49: m2
C50: ¿Cuántos días a la semana riega su cultivo? | G50: días/semana
C51: ¿Conoce la precipitación promedio anual en la ubicación del sistema de captación de aguas lluvias a implementar? | E51: Seleccione una opción | G51: mm/año
C52: ¿Conoce la evaporación promedio anual en la ubicación del sistema de captación de aguas lluvias a implementar? | E52: Seleccione una opción | G52: mm/año
C53: ¿Conoce el requerimiento anual de agua para el cultivo seleccionado? | E53: Seleccione una opción | G53: l/(m².año)
C54: ¿Conoce el coeficiente de escorrentia de la geomembrana a usar en el sistema de captación de aguas lluvias a implementar? | E54: Seleccione una opción | G54: adimensional
C55: ¿Conoce la tasa de infiltración de la geomembrana a usar en el sistema de captación de aguas lluvias a implementar? | E55: Seleccione una opción | G55: mm/año
A57: * | B57: PASO 3: RESULTADOS (Uso doméstico - Agua cruda) | C57: Estimación del volumen de agua cruda requerida mensualmente para abastecer la necesidad | E57: ='Calculadora SCALL'!C9 -> 0 | G57: m³/mes
A58: * | C58: Volumen de agua lluvias susceptibles de captar al mes (tanque de almacenamiento) | E58: ='Calculadora SCALL'!F28/Base_datos_EH!U13 ->  | G58: m³/mes
A59: * | C59: Porcentaje de cobertura del requerimiento de agua mensual para abastecer el consumo de agua cruda | E59: =E58/E57 ->  | G59: %
C60: Estimación del volumen de aguas lluvias crudas a captar a través del techo anualmente | E60: ='Calculadora SCALL'!F28 ->  | G60: m³/año
C61: Volumen del tanque para el primer filtro de lavado | E61: ='Calculadora SCALL'!C13 -> 0 | G61: m³
B63: NOTA: El sistema de captación de aguas lluvia por estructura en techo cuenta con un mecanismo de depuración que consiste en el tanque de primer filtro de lavado, sin embargo, este no implica que el recurso recolectado sea apto para consumo humano. El agua recolectada se identifica como agua cruda y puede ser usada para labores domésticas y/o agrícolas, NO se recomienda el consumo humano sin la realización de análisis de agua que confirmen que cumple con los limites permisibles establecidos dentro de la Resolución 2115 de 2007.
A65: * | B65: PASO 3: RESULTADOS (Uso doméstico - pretratamiento físico) | C65: Estimación del volumen de agua con pre-tratamiento físico requerida mensualmente para abastecer la necesidad | E65: ='Calculadora SCALL'!C33 -> 0 | G65: m³/mes
A66: * | C66: Volumen de agua lluvia susceptible de captar al mes (tanque de almacenamiento) | E66: ='Calculadora SCALL'!F28/Base_datos_EH!U13 ->  | G66: m³/mes
A67: * | C67: Porcentaje de cobertura del requerimiento de agua mensual para abastecer el consumo de agua con pre-tratamiento físico | E67: =E66/E65 ->  | G67: %
C68: Estimación del volumen de agua lluvia a captar a través del techo con pre-tratamiento anualmente | E68: ='Calculadora SCALL'!F28 ->  | G68: m³/año
C69: Volumen del tanque para el primer filtro de lavado | E69: ='Calculadora SCALL'!C13 -> 0 | G69: m³
C70: Área superficial del filtro lento de arena | E70: ='Calculadora SCALL'!C46*Base_datos_EH!U20 -> 0 | G70: cm
C71: Profundidad del filtro lento de arena | E71: ='Calculadora SCALL'!C44*Base_datos_EH!U20 -> 114 | G71: cm
C72: Diametro mínimo del filtro lento de arena | E72: ='Calculadora SCALL'!C38*Base_datos_EH!U20 -> 0 | G72: cm
B74: NOTA: El sistema de captación de agua lluvia por estructura en techo con un pre-tratamiento físico cuenta con mecanismos de depuración como el tanque de primer filtro de lavado y el filtro lento de arena (FLA), sin embargo, estos no garantizan que el agua recolectada sea apta para consumo humano. El agua recolectada se identifica como agua cruda y puede ser usada para labores domésticas y/o agrícolas, NO se recomienda el consumo humano sin la realización de análisis de agua que confirmen que cumple con los limites permisibles establecidos dentro de la Resolución 2115 de 2007.
A76: * | B76: PASO 3: RESULTADOS (captación en techo - uso agrícola) | C76: Estimación del volumen de agua mensual requerido para el cultivo y frecuencia de riego seleccionados | E76: ='Calculadora SCALL'!N32 -> 0 | G76: m³/mes
A77: * | C77: Volumen de aguas lluvias susceptible de captar al mes (tanque de almacenamiento) | E77: ='Calculadora SCALL'!Q28/Base_datos_EH!U13 ->  | G77: m³
A78: * | C78: Porcentaje de cobertura del requerimiento de agua mensual para abastecer el cultivo y frecuencia de riego | E78: =E77/E76 ->  | G78: %
C79: Estimación del volumen de aguas lluvias a captar a través del techo para uso agrícola anualmente | E79: ='Calculadora SCALL'!Q28 ->  | G79: m³/año
A81: * | B81: PASO 3: RESULTADOS (Laguna de almacenamiento de agua lluvia/jagüey. - uso agrícola) | C81: Estimación del volumen de agua mensual requerido para el cultivo y frecuencia de riego seleccionados | E81: ='Calculadora SCALL'!Y24 -> 0 | G81: m³/mes
A82: * | C82: Volumen de aguas lluvias susceptibles de captar a través de la laguna de almacenamiento de agua lluvia/jagüey al mes | E82: ='Calculadora SCALL'!Y22/Base_datos_EH!U13 ->  | G82: m³/mes
A83: * | C83: Porcentaje de cobertura del requerimiento de agua mensual para abastecer el cultivo y frecuencia de riego | E83: =E82/E81 ->  | G83: %
C84: Área de captación de la laguna de almacenamiento de agua lluvia/jagüey | E84: ='Calculadora SCALL'!Y16 ->  | G84: m²
C85: Estimación del volumen de aguas lluvias a captar con la laguna de almacenamiento de agua lluvia/jagüey anualmente | E85: ='Calculadora SCALL'!Y22 ->  | G85: m³/año

Sheet Calculadora SCALL (hidden)
C2: HERRAMIENTA DE CÁLCULO PARA EL DISEÑO DE SISTEMAS DE CAPTACIÓN DE AGUA LLUVIA (PEQUEÑA ESCALA) PARA ACTIVIDADES DOMÉSTICAS Y AGRÍCOLAS EN ZONAS RURALES
B4: Herramienta de cálculo por estructura en techo para uso doméstico (agua cruda) | M4: Herramienta de cálculo por estructura en techo para uso agrícola | X4: Herramienta de cálculo por laguna de precipitación para uso agrícola
M6: Tipo de cultivo | N6: =HC_SCALL!E28:G28 -> Yuca | O6: 0 | P6: 0 | X6: Tipo de cultivo | Y6: =HC_SCALL!E48:G48 -> Yuca | Z6: 0 | AA6: 0
B7: No. de personas en la vivienda | C7: =HC_SCALL!E10:F10 -> 0 | D7: 0 | F7: # de personas | M7: Área cultivada | N7: =IF(HC_SCALL!G29="ha",HC_SCALL!E29:F29*Base_datos_EH!U22,HC_SCALL!E29:F29) -> 0 | O7: 0 | Q7: m² | X7: Área cultivada | Y7: =IF(HC_SCALL!G49="ha",HC_SCALL!E49:F49*Base_datos_EH!U22,HC_SCALL!E49:F49) -> 0 | Z7: 0 | AB7: m²
B8: Consumo de agua potable diario | C8: =IF(HC_SCALL!E11="Si",HC_SCALL!F11,Base_datos_EH!U48) -> 50 | F8: l/día | M8: Área de cubierta del techo | N8: =HC_SCALL!E32:F32 -> 0 | O8: 0 | Q8: m² | X8: Frecuencia de riego mensual | Y8: =HC_SCALL!E50:F50*Base_datos_EH!U10 -> 0 | Z8: 0 | AB8: días/mes
B9: Consumo total de agua potable mensual en la vivienda | C9: =(C8*Base_datos_EH!U9)/(Base_datos_EH!U17)*C7 -> 0 | F9: m³/mes | M9: Coeficiente de escorrentía | N9: =VLOOKUP(HC_SCALL!E31:G31,Base_datos_EH!S26:V32,3,FALSE) ->  | Q9: adimensional | X9: Coeficiente de escorrentia de la geomembrana HDPE | Y9: =IF(HC_SCALL!$E54="Si",HC_SCALL!$F54,Base_datos_EH!$U44) -> 0.85 | AB9: adimensional
B10: Área de cubierta del techo | C10: =HC_SCALL!E13:F13 -> 0 | D10: 0 | F10: m² | M10: Frecuencia de riego mensual | N10: =HC_SCALL!E30:F30*Base_datos_EH!U10 -> 0 | O10: 0 | Q10: días/mes | X10: Tasa de infiltración (HDPE Geomembrana) | Y10: =IF(HC_SCALL!$E55="Si",HC_SCALL!F55,Base_datos_EH!U45) -> 0.003122064 | AB10: mm/año
B11: Coeficiente de escorrentía | C11: =VLOOKUP(HC_SCALL!E12:G12,Base_datos_EH!S26:V32,3,FALSE) ->  | F11: adimensional | M11: Requerimiento anual de agua del cultivo de referencia | N11: =IF(HC_SCALL!$E$33="No",INDEX(Base_datos_EH!G77:G379,MATCH(1,(Base_datos_EH!B77:B379=HC_SCALL!E6)*(Base_datos_EH!C77:C379=HC_SCALL!E28),0)),HC_SCALL!$F$33) -> 0 | Q11: l/(m²*año) | X11: Frecuencia de riego mensual | Y11: =HC_SCALL!E50:F50*Base_datos_EH!U10 -> 0 | Z11: 0 | AB11: días/mes
B12: Altura de agua para lavado de cubierta del techo | C12: =Base_datos_EH!U49 -> 1 | F12: l/m² | M12: Requerimiento anual de agua del cultivo | N12: =(N11*N10)/Base_datos_EH!U9 -> 0 | Q12: mm/año | X12: Requerimiento anual de agua del cultivo de referencia | Y12: =IF(HC_SCALL!$E$53="No",INDEX(Base_datos_EH!G77:G379,MATCH(1,(Base_datos_EH!B77:B379=HC_SCALL!E6)*(Base_datos_EH!C77:C379=HC_SCALL!E48),0)),HC_SCALL!$F$53) -> 0 | AB12: l/(m²*año)
B13: Volumen del tanque para el primer filtro de lavado | C13: =(C10*C12)/Base_datos_EH!U17 -> 0 | F13: m³ | M13: Demanda de agua anual | N13: =(N12*N7)/Base_datos_EH!U17 -> 0 | Q13: m³/año | X13: Requerimiento anual de agua del cultivo | Y13: =(Y12*Y11)/Base_datos_EH!U9 -> 0 | AB13: mm/año
X14: Demanda de agua anual | Y14: =(Y13*Y7)/Base_datos_EH!U17 -> 0 | AB14: m³/año
B15: Mes | C15: Precipitación mensual (mm/mes) | F15: Volumen de agua captado (m³/mes) | G15: Oferta acumulada (m³/mes) | H15: Demanda acumulada (m³/mes) | I15: Volumen acumulado (m³/mes) | M15: Mes | N15: Precipitación mensual (mm/mes) | Q15: Volumen de agua captado (m³/mes) | R15: Oferta acumulada (m³/mes) | S15: Demanda acumulada (m³/mes) | T15: Volumen acumulado (m³/mes) | X15: Precipitación promedio anual | Y15: =+IF(HC_SCALL!$E$51="Si",HC_SCALL!$F51,_xlfn.XLOOKUP(HC_SCALL!$E$6:$G$6,Base_datos_EH!$B$6:$B$37,Base_datos_EH!O$6:O$37)) ->  | AB15: mm/mes
B16: Enero | C16: =+IF(HC_SCALL!$E$14:$G$14="Si",HC_SCALL!$F15,_xlfn.XLOOKUP(HC_SCALL!$E$6:$G$6,Base_datos_EH!$B$6:$B$37,Base_datos_EH!C$6:C$37)) ->  | F16: =($C$10*$C16*$C$11)/Base_datos_EH!$U$17 ->  | G16: =F16 ->  | H16: =$C$9*1 -> 0 | I16: =$G16-$H16 ->  | M16: Enero | N16: =+IF(HC_SCALL!$E$34:$G$34="Si",HC_SCALL!$F35,_xlfn.XLOOKUP(HC_SCALL!$E$6:$G$6,Base_datos_EH!$B$6:$B$37,Base_datos_EH!C$6:C$37)) ->  | Q16: =($N16*$N$8*$N$9)/Base_datos_EH!$U$17 ->  | R16: =Q16 ->  | S16: =$N$13/12 -> 0 | T16: =$R16-$S16 ->  | X16: Área de captación de la laguna | Y16: =((Y13-Y15)/(Y15*Y9)*Y7)/Base_datos_EH!U13 ->  | AB16: m²
B17: Febrero | C17: =+IF(HC_SCALL!$E$14:$G$14="Si",HC_SCALL!$F16,_xlfn.XLOOKUP(HC_SCALL!$E$6:$G$6,Base_datos_EH!$B$6:$B$37,Base_datos_EH!D$6:D$37)) ->  | F17: =($C$10*$C17*$C$11)/Base_datos_EH!$U$17 ->  | G17: =$G16+$F17 ->  | H17: =$C$9*2 -> 0 | M17: Febrero | N17: =+IF(HC_SCALL!$E$34:$G$34="Si",HC_SCALL!$F36,_xlfn.XLOOKUP(HC_SCALL!$E$6:$G$6,Base_datos_EH!$B$6:$B$37,Base_datos_EH!D$6:D$37)) ->  | Q17: =($N17*$N$8*$N$9)/Base_datos_EH!$U$17 ->  | R17: =$R16+$Q17 ->  | S17: =($N$13/12)+$S16 -> 0 | T17: =$R17-$S17 ->  | X17: Infiltración anual de la geomembrana | Y17: =(Y10/Base_datos_EH!U17)*Y16 ->  | AB17: m³/año
B18: Marzo | C18: =+IF(HC_SCALL!$E$14:$G$14="Si",HC_SCALL!$F17,_xlfn.XLOOKUP(HC_SCALL!$E$6:$G$6,Base_datos_EH!$B$6:$B$37,Base_datos_EH!E$6:E$37)) ->  | F18: =($C$10*$C18*$C$11)/Base_datos_EH!$U$17 ->  | H18: =$C$9*3 -> 0 | M18: Marzo | N18: =+IF(HC_SCALL!$E$34:$G$34="Si",HC_SCALL!$F37,_xlfn.XLOOKUP(HC_SCALL!$E$6:$G$6,Base_datos_EH!$B$6:$B$37,Base_datos_EH!E$6:E$37)) ->  | Q18: =($N18*$N$8*$N$9)/Base_datos_EH!$U$17 ->  | R18: =$R17+$Q18 ->  | S18: 0 | X18: Tasa de evaporación anual | Y18: =+IF(HC_SCALL!$E$52="Si",HC_SCALL!$F52,_xlfn.XLOOKUP(HC_SCALL!$E$6:$G$6,Base_datos_EH!B41:B72,Base_datos_EH!C$41:C$72)) ->  | AB18: mm/año
B19: Abril | C19: =+IF(HC_SCALL!$E$14:$G$14="Si",HC_SCALL!$F18,_xlfn.XLOOKUP(HC_SCALL!$E$6:$G$6,Base_datos_EH!$B$6:$B$37,Base_datos_EH!F$6:F$37)) ->  | F19: =($C$10*$C19*$C$11)/Base_datos_EH!$U$17 ->  | H19: =$C$9*4 -> 0 | M19: Abril | N19: =+IF(HC_SCALL!$E$34:$G$34="Si",HC_SCALL!$F38,_xlfn.XLOOKUP(HC_SCALL!$E$6:$G$6,Base_datos_EH!$B$6:$B$37,Base_datos_EH!F$6:F$37)) ->  | Q19: =($N19*$N$8*$N$9)/Base_datos_EH!$U$17 ->  | S19: 0 | X19: Evaporación anual en la laguna | Y19: =(Y18*Y16)/Base_datos_EH!U17 ->  | AB19: mm/año
B20: Mayo | C20: =+IF(HC_SCALL!$E$14:$G$14="Si",HC_SCALL!$F19,_xlfn.XLOOKUP(HC_SCALL!$E$6:$G$6,Base_datos_EH!$B$6:$B$37,Base_datos_EH!G$6:G$37)) ->  | F20: =($C$10*$C20*$C$11)/Base_datos_EH!$U$17 ->  | H20: =$C$9*5 -> 0 | M20: Mayo | N20: =+IF(HC_SCALL!$E$34:$G$34="Si",HC_SCALL!$F39,_xlfn.XLOOKUP(HC_SCALL!$E$6:$G$6,Base_datos_EH!$B$6:$B$37,Base_datos_EH!G$6:G$37)) ->  | Q20: =($N20*$N$8*$N$9)/Base_datos_EH!$U$17 ->  | S20: 0 | X20: Pérdidas anuales totales en la laguna | Y20: =Y19+Y17 ->  | AB20: m³/año
B21: Junio | C21: =+IF(HC_SCALL!$E$14:$G$14="Si",HC_SCALL!$F20,_xlfn.XLOOKUP(HC_SCALL!$E$6:$G$6,Base_datos_EH!$B$6:$B$37,Base_datos_EH!H$6:H$37)) ->  | F21: =($C$10*$C21*$C$11)/Base_datos_EH!$U$17 ->  | H21: =$C$9*6 -> 0 | M21: Junio | N21: =+IF(HC_SCALL!$E$34:$G$34="Si",HC_SCALL!$F40,_xlfn.XLOOKUP(HC_SCALL!$E$6:$G$6,Base_datos_EH!$B$6:$B$37,Base_datos_EH!H$6:H$37)) ->  | Q21: =($N21*$N$8*$N$9)/Base_datos_EH!$U$17 ->  | S21: 0 | X21: Volumen adicional de agua por la precipitación en la laguna | Y21: =(Y15*Y16)/Base_datos_EH!U17 ->  | AB21: m³/año
B22: Julio | C22: =+IF(HC_SCALL!$E$14:$G$14="Si",HC_SCALL!$F21,_xlfn.XLOOKUP(HC_SCALL!$E$6:$G$6,Base_datos_EH!$B$6:$B$37,Base_datos_EH!I$6:I$37)) ->  | F22: =($C$10*$C22*$C$11)/Base_datos_EH!$U$17 ->  | H22: =$C$9*7 -> 0 | M22: Julio | N22: =+IF(HC_SCALL!$E$34:$G$34="Si",HC_SCALL!$F41,_xlfn.XLOOKUP(HC_SCALL!$E$6:$G$6,Base_datos_EH!$B$6:$B$37,Base_datos_EH!I$6:I$37)) ->  | Q22: =($N22*$N$8*$N$9)/Base_datos_EH!$U$17 ->  | S22: 0 | X22: Volumen neto en la laguna | Y22: =Y14+Y21-Y20 ->  | AB22: m³/año
B23: Agosto | C23: =+IF(HC_SCALL!$E$14:$G$14="Si",HC_SCALL!$F22,_xlfn.XLOOKUP(HC_SCALL!$E$6:$G$6,Base_datos_EH!$B$6:$B$37,Base_datos_EH!J$6:J$37)) ->  | F23: =($C$10*$C23*$C$11)/Base_datos_EH!$U$17 ->  | H23: =$C$9*8 -> 0 | M23: Agosto | N23: =+IF(HC_SCALL!$E$34:$G$34="Si",HC_SCALL!$F42,_xlfn.XLOOKUP(HC_SCALL!$E$6:$G$6,Base_datos_EH!$B$6:$B$37,Base_datos_EH!J$6:J$37)) ->  | Q23: =($N23*$N$8*$N$9)/Base_datos_EH!$U$17 ->  | S23: 0 | X23: Volumen diario de agua requerida para el cultivo seleccionado | Y23: =(Y7*Y12)/(Base_datos_EH!U17*Base_datos_EH!U11) -> 0 | AB23: m³/día
B24: Septiembre | C24: =+IF(HC_SCALL!$E$14:$G$14="Si",HC_SCALL!$F23,_xlfn.XLOOKUP(HC_SCALL!$E$6:$G$6,Base_datos_EH!$B$6:$B$37,Base_datos_EH!K$6:K$37)) ->  | F24: =($C$10*$C24*$C$11)/Base_datos_EH!$U$17 ->  | H24: =$C$9*9 -> 0 | M24: Septiembre | N24: =+IF(HC_SCALL!$E$34:$G$34="Si",HC_SCALL!$F43,_xlfn.XLOOKUP(HC_SCALL!$E$6:$G$6,Base_datos_EH!$B$6:$B$37,Base_datos_EH!K$6:K$37)) ->  | Q24: =($N24*$N$8*$N$9)/Base_datos_EH!$U$17 ->  | S24: 0 | X24: Volumen mensual de agua requerida para el cultivo seleccionado | Y24: =Y23*Y11 -> 0 | AB24: m³/mes
B25: Octubre | C25: =+IF(HC_SCALL!$E$14:$G$14="Si",HC_SCALL!$F24,_xlfn.XLOOKUP(HC_SCALL!$E$6:$G$6,Base_datos_EH!$B$6:$B$37,Base_datos_EH!L$6:L$37)) ->  | F25: =($C$10*$C25*$C$11)/Base_datos_EH!$U$17 ->  | H25: =$C$9*10 -> 0 | M25: Octubre | N25: =+IF(HC_SCALL!$E$34:$G$34="Si",HC_SCALL!$F44,_xlfn.XLOOKUP(HC_SCALL!$E$6:$G$6,Base_datos_EH!$B$6:$B$37,Base_datos_EH!L$6:L$37)) ->  | Q25: =($N25*$N$8*$N$9)/Base_datos_EH!$U$17 ->  | S25: 0
B26: Noviembre | C26: =+IF(HC_SCALL!$E$14:$G$14="Si",HC_SCALL!$F25,_xlfn.XLOOKUP(HC_SCALL!$E$6:$G$6,Base_datos_EH!$B$6:$B$37,Base_datos_EH!M$6:M$37)) ->  | F26: =($C$10*$C26*$C$11)/Base_datos_EH!$U$17 ->  | H26: =$C$9*11 -> 0 | M26: Noviembre | N26: =+IF(HC_SCALL!$E$34:$G$34="Si",HC_SCALL!$F45,_xlfn.XLOOKUP(HC_SCALL!$E$6:$G$6,Base_datos_EH!$B$6:$B$37,Base_datos_EH!M$6:M$37)) ->  | Q26: =($N26*$N$8*$N$9)/Base_datos_EH!$U$17 ->  | S26: 0
B27: Diciembre | C27: =+IF(HC_SCALL!$E$14:$G$14="Si",HC_SCALL!$F26,_xlfn.XLOOKUP(HC_SCALL!$E$6:$G$6,Base_datos_EH!$B$6:$B$37,Base_datos_EH!N$6:N$37)) ->  | F27: =($C$10*$C27*$C$11)/Base_datos_EH!$U$17 ->  | H27: =$C$9*12 -> 0 | M27: Diciembre | N27: =+IF(HC_SCALL!$E$34:$G$34="Si",HC_SCALL!$F46,_xlfn.XLOOKUP(HC_SCALL!$E$6:$G$6,Base_datos_EH!$B$6:$B$37,Base_datos_EH!N$6:N$37)) ->  | Q27: =($N27*$N$8*$N$9)/Base_datos_EH!$U$17 ->  | S27: 0
F28: =SUM(F16:F27) ->  | Q28: =SUM(Q16:Q27) -> 
B30: Herramienta de cálculo por estructura en techo para uso doméstico (agua con pre-tratamiento físico) | M30: Volumen día de agua requerida para el cultivo seleccionado | N30: =(N7*N11)/(Base_datos_EH!U17*Base_datos_EH!U11) -> 0 | Q30: m³/día
B32: Volumen diario de agua requerido | C32: =C8*C7 -> 0 | F32: l/día | M32: Volumen mensual de agua requerida para el cultivo seleccionado | N32: =N30*N10 -> 0 | Q32: m³/mes
B33: Volumen mensual de agua requerido | C33: =(C32*Base_datos_EH!U9)/Base_datos_EH!U17 -> 0 | F33: m³/mes
B34: Tiempo de operación del FLA | C34: =Base_datos_EH!U41 -> 24 | F34: h/día
B35: Caudal del filtro (Qf) | C35: =C32/C34 -> 0 | F35: l/h
B36: Velocidad o tasa de filtración (Vf) | C36: =Base_datos_EH!$U$35 -> 0.12 | F36: m/h
B37: Superficie de la parte superior de la capa de arena de filtración (Af) | C37: =C35/(C36*Base_datos_EH!U17) -> 0 | F37: m²
B38: Diámetro del filtro (Df) | C38: =SQRT((4*C37/PI())) -> 0 | F38: m
B39: Profundidad de la capa de arena | C39: =Base_datos_EH!U36 -> 0.75 | F39: m
B40: Carga hidráulica | C40: =Base_datos_EH!U37 -> 0.14 | F40: m
B41: Agua estancada | C41: =Base_datos_EH!U38 -> 0.05 | F41: m
B42: Capa de drenaje de grava fina | C42: =Base_datos_EH!U39 -> 0.1 | F42: m
B43: Capa de separación de arena gruesa | C43: =Base_datos_EH!U40 -> 0.1 | F43: m
B44: Profundidad del filtro | C44: =SUM(C39:C43) -> 1.14 | F44: m
B45: Radio | C45: =C38/2 -> 0 | F45: m
B46: Área superficial del filtro | C46: =2*PI()*C45*(C45+C44) -> 0 | F46: m²

Sheet Recomendaciones diseño techo (hidden)
D2: RECOMENDACIONES ADICIONALES PARA EL DISEÑO DE SISTEMAS DE CAPTACIÓN DE AGUAS LLUVIAS (SCALL) MEDIANTE ESTRUCTURAS EN TECHO

Sheet Recomendaciones diseño laguna (hidden)
D2: RECOMENDACIONES ADICIONALES PARA EL DISEÑO DE LOS SISTEMAS DE CAPTACIÓN DE AGUAS LLUVIAS (SCALL) MEDIANTE LAGUNAS DE ALMACENAMIENTO DE AGUA LLUVIA/JAGÜEY CON GEOMEMBRANA

Sheet Dropdown_EH (hidden)
A1: Seleccione un departamento de Colombia | B1: Seleccione una opción | C1: Seleccione una opción | D1: Seleccione una opción | E1: Seleccione una opción | F1: Seleccione una opción | G1: Seleccione la unidad
A2: Amazonas | B2: Captación_por_techo | C2: Doméstico (agua cruda) | D2: Agrícola (riego de cultivo) | E2: Si | F2: Tejas de zinc | G2: ha
A3: Antioquia | B3: Laguna_de_precipitación | C3: Doméstico (agua con pre-tratamiento físico) | E3: No | F3: Cubierta metálica | G3: m2
A4: Arauca | C4: Agrícola (riego de cultivo) | F4: Tejas de barro
A5: Atlántico | F5: Techo plano
A6: Bolívar | F6: Techo de paja
A7: Boyacá | F7: Techo de gravilla
A8: Caldas | F8: Techo verde con profundidad inferior a 4 pulgadas
A9: Caquetá
A10: Casanare
A11: Cauca
A12: Cesar
A13: Chocó
A14: Córdoba
A15: Cundinamarca
A16: Guainía
A17: Guaviare
A18: Huila
A19: Guajira
A20: Magdalena
A21: Meta
A22: Nariño
A23: Norte_Santander
A24: Putumayo
A25: Quindío
A26: Risaralda
A27: SA_Prov_SC
A28: Santander
A29: Sucre
A30: Tolima
A31: Valle_del_Cauca
A32: Vaupés
A33: Vichada

Sheet Base_datos_IUA (hidden)
D2: BASE DE DATOS PARA LA RELACIÓN ENTRE EL IUA PARA AÑO MEDIO Y SECO SEGÚN EL ENA 2022 Y LOS CATÁLOGOS DE SUBZONAS HIDROGRÁFICAS DE LAS MACROCUENCAS HIROGRÁFICAS DE COLOMBIA
B3: MetodologÍa para el desarrollo del Indice de Uso de Agua (IUA)
B4: Finalidad del IUA | C4: Representa la cantidad de agua utilizada por diferentes sectores usuarios, en un período determinado (anual, mensual) y por unidad espacial de subzona hidrográfica y cuencas abastecedoras de acueductos, en relación con la oferta hídrica superficial disponible para las mismas unidades de tiempo y espacio.
B5: Fórmula de Cálculo | C5: IUA: Índice de Uso del Agua en la unidad espacial de referencia para condición hidrológica promedio o de año seco (%) DHMN: Demanda Hídrica Multisectorial Nacional en la unidad espacial de referencia (Mm3 /año) OHDS : Oferta Hídrica Disponible Superficial en la unidad espacial de referencia para condición hidrológica promedio o de año seco (Mm3 /año). Año medio: El año hidrológico medio es una condición definida por los valores promedio multianuales de la Oferta Hídrica Superficial en todos los sistemas hídricos del país. Año seco: El año hidrológico seco es una condición definida por los valores mínimos multianuales de la Oferta Hídrica Superficial en todos los sistemas hídricos del país.
B7: Rango índice de Uso de Agua | C7: Categoría | D7: Interpretación Índice de Uso del Agua
B8: >100 | C8: Crítico | D8: La demanda supera la oferta hídrica superficial disponible en los sistemas hídricos
B9: 50.01 - 100 | C9: Muy Alto | D9: La presión de la demanda es muy alta respecto a la oferta superficial disponible | G9: La demanda hídrica socioeconómica supera la oferta hídrica superficial disponible y la presión es alta o muy alta, de forma que los sistemas hídricos superficiales están llegando al límite para satisfacerla, compitiendo con el caudal ambiental.
B10: 20.01 - 50 | C10: Alta | D10: La presión de la demanda es alta respecto a la oferta superficial disponible
B11: 10.01 - 20 | C11: Moderada | D11: La presión de la demanda es moderada respecto a la oferta superficial disponible | G11: La presión es muy baja a moderada, de forma que los sistemas hídricos superficiales aún pueden satisfacer la demanda sin entrar en competencia con el caudal ambiental.
B12: 1.0 - 10 | C12: Baja | D12: La presión de la demanda es baja respecto a la oferta superficial disponible
B13: ≤ 1 | C13: Muy Baja | D13: La presión de la demanda no es significativa respecto a la oferta superficial disponible
B14: Sin Información | C14: S.I
B16: Área Hidrográfica AH | C16: Zona Hidrográfica ZH | D16: SZH | E16: Nombre de subzona hidrográfica | F16: Departamento | G16: Municipio | H16: Índice de uso del agua (IUA)
H17: Año medio | J17: Año seco
H18: Valor | I18: Categoría | J18: Valor | K18: Categoría
B19: Caribe | C19: Atrato - Darién | D19: 1101 | E19: Río Andágueda | F19: Dpto_Chocó | G19: Lloró | H19: 0.2292388323 | I19: Muy Baja | J19: 0.5457999042 | K19: Muy Baja
B20: Caribe | C20: Atrato - Darién | D20: 1101 | E20: Río Andágueda | F20: Dpto_Chocó | G20: Bagadó | H20: 0.2292388323 | I20: Muy Baja | J20: 0.5457999042 | K20: Muy Baja
B21: Caribe | C21: Atrato - Darién | D21: 1102 | E21: Alto Atrato | F21: Dpto_Chocó | G21: El Carmen de Atrato | H21: 0.1034122126 | I21: Muy Baja | J21: 0.2433821988 | K21: Muy Baja
B22: Caribe | C22: Atrato - Darién | D22: 1103 | E22: Río Quito | F22: Dpto_Chocó | G22: Cértegui | H22: 0.5619764573 | I22: Muy Baja | J22: 1.169760503 | K22: Baja
B23: Caribe | C23: Atrato - Darién | D23: 1103 | E23: Río Quito | F23: Dpto_Chocó | G23: El Cantón del San Pablo | H23: 0.5619764573 | I23: Muy Baja | J23: 1.169760503 | K23: Baja
B24: Caribe | C24: Atrato - Darién | D24: 1103 | E24: Río Quito | F24: Dpto_Chocó | G24: Unión Panamericana | H24: 0.5619764573 | I24: Muy Baja | J24: 1.169760503 | K24: Baja
B25: Caribe | C25: Atrato - Darién | D25: 1105 | E25: Directos Atrato entre ríos Quito y Bojayá (mi = margen izquierdo) | F25: Dpto_Chocó | G25: Bojaya | H25: 0.07530645832 | I25: Muy Baja | J25: 0.161007094 | K25: Muy Baja
B26: Caribe | C26: Atrato - Darién | D26: 1105 | E26: Directos Atrato entre ríos Quito y Bojayá (mi = margen izquierdo) | F26: Dpto_Antioquia | G26: Vigía del Fuerte | H26: 0.07530645832 | I26: Muy Baja | J26: 0.161007094 | K26: Muy Baja
B27: Caribe | C27: Atrato - Darién | D27: 1106 | E27: Directos Atrato entre ríos Bebaramá y Murrí (md) | F27: Dpto_Chocó | G27: Quibdó | H27: 0.1608705898 | I27: Muy Baja | J27: 0.3593426679 | K27: Muy Baja
B28: Caribe | C28: Atrato - Darién | D28: 1106 | E28: Directos Atrato entre ríos Bebaramá y Murrí (md) | F28: Dpto_Antioquia | G28: Quibdó | H28: 0.1608705898 | I28: Muy Baja | J28: 0.3593426679 | K28: Muy Baja
B29: Caribe | C29: Atrato - Darién | D29: 1107 | E29: Río Murrí | F29: Dpto_Antioquia | G29: Urrao | H29: 0.4061604665 | I29: Muy Baja | J29: 0.9982167297 | K29: Muy Baja
B30: Caribe | C30: Atrato - Darién | D30: 1108 | E30: Río Bojayá | F30: Dpto_Chocó | G30: Bojaya | H30: 0.1130268238 | I30: Muy Baja | J30: 0.2603163728 | K30: Muy Baja
B31: Caribe | C31: Atrato - Darién | D31: 1109 | E31: Río Napipí - Río Opogadó | F31: Dpto_Antioquia | G31: Tarazá | H31: 0.09840332063 | I31: Muy Baja | J31: 0.2260036083 | K31: Muy Baja
B32: Caribe | C32: Atrato - Darién | D32: 1109 | E32: Río Napipí - Río Opogadó | F32: Dpto_Antioquia | G32: La Unión | H32: 0.09840332063 | I32: Muy Baja | J32: 0.2260036083 | K32: Muy Baja
B33: Caribe | C33: Atrato - Darién | D33: 1109 | E33: Río Napipí - Río Opogadó | F33: Dpto_Chocó | G33: Vigía del Fuerte | H33: 0.09840332063 | I33: Muy Baja | J33: 0.2260036083 | K33: Muy Baja
B34: Caribe | C34: Atrato - Darién | D34: 1110 | E34: Río Murindó - Directos al Atrato | F34: Dpto_Antioquia | G34: Murindó | H34: 0.2261446421 | I34: Muy Baja | J34: 0.5246937468 | K34: Muy Baja
B35: Caribe | C35: Atrato - Darién | D35: 1111 | E35: Río Sucio | F35: Dpto_Chocó | G35: Riosucio, Chocó | H35: 1.361126423 | I35: Baja | J35: 3.437010633 | K35: Baja
B36: Caribe | C36: Atrato - Darién | D36: 1111 | E36: Río Sucio | F36: Dpto_Antioquia | G36: Mutatá | H36: 1.361126423 | I36: Baja | J36: 3.437010633 | K36: Baja
B37: Caribe | C37: Atrato - Darién | D37: 1111 | E37: Río Sucio | F37: Dpto_Antioquia | G37: Dabeiba | H37: 1.361126423 | I37: Baja | J37: 3.437010633 | K37: Baja
B38: Caribe | C38: Atrato - Darién | D38: 1111 | E38: Río Sucio | F38: Dpto_Antioquia | G38: Uramita | H38: 1.361126423 | I38: Baja | J38: 3.437010633 | K38: Baja
B39: Caribe | C39: Atrato - Darién | D39: 1111 | E39: Río Sucio | F39: Dpto_Antioquia | G39: Frontino | H39: 1.361126423 | I39: Baja | J39: 3.437010633 | K39: Baja
B40: Caribe | C40: Atrato - Darién | D40: 1111 | E40: Río Sucio | F40: Dpto_Antioquia | G40: Cañasgordas | H40: 1.361126423 | I40: Baja | J40: 3.437010633 | K40: Baja
B41: Caribe | C41: Atrato - Darién | D41: 1111 | E41: Río Sucio | F41: Dpto_Antioquia | G41: Abriaquí | H41: 1.361126423 | I41: Baja | J41: 3.437010633 | K41: Baja
B42: Caribe | C42: Atrato - Darién | D42: 1112 | E42: Río Salaquí y otros Directos Bajo Atrato | F42: Dpto_Chocó | G42: Carmen del Darién | H42: 0.4267879292 | I42: Muy Baja | J42: 1.118399801 | K42: Baja
B43: Caribe | C43: Atrato - Darién | D43: 1113 | E43: Río Perancho | F43: Dpto_Chocó | G43: Riosucio, Chocó | H43: 1.424674313 | I43: Baja | J43: 4.091928012 | K43: Baja
B44: Caribe | C44: Atrato - Darién | D44: 1114 | E44: Directos Bajo Atrato entre Río Sucio y desembocadura | F44: Dpto_Antioquia | G44: Riosucio | H44: 0.7007852548 | I44: Muy Baja | J44: 2.126478458 | K44: Baja
B45: Caribe | C45: Atrato - Darién | D45: 1114 | E45: Directos Bajo Atrato entre Río Sucio y desembocadura | F45: Dpto_Chocó | G45: Riosucio, Chocó | H45: 0.7007852548 | I45: Muy Baja | J45: 2.126478458 | K45: Baja
B46: Caribe | C46: Atrato - Darién | D46: 1115 | E46: Río Tanela y otros Directos al Atrato | F46: Dpto_Chocó | G46: Unguía | H46: 1.747554914 | I46: Baja | J46: 5.511067411 | K46: Baja
B47: Caribe | C47: Atrato - Darién | D47: 1116 | E47: Río Tolo y otros Directos al Caribe | F47: Dpto_Chocó | G47: Acandí | H47: 2.708829334 | I47: Baja | J47: 8.001750274 | K47: Baja
B48: Caribe | C48: Atrato - Darién | D48: 1117 | E48: Río Cabí y otros Directos Atrato (md) | F48: Dpto_Chocó | G48: Quibdó | H48: 0.6676471553 | I48: Muy Baja | J48: 1.317478453 | K48: Baja
B49: Caribe | C49: Atrato - Darién | D49: 1117 | E49: Río Cabí y otros Directos Atrato (md) | F49: Dpto_Antioquia | G49: Guadalupe | H49: 0.6676471553 | I49: Muy Baja | J49: 1.317478453 | K49: Baja
B50: Caribe | C50: Caribe - Litoral | D50: 1201 | E50: Río León | F50: Dpto_Antioquia | G50: Apartadó | H50: 5.787213772 | I50: Baja | J50: 19.28600058 | K50: Moderada
B51: Caribe | C51: Caribe - Litoral | D51: 1201 | E51: Río León | F51: Dpto_Antioquia | G51: Carepa | H51: 5.787213772 | I51: Baja | J51: 19.28600058 | K51: Moderada
B52: Caribe | C52: Caribe - Litoral | D52: 1201 | E52: Río León | F52: Dpto_Antioquia | G52: Chigorodó | H52: 5.787213772 | I52: Baja | J52: 19.28600058 | K52: Moderada
B53: Caribe | C53: Caribe - Litoral | D53: 1202 | E53: Río Mulatos y otros Directos al Caribe | F53: Dpto_Antioquia | G53: Necoclí | H53: 18.98218978 | I53: Moderada | J53: 74.80585699 | K53: Muy Alta
B54: Caribe | C54: Caribe - Litoral | D54: 1202 | E54: Río Mulatos y otros Directos al Caribe | F54: Dpto_Antioquia | G54: San Juan de Urabá | H54: 18.98218978 | I54: Moderada | J54: 74.80585699 | K54: Muy Alta
B55: Caribe | C55: Caribe - Litoral | D55: 1203 | E55: Río San Juan | F55: Dpto_Antioquia | G55: San Pedro de Uraba | H55: 32.156888 | I55: Alta | J55: 100.8624035 | K55: Critico
B56: Caribe | C56: Caribe - Litoral | D56: 1204 | E56: Río Canalete y otros Arroyos Directos al Caribe | F56: Dpto_Córdoba | G56: Canalete | H56: 67.48698345 | I56: Muy Alta | J56: 169.0836592 | K56: Critico
B57: Caribe | C57: Caribe - Litoral | D57: 1204 | E57: Río Canalete y otros Arroyos Directos al Caribe | F57: Dpto_Córdoba | G57: Los Córdobas | H57: 67.48698345 | I57: Muy Alta | J57: 169.0836592 | K57: Critico
B58: Caribe | C58: Caribe - Litoral | D58: 1204 | E58: Río Canalete y otros Arroyos Directos al Caribe | F58: Dpto_Córdoba | G58: Puerto Escondido | H58: 67.48698345 | I58: Muy Alta | J58: 169.0836592 | K58: Critico
B59: Caribe | C59: Caribe - Litoral | D59: 1204 | E59: Río Canalete y otros Arroyos Directos al Caribe | F59: Dpto_Córdoba | G59: Moñitos | H59: 67.48698345 | I59: Muy Alta | J59: 169.0836592 | K59: Critico
B60: Caribe | C60: Caribe - Litoral | D60: 1204 | E60: Río Canalete y otros Arroyos Directos al Caribe | F60: Dpto_Antioquia | G60: Arboletes | H60: 67.48698345 | I60: Muy Alta | J60: 169.0836592 | K60: Critico
B61: Caribe | C61: Caribe - Litoral | D61: 1205 | E61: Directos Caribe Golfo de Morrosquillo | F61: Dpto_Sucre | G61: Tolú | H61: 23.81596461 | I61: Alta | J61: 71.2786941 | K61: Muy Alta
B62: Caribe | C62: Caribe - Litoral | D62: 1205 | E62: Directos Caribe Golfo de Morrosquillo | F62: Dpto_Sucre | G62: Coveñas | H62: 23.81596461 | I62: Alta | J62: 71.2786941 | K62: Muy Alta
B63: Caribe | C63: Caribe - Litoral | D63: 1205 | E63: Directos Caribe Golfo de Morrosquillo | F63: Dpto_Sucre | G63: San Onofre | H63: 23.81596461 | I63: Alta | J63: 71.2786941 | K63: Muy Alta
B64: Caribe | C64: Caribe - Litoral | D64: 1205 | E64: Directos Caribe Golfo de Morrosquillo | F64: Dpto_Córdoba | G64: Lorica | H64: 23.81596461 | I64: Alta | J64: 71.2786941 | K64: Muy Alta
B65: Caribe | C65: Caribe - Litoral | D65: 1205 | E65: Directos Caribe Golfo de Morrosquillo | F65: Dpto_Córdoba | G65: San Antero | H65: 23.81596461 | I65: Alta | J65: 71.2786941 | K65: Muy Alta
B66: Caribe | C66: Caribe - Litoral | D66: 1206 | E66: Arroyos Directos al Caribe | F66: Dpto_Bolívar | G66: Cartagena de Indias | H66: 137.2328891 | I66: Critico | J66: 372.0479668 | K66: Critico
B67: Caribe | C67: Caribe - Litoral | D67: 1206 | E67: Arroyos Directos al Caribe | F67: Dpto_Bolívar | G67: Turbaco | H67: 137.2328891 | I67: Critico | J67: 372.0479668 | K67: Critico
B68: Caribe | C68: Caribe - Litoral | D68: 1206 | E68: Arroyos Directos al Caribe | F68: Dpto_Bolívar | G68: Arjona | H68: 137.2328891 | I68: Critico | J68: 372.0479668 | K68: Critico
B69: Caribe | C69: Caribe - Litoral | D69: 1206 | E69: Arroyos Directos al Caribe | F69: Dpto_Atlántico | G69: Barranquilla | H69: 137.2328891 | I69: Critico | J69: 372.0479668 | K69: Critico
B70: Caribe | C70: Caribe - Litoral | D70: 1206 | E70: Arroyos Directos al Caribe | F70: Dpto_Atlántico | G70: Puerto Colombia | H70: 137.2328891 | I70: Critico | J70: 372.0479668 | K70: Critico
B71: Caribe | C71: Caribe - Litoral | D71: 1206 | E71: Arroyos Directos al Caribe | F71: Dpto_Córdoba | G71: San Antero | H71: 137.2328891 | I71: Critico | J71: 372.0479668 | K71: Critico
B72: Caribe | C72: Caribe - Litoral | D72: 1206 | E72: Arroyos Directos al Caribe | F72: Dpto_Córdoba | G72: Lorica | H72: 137.2328891 | I72: Critico | J72: 372.0479668 | K72: Critico
B73: Caribe | C73: Caribe - Litoral | D73: 1206 | E73: Arroyos Directos al Caribe | F73: Dpto_Guajira | G73: Riohacha | H73: 137.2328891 | I73: Critico | J73: 372.0479668 | K73: Critico
B74: Caribe | C74: Caribe - Litoral | D74: 1206 | E74: Arroyos Directos al Caribe | F74: Dpto_Guajira | G74: Manaure, Guajira | H74: 137.2328891 | I74: Critico | J74: 372.0479668 | K74: Critico
B75: Caribe | C75: Caribe - Litoral | D75: 1206 | E75: Arroyos Directos al Caribe | F75: Dpto_Magdalena | G75: Santa Marta | H75: 137.2328891 | I75: Critico | J75: 372.0479668 | K75: Critico
B76: Caribe | C76: Caribe - Litoral | D76: 1206 | E76: Arroyos Directos al Caribe | F76: Dpto_Magdalena | G76: Ciénaga, Magdalena | H76: 137.2328891 | I76: Critico | J76: 372.0479668 | K76: Critico
B77: Caribe | C77: Caribe - Litoral | D77: 1206 | E77: Arroyos Directos al Caribe | F77: Dpto_Sucre | G77: Tolú | H77: 137.2328891 | I77: Critico | J77: 372.0479668 | K77: Critico
B78: Caribe | C78: Caribe - Litoral | D78: 1206 | E78: Arroyos Directos al Caribe | F78: Dpto_Sucre | G78: Coveñas | H78: 137.2328891 | I78: Critico | J78: 372.0479668 | K78: Critico
B79: Caribe | C79: Caribe - Litoral | D79: 1206 | E79: Arroyos Directos al Caribe | F79: Dpto_Chocó | G79: Acandí | H79: 137.2328891 | I79: Critico | J79: 372.0479668 | K79: Critico
B80: Caribe | C80: Sinú | D80: 1301 | E80: Alto Sinú - Urrá | F80: Dpto_Córdoba | G80: Tierralta | H80: 11.41767478 | I80: Moderada | J80: 29.95152403 | K80: Alta
B81: Caribe | C81: Sinú | D81: 1301 | E81: Alto Sinú - Urrá | F81: Dpto_Córdoba | G81: Valencia | H81: 11.41767478 | I81: Moderada | J81: 29.95152403 | K81: Alta
B82: Caribe | C82: Sinú | D82: 1301 | E82: Alto Sinú - Urrá | F82: Dpto_Córdoba | G82: Puerto Libertador | H82: 11.41767478 | I82: Moderada | J82: 29.95152403 | K82: Alta
B83: Caribe | C83: Sinú | D83: 1301 | E83: Alto Sinú - Urrá | F83: Dpto_Córdoba | G83: Montelíbano | H83: 11.41767478 | I83: Moderada | J83: 29.95152403 | K83: Alta
B84: Caribe | C84: Sinú | D84: 1302 | E84: Medio Sinú | F84: Dpto_Córdoba | G84: Valencia | H84: 22.18057478 | I84: Alta | J84: 50.49721545 | K84: Muy Alta
B85: Caribe | C85: Sinú | D85: 1302 | E85: Medio Sinú | F85: Dpto_Córdoba | G85: Tierralta | H85: 22.18057478 | I85: Alta | J85: 50.49721545 | K85: Muy Alta
B86: Caribe | C86: Sinú | D86: 1303 | E86: Bajo Sinú | F86: Dpto_Córdoba | G86: Montería | H86: 50.99213034 | I86: Muy Alta | J86: 111.9087263 | K86: Critico
B87: Caribe | C87: Sinú | D87: 1303 | E87: Bajo Sinú | F87: Dpto_Córdoba | G87: San Carlos, Córdoba | H87: 50.99213034 | I87: Muy Alta | J87: 111.9087263 | K87: Critico
B88: Caribe | C88: Sinú | D88: 1303 | E88: Bajo Sinú | F88: Dpto_Córdoba | G88: Cereté | H88: 50.99213034 | I88: Muy Alta | J88: 111.9087263 | K88: Critico
B89: Caribe | C89: Sinú | D89: 1303 | E89: Bajo Sinú | F89: Dpto_Córdoba | G89: San Pelayo | H89: 50.99213034 | I89: Muy Alta | J89: 111.9087263 | K89: Critico
B90: Caribe | C90: Sinú | D90: 1303 | E90: Bajo Sinú | F90: Dpto_Córdoba | G90: Ciénaga de Oro | H90: 50.99213034 | I90: Muy Alta | J90: 111.9087263 | K90: Critico
B91: Caribe | C91: Sinú | D91: 1303 | E91: Bajo Sinú | F91: Dpto_Córdoba | G91: Cotorra | H91: 50.99213034 | I91: Muy Alta | J91: 111.9087263 | K91: Critico
B92: Caribe | C92: Sinú | D92: 1303 | E92: Bajo Sinú | F92: Dpto_Córdoba | G92: Sahagún | H92: 50.99213034 | I92: Muy Alta | J92: 111.9087263 | K92: Critico
B93: Caribe | C93: Sinú | D93: 1303 | E93: Bajo Sinú | F93: Dpto_Córdoba | G93: Chimá | H93: 50.99213034 | I93: Muy Alta | J93: 111.9087263 | K93: Critico
B94: Caribe | C94: Sinú | D94: 1303 | E94: Bajo Sinú | F94: Dpto_Córdoba | G94: San Andrés Sotavento | H94: 50.99213034 | I94: Muy Alta | J94: 111.9087263 | K94: Critico
B95: Caribe | C95: Sinú | D95: 1303 | E95: Bajo Sinú | F95: Dpto_Córdoba | G95: Lorica | H95: 50.99213034 | I95: Muy Alta | J95: 111.9087263 | K95: Critico
B96: Caribe | C96: Sinú | D96: 1303 | E96: Bajo Sinú | F96: Dpto_Córdoba | G96: Purísima | H96: 50.99213034 | I96: Muy Alta | J96: 111.9087263 | K96: Critico
B97: Caribe | C97: Sinú | D97: 1303 | E97: Bajo Sinú | F97: Dpto_Córdoba | G97: Momil | H97: 50.99213034 | I97: Muy Alta | J97: 111.9087263 | K97: Critico
B98: Caribe | C98: Sinú | D98: 1303 | E98: Bajo Sinú | F98: Dpto_Córdoba | G98: San Bernardo del Viento | H98: 50.99213034 | I98: Muy Alta | J98: 111.9087263 | K98: Critico
B99: Caribe | C99: Sinú | D99: 1303 | E99: Bajo Sinú | F99: Dpto_Córdoba | G99: San Antero | H99: 50.99213034 | I99: Muy Alta | J99: 111.9087263 | K99: Critico
B100: Caribe | C100: Caribe - Guajira | D100: 1501 | E100: Río Piedras - Río Manzanares | F100: Dpto_Magdalena | G100: Santa Marta | H100: 26.37039555 | I100: Alta | J100: 106.5735767 | K100: Critico
B101: Caribe | C101: Caribe - Guajira | D101: 1502 | E101: Río Don Diego | F101: Dpto_Magdalena | G101: Santa Marta | H101: 1.947016919 | I101: Baja | J101: 7.710374047 | K101: Baja
B102: Caribe | C102: Caribe - Guajira | D102: 1502 | E102: Río Don Diego | F102: Dpto_Guajira | G102: Dibulla | H102: 1.947016919 | I102: Baja | J102: 7.710374047 | K102: Baja
B103: Caribe | C103: Caribe - Guajira | D103: 1503 | E103: Río Ancho y Otros Directos al Caribe | F103: Dpto_Guajira | G103: Dibulla | H103: 11.57355215 | I103: Moderada | J103: 49.15256975 | K103: Alta
B104: Caribe | C104: Caribe - Guajira | D104: 1504 | E104: Río Tapias | F104: Dpto_Guajira | G104: Dibulla | H104: 11.10193115 | I104: Moderada | J104: 67.86208642 | K104: Muy Alta
B105: Caribe | C105: Caribe - Guajira | D105: 1505 | E105: Río Camarones y otros Directos Caribe | F105: Dpto_Guajira | G105: Riohacha | H105: 12.97389069 | I105: Moderada | J105: 89.75006707 | K105: Muy Alta
B106: Caribe | C106: Caribe - Guajira | D106: 1506 | E106: Río Ranchería | F106: Dpto_Guajira | G106: Riohacha | H106: 21.87574561 | I106: Alta | J106: 163.8984009 | K106: Critico
B107: Caribe | C107: Caribe - Guajira | D107: 1506 | E107: Río Ranchería | F107: Dpto_Guajira | G107: Albania, Guajira | H107: 21.87574561 | I107: Alta | J107: 163.8984009 | K107: Critico
B108: Caribe | C108: Caribe - Guajira | D108: 1506 | E108: Río Ranchería | F108: Dpto_Guajira | G108: Hatonuevo | H108: 21.87574561 | I108: Alta | J108: 163.8984009 | K108: Critico
B109: Caribe | C109: Caribe - Guajira | D109: 1506 | E109: Río Ranchería | F109: Dpto_Guajira | G109: Barrancas | H109: 21.87574561 | I109: Alta | J109: 163.8984009 | K109: Critico
B110: Caribe | C110: Caribe - Guajira | D110: 1506 | E110: Río Ranchería | F110: Dpto_Guajira | G110: Distracción | H110: 21.87574561 | I110: Alta | J110: 163.8984009 | K110: Critico
B111: Caribe | C111: Caribe - Guajira | D111: 1506 | E111: Río Ranchería | F111: Dpto_Guajira | G111: Fonseca | H111: 21.87574561 | I111: Alta | J111: 163.8984009 | K111: Critico
B112: Caribe | C112: Caribe - Guajira | D112: 1507 | E112: Directos Caribe - Ay.Sharimahana Alta Guajira | F112: Dpto_Guajira | G112: Manaure, Guajira | H112: 32.93840489 | I112: Alta | J112: 240.3031085 | K112: Critico
B113: Caribe | C113: Caribe - Guajira | D113: 1507 | E113: Directos Caribe - Ay.Sharimahana Alta Guajira | F113: Dpto_Guajira | G113: Uribia | H113: 32.93840489 | I113: Alta | J113: 240.3031085 | K113: Critico
B114: Caribe | C114: Caribe - Guajira | D114: 1508 | E114: Río Carraipía - Paraguachón, Directos al Golfo Maracaibo | F114: Dpto_Guajira | G114: Maicao | H114: 16.90811953 | I114: Moderada | J114: 173.9265031 | K114: Critico
B115: Caribe | C115: Caribe - Guajira | D115: 1509 | E115: Río Guachaca - Mendihuaca y Buritaca | F115: Dpto_Magdalena | G115: Santa Marta | H115: 2.85832851 | I115: Baja | J115: 12.01753928 | K115: Moderada
B116: Caribe | C116: Catatumbo | D116: 1601 | E116: Río Pamplonita | F116: Dpto_Norte_de_Santander | G116: Cúcuta | H116: 40.39191929 | I116: Alta | J116: 132.4137312 | K116: Critico
B117: Caribe | C117: Catatumbo | D117: 1601 | E117: Río Pamplonita | F117: Dpto_Norte_de_Santander | G117: Los Patios | H117: 40.39191929 | I117: Alta | J117: 132.4137312 | K117: Critico
B118: Caribe | C118: Catatumbo | D118: 1601 | E118: Río Pamplonita | F118: Dpto_Norte_de_Santander | G118: Villa del Rosario | H118: 40.39191929 | I118: Alta | J118: 132.4137312 | K118: Critico
B119: Caribe | C119: Catatumbo | D119: 1601 | E119: Río Pamplonita | F119: Dpto_Norte_de_Santander | G119: Bochalema | H119: 40.39191929 | I119: Alta | J119: 132.4137312 | K119: Critico
B120: Caribe | C120: Catatumbo | D120: 1601 | E120: Río Pamplonita | F120: Dpto_Norte_de_Santander | G120: Chinácota | H120: 40.39191929 | I120: Alta | J120: 132.4137312 | K120: Critico
B121: Caribe | C121: Catatumbo | D121: 1601 | E121: Río Pamplonita | F121: Dpto_Norte_de_Santander | G121: Ragonvalia | H121: 40.39191929 | I121: Alta | J121: 132.4137312 | K121: Critico
B122: Caribe | C122: Catatumbo | D122: 1601 | E122: Río Pamplonita | F122: Dpto_Norte_de_Santander | G122: Herrán | H122: 40.39191929 | I122: Alta | J122: 132.4137312 | K122: Critico
B123: Caribe | C123: Catatumbo | D123: 1601 | E123: Río Pamplonita | F123: Dpto_Norte_de_Santander | G123: Pamplonita | H123: 40.39191929 | I123: Alta | J123: 132.4137312 | K123: Critico
B124: Caribe | C124: Catatumbo | D124: 1601 | E124: Río Pamplonita | F124: Dpto_Norte_de_Santander | G124: Pamplona | H124: 40.39191929 | I124: Alta | J124: 132.4137312 | K124: Critico
B125: Caribe | C125: Catatumbo | D125: 1602 | E125: Río Zulia | F125: Dpto_Norte_de_Santander | G125: Puerto Santander, NS | H125: 41.90411291 | I125: Alta | J125: 140.9026983 | K125: Critico
B126: Caribe | C126: Catatumbo | D126: 1602 | E126: Río Zulia | F126: Dpto_Norte_de_Santander | G126: El Zulia | H126: 41.90411291 | I126: Alta | J126: 140.9026983 | K126: Critico
B127: Caribe | C127: Catatumbo | D127: 1602 | E127: Río Zulia | F127: Dpto_Norte_de_Santander | G127: San Cayetano, NS | H127: 41.90411291 | I127: Alta | J127: 140.9026983 | K127: Critico
B128: Caribe | C128: Catatumbo | D128: 1602 | E128: Río Zulia | F128: Dpto_Norte_de_Santander | G128: Santiago | H128: 41.90411291 | I128: Alta | J128: 140.9026983 | K128: Critico
B129: Caribe | C129: Catatumbo | D129: 1602 | E129: Río Zulia | F129: Dpto_Norte_de_Santander | G129: Gramalote | H129: 41.90411291 | I129: Alta | J129: 140.9026983 | K129: Critico
B130: Caribe | C130: Catatumbo | D130: 1602 | E130: Río Zulia | F130: Dpto_Norte_de_Santander | G130: Salazar | H130: 41.90411291 | I130: Alta | J130: 140.9026983 | K130: Critico
B131: Caribe | C131: Catatumbo | D131: 1602 | E131: Río Zulia | F131: Dpto_Norte_de_Santander | G131: Durania | H131: 41.90411291 | I131: Alta | J131: 140.9026983 | K131: Critico
B132: Caribe | C132: Catatumbo | D132: 1602 | E132: Río Zulia | F132: Dpto_Norte_de_Santander | G132: Arboledas | H132: 41.90411291 | I132: Alta | J132: 140.9026983 | K132: Critico
B133: Caribe | C133: Catatumbo | D133: 1602 | E133: Río Zulia | F133: Dpto_Norte_de_Santander | G133: Cucutilla | H133: 41.90411291 | I133: Alta | J133: 140.9026983 | K133: Critico
B134: Caribe | C134: Catatumbo | D134: 1602 | E134: Río Zulia | F134: Dpto_Norte_de_Santander | G134: Mutiscua | H134: 41.90411291 | I134: Alta | J134: 140.9026983 | K134: Critico
B135: Caribe | C135: Catatumbo | D135: 1603 | E135: Río Nuevo Presidente - Tres Bocas (Sardinata, Tibú) | F135: Dpto_Norte_de_Santander | G135: Tibú | H135: 41.90411291 | I135: Alta | J135: 140.9026983 | K135: Critico
B136: Caribe | C136: Catatumbo | D136: 1603 | E136: Río Nuevo Presidente - Tres Bocas (Sardinata, Tibú) | F136: Dpto_Norte_de_Santander | G136: Sardinata | H136: 4.742710439 | I136: Baja | J136: 17.58546548 | K136: Moderada
B137: Caribe | C137: Catatumbo | D137: 1603 | E137: Río Nuevo Presidente - Tres Bocas (Sardinata, Tibú) | F137: Dpto_Norte_de_Santander | G137: Bucarasica | H137: 4.742710439 | I137: Baja | J137: 17.58546548 | K137: Moderada
B138: Caribe | C138: Catatumbo | D138: 1603 | E138: Río Nuevo Presidente - Tres Bocas (Sardinata, Tibú) | F138: Dpto_Norte_de_Santander | G138: Lourdes | H138: 4.742710439 | I138: Baja | J138: 17.58546548 | K138: Moderada
B139: Caribe | C139: Catatumbo | D139: 1603 | E139: Río Nuevo Presidente - Tres Bocas (Sardinata, Tibú) | F139: Dpto_Norte_de_Santander | G139: Villa Caro | H139: 4.742710439 | I139: Baja | J139: 17.58546548 | K139: Moderada
B140: Caribe | C140: Catatumbo | D140: 1604 | E140: Río Tarra | F140: Dpto_Norte_de_Santander | G140: El Tarra | H140: 2.462324879 | I140: Baja | J140: 7.342978134 | K140: Baja
B141: Caribe | C141: Catatumbo | D141: 1604 | E141: Río Tarra | F141: Dpto_Norte_de_Santander | G141: Hacarí | H141: 2.462324879 | I141: Baja | J141: 7.342978134 | K141: Baja
B142: Caribe | C142: Catatumbo | D142: 1605 | E142: Río Algodonal (Alto Catatumbo) | F142: Dpto_Norte_de_Santander | G142: Convención | H142: 7.161262166 | I142: Baja | J142: 21.61632065 | K142: Alta
B143: Caribe | C143: Catatumbo | D143: 1605 | E143: Río Algodonal (Alto Catatumbo) | F143: Dpto_Norte_de_Santander | G143: Teorama | H143: 7.161262166 | I143: Baja | J143: 21.61632065 | K143: Alta
B144: Caribe | C144: Catatumbo | D144: 1605 | E144: Río Algodonal (Alto Catatumbo) | F144: Dpto_Norte_de_Santander | G144: San Calixto | H144: 7.161262166 | I144: Baja | J144: 21.61632065 | K144: Alta
B145: Caribe | C145: Catatumbo | D145: 1605 | E145: Río Algodonal (Alto Catatumbo) | F145: Dpto_Norte_de_Santander | G145: Ocaña | H145: 7.161262166 | I145: Baja | J145: 21.61632065 | K145: Alta
B146: Caribe | C146: Catatumbo | D146: 1605 | E146: Río Algodonal (Alto Catatumbo) | F146: Dpto_Norte_de_Santander | G146: La Playa | H146: 7.161262166 | I146: Baja | J146: 21.61632065 | K146: Alta
B147: Caribe | C147: Catatumbo | D147: 1605 | E147: Río Algodonal (Alto Catatumbo) | F147: Dpto_Norte_de_Santander | G147: Abrego | H147: 7.161262166 | I147: Baja | J147: 21.61632065 | K147: Alta
B148: Caribe | C148: Catatumbo | D148: 1606 | E148: Río Socuavo del Norte y río Socuavo Sur | F148: Dpto_Antioquia | G148: Turbo | H148: 4.591933355 | I148: Baja | J148: 14.61581125 | K148: Moderada
B149: Caribe | C149: Catatumbo | D149: 1606 | E149: Río Socuavo del Norte y río Socuavo Sur | F149: Dpto_Antioquia | G149: Mutatá | H149: 4.591933355 | I149: Baja | J149: 14.61581125 | K149: Moderada
B150: Caribe | C150: Catatumbo | D150: 1606 | E150: Río Socuavo del Norte y río Socuavo Sur | F150: Dpto_Antioquia | G150: Apartadó | H150: 4.591933355 | I150: Baja | J150: 14.61581125 | K150: Moderada
B151: Caribe | C151: Catatumbo | D151: 1606 | E151: Río Socuavo del Norte y río Socuavo Sur | F151: Dpto_Antioquia | G151: Chigorodó | H151: 4.591933355 | I151: Baja | J151: 14.61581125 | K151: Moderada
B152: Caribe | C152: Catatumbo | D152: 1607 | E152: Bajo Catatumbo | F152: Dpto_Norte_de_Santander | G152: Tibú | H152: 1.247377018 | I152: Baja | J152: 3.692201688 | K152: Baja
B153: Caribe | C153: Catatumbo | D153: 1607 | E153: Bajo Catatumbo | F153: Dpto_Norte_de_Santander | G153: El Tarra | H153: 1.247377018 | I153: Baja | J153: 3.692201688 | K153: Baja
B154: Caribe | C154: Catatumbo | D154: 1608 | E154: Río del Suroeste y Directos Río del Oro | F154: Dpto_Antioquia | G154: Santafé de Antioquia | H154: 0.5714505508 | I154: Muy Baja | J154: 1.792691428 | K154: Baja
B155: Caribe | C155: Catatumbo | D155: 1608 | E155: Río del Suroeste y Directos Río del Oro | F155: Dpto_Antioquia | G155: San Jerónimo | H155: 0.5714505508 | I155: Muy Baja | J155: 1.792691428 | K155: Baja
B156: Caribe | C156: Catatumbo | D156: 1608 | E156: Río del Suroeste y Directos Río del Oro | F156: Dpto_Antioquia | G156: Dabeiba | H156: 0.5714505508 | I156: Muy Baja | J156: 1.792691428 | K156: Baja
B157: Caribe | C157: Catatumbo | D157: 1608 | E157: Río del Suroeste y Directos Río del Oro | F157: Dpto_Antioquia | G157: El Bagre | H157: 0.5714505508 | I157: Muy Baja | J157: 1.792691428 | K157: Baja
B158: Caribe | C158: Islas Caribe | D158: 1701 | E158: San Andrés | F158: Dpto_SanAndrés | G158: San Andrés | H158: 0 | I158: Muy Baja | J158: 0 | K158: Muy Baja
B159: Caribe | C159: Islas Caribe | D159: 1702 | E159: Providencia | F159: Dpto_SanAndrés | G159: Providencia | H159: 0 | I159: Muy Baja | J159: 0 | K159: Muy Baja
B160: Caribe | C160: Islas Caribe | D160: 1703 | E160: Roncador y Quitasueño | F160: Dpto_SanAndrés | G160: San Andrés | H160: 0 | I160: Muy Baja | J160: 0 | K160: Muy Baja
B161: Magdalena - Cauca | C161: Alto Magdalena | D161: 2101 | E161: Alto Magdalena | F161: Dpto_Huila | G161: Pitalito | H161: 2.833949092 | I161: Baja | J161: 6.091709088 | K161: Baja
B162: Magdalena - Cauca | C162: Alto Magdalena | D162: 2101 | E162: Alto Magdalena | F162: Dpto_Huila | G162: Palestina, Huila | H162: 2.833949092 | I162: Baja | J162: 6.091709088 | K162: Baja
B163: Magdalena - Cauca | C163: Alto Magdalena | D163: 2101 | E163: Alto Magdalena | F163: Dpto_Huila | G163: San Agustín | H163: 2.833949092 | I163: Baja | J163: 6.091709088 | K163: Baja
B164: Magdalena - Cauca | C164: Alto Magdalena | D164: 2102 | E164: Río Timaná y otros Directos al Magdalena | F164: Dpto_Huila | G164: Elías | H164: 25.32345997 | I164: Alta | J164: 49.63469707 | K164: Muy Alta
B165: Magdalena - Cauca | C165: Alto Magdalena | D165: 2102 | E165: Río Timaná y otros Directos al Magdalena | F165: Dpto_Huila | G165: Timaná | H165: 25.32345997 | I165: Alta | J165: 49.63469707 | K165: Muy Alta
B166: Magdalena - Cauca | C166: Alto Magdalena | D166: 2102 | E166: Río Timaná y otros Directos al Magdalena | F166: Dpto_Huila | G166: Altamira | H166: 25.32345997 | I166: Alta | J166: 49.63469707 | K166: Muy Alta
B167: Magdalena - Cauca | C167: Alto Magdalena | D167: 2103 | E167: Río Suaza | F167: Dpto_Huila | G167: Guadalupe, Huila | H167: 11.99403083 | I167: Moderada | J167: 25.66937444 | K167: Alta
B168: Magdalena - Cauca | C168: Alto Magdalena | D168: 2103 | E168: Río Suaza | F168: Dpto_Huila | G168: Suaza | H168: 11.99403083 | I168: Moderada | J168: 25.66937444 | K168: Alta
B169: Magdalena - Cauca | C169: Alto Magdalena | D169: 2103 | E169: Río Suaza | F169: Dpto_Huila | G169: Acevedo | H169: 11.99403083 | I169: Moderada | J169: 25.66937444 | K169: Alta
B170: Magdalena - Cauca | C170: Alto Magdalena | D170: 2104 | E170: Ríos Directos al Magdalena (mi) | F170: Dpto_Huila | G170: Pital | H170: 136.2100065 | I170: Critico | J170: 283.0057621 | K170: Critico
B171: Magdalena - Cauca | C171: Alto Magdalena | D171: 2104 | E171: Ríos Directos al Magdalena (mi) | F171: Dpto_Huila | G171: Agrado | H171: 136.2100065 | I171: Critico | J171: 283.0057621 | K171: Critico
B172: Magdalena - Cauca | C172: Alto Magdalena | D172: 2104 | E172: Ríos Directos al Magdalena (mi) | F172: Dpto_Huila | G172: Tarqui | H172: 136.2100065 | I172: Critico | J172: 283.0057621 | K172: Critico
B173: Magdalena - Cauca | C173: Alto Magdalena | D173: 2104 | E173: Ríos Directos al Magdalena (mi) | F173: Dpto_Huila | G173: Oporapa | H173: 136.2100065 | I173: Critico | J173: 283.0057621 | K173: Critico
B174: Magdalena - Cauca | C174: Alto Magdalena | D174: 2104 | E174: Ríos Directos al Magdalena (mi) | F174: Dpto_Huila | G174: Saladoblanco | H174: 136.2100065 | I174: Critico | J174: 283.0057621 | K174: Critico
B175: Magdalena - Cauca | C175: Alto Magdalena | D175: 2105 | E175: Río Páez | F175: Dpto_Cauca | G175: Inzá | H175: 2.893239076 | I175: Baja | J175: 6.591198927 | K175: Baja
B176: Magdalena - Cauca | C176: Alto Magdalena | D176: 2105 | E176: Río Páez | F176: Dpto_Cauca | G176: Paez | H176: 2.893239076 | I176: Baja | J176: 6.591198927 | K176: Baja
B177: Magdalena - Cauca | C177: Alto Magdalena | D177: 2106 | E177: Ríos Directos Magdalena (md) | F177: Dpto_Huila | G177: Hobo | H177: 284.6436834 | I177: Critico | J177: 611.8408336 | K177: Critico
B178: Magdalena - Cauca | C178: Alto Magdalena | D178: 2106 | E178: Ríos Directos Magdalena (md) | F178: Dpto_Huila | G178: Gigante | H178: 284.6436834 | I178: Critico | J178: 611.8408336 | K178: Critico
B179: Magdalena - Cauca | C179: Alto Magdalena | D179: 2106 | E179: Ríos Directos Magdalena (md) | F179: Dpto_Huila | G179: Garzón | H179: 284.6436834 | I179: Critico | J179: 611.8408336 | K179: Critico
B180: Magdalena - Cauca | C180: Alto Magdalena | D180: 2108 | E180: Río Yaguará y río Íquira | F180: Dpto_Huila | G180: Teruel | H180: 80.50568242 | I180: Muy Alta | J180: 216.8973351 | K180: Critico
B181: Magdalena - Cauca | C181: Alto Magdalena | D181: 2108 | E181: Río Yaguará y río Íquira | F181: Dpto_Huila | G181: Yaguará | H181: 80.50568242 | I181: Muy Alta | J181: 216.8973351 | K181: Critico
B182: Magdalena - Cauca | C182: Alto Magdalena | D182: 2108 | E182: Río Yaguará y río Íquira | F182: Dpto_Huila | G182: Iquira | H182: 80.50568242 | I182: Muy Alta | J182: 216.8973351 | K182: Critico
B183: Magdalena - Cauca | C183: Alto Magdalena | D183: 2109 | E183: Juncal y otros ríos Directos al Magdalena | F183: Dpto_Cundinamarca | G183: La Vega, Cundinamarca | H183: 73.22437747 | I183: Muy Alta | J183: 170.8851191 | K183: Critico
B184: Magdalena - Cauca | C184: Alto Magdalena | D184: 2109 | E184: Juncal y otros ríos Directos al Magdalena | F184: Dpto_Cundinamarca | G184: Guatavita | H184: 73.22437747 | I184: Muy Alta | J184: 170.8851191 | K184: Critico
B185: Magdalena - Cauca | C185: Alto Magdalena | D185: 2109 | E185: Juncal y otros ríos Directos al Magdalena | F185: Dpto_Cundinamarca | G185: Cota | H185: 73.22437747 | I185: Muy Alta | J185: 170.8851191 | K185: Critico
B186: Magdalena - Cauca | C186: Alto Magdalena | D186: 2110 | E186: Río Neiva | F186: Dpto_Huila | G186: Campoalegre | H186: 154.1154274 | I186: Critico | J186: 361.907967 | K186: Critico
B187: Magdalena - Cauca | C187: Alto Magdalena | D187: 2110 | E187: Río Neiva | F187: Dpto_Huila | G187: Algeciras | H187: 154.1154274 | I187: Critico | J187: 361.907967 | K187: Critico
B188: Magdalena - Cauca | C188: Alto Magdalena | D188: 2111 | E188: Río Fortalecillas y otros | F188: Dpto_Huila | G188: Villavieja | H188: 69.19587925 | I188: Muy Alta | J188: 191.050719 | K188: Critico
B189: Magdalena - Cauca | C189: Alto Magdalena | D189: 2111 | E189: Río Fortalecillas y otros | F189: Dpto_Huila | G189: Baraya | H189: 69.19587925 | I189: Muy Alta | J189: 191.050719 | K189: Critico
B190: Magdalena - Cauca | C190: Alto Magdalena | D190: 2111 | E190: Río Fortalecillas y otros | F190: Dpto_Huila | G190: Tello | H190: 69.19587925 | I190: Muy Alta | J190: 191.050719 | K190: Critico
B191: Magdalena - Cauca | C191: Alto Magdalena | D191: 2111 | E191: Río Fortalecillas y otros | F191: Dpto_Huila | G191: Neiva | H191: 69.19587925 | I191: Muy Alta | J191: 191.050719 | K191: Critico
B192: Magdalena - Cauca | C192: Alto Magdalena | D192: 2111 | E192: Río Fortalecillas y otros | F192: Dpto_Huila | G192: Rivera | H192: 69.19587925 | I192: Muy Alta | J192: 191.050719 | K192: Critico
B193: Magdalena - Cauca | C193: Alto Magdalena | D193: 2112 | E193: Río Baché | F193: Dpto_Huila | G193: Santa María, Huila | H193: 29.1165052 | I193: Alta | J193: 69.64686279 | K193: Muy Alta
B194: Magdalena - Cauca | C194: Alto Magdalena | D194: 2112 | E194: Río Baché | F194: Dpto_Huila | G194: Palermo | H194: 29.1165052 | I194: Alta | J194: 69.64686279 | K194: Muy Alta
B195: Magdalena - Cauca | C195: Alto Magdalena | D195: 2113 | E195: Río Aipe, río Chenche y otros Directos al Magdalena | F195: Dpto_Tolima | G195: Purificación | H195: 36.2978405 | I195: Alta | J195: 100.5871694 | K195: Critico
B196: Magdalena - Cauca | C196: Alto Magdalena | D196: 2113 | E196: Río Aipe, río Chenche y otros Directos al Magdalena | F196: Dpto_Tolima | G196: Natagaima | H196: 36.2978405 | I196: Alta | J196: 100.5871694 | K196: Critico
B197: Magdalena - Cauca | C197: Alto Magdalena | D197: 2113 | E197: Río Aipe, río Chenche y otros Directos al Magdalena | F197: Dpto_Huila | G197: Aipe | H197: 36.2978405 | I197: Alta | J197: 100.5871694 | K197: Critico
B198: Magdalena - Cauca | C198: Alto Magdalena | D198: 2114 | E198: Río Cabrera | F198: Dpto_Tolima | G198: Alpujarra | H198: 3.949230982 | I198: Baja | J198: 11.52741911 | K198: Moderada
B199: Magdalena - Cauca | C199: Alto Magdalena | D199: 2114 | E199: Río Cabrera | F199: Dpto_Huila | G199: Colombia | H199: 3.949230982 | I199: Baja | J199: 11.52741911 | K199: Moderada
B200: Magdalena - Cauca | C200: Alto Magdalena | D200: 2115 | E200: Directos Magdalena entre ríos Cabrera y Sumapaz | F200: Dpto_Tolima | G200: Suárez | H200: 35.1926274 | I200: Alta | J200: 106.5650036 | K200: Critico
B201: Magdalena - Cauca | C201: Alto Magdalena | D201: 2115 | E201: Directos Magdalena entre ríos Cabrera y Sumapaz | F201: Dpto_Tolima | G201: Dolores | H201: 35.1926274 | I201: Alta | J201: 106.5650036 | K201: Critico
B202: Magdalena - Cauca | C202: Alto Magdalena | D202: 2116 | E202: Río Prado | F202: Dpto_Tolima | G202: Cunday | H202: 22.79750165 | I202: Alta | J202: 85.36294802 | K202: Muy Alta
B203: Magdalena - Cauca | C203: Alto Magdalena | D203: 2116 | E203: Río Prado | F203: Dpto_Tolima | G203: Villarrica | H203: 22.79750165 | I203: Alta | J203: 85.36294802 | K203: Muy Alta
... 1311 more rows
